Body Name,Body,Service Label,Service Code,Service Division ,Service Division Code,Organisational Unit,Expenditure Category - SeRCOP,Expenditure Code - SeRCOP,Expenditure Category - ProClass,Expenditure Code - ProClass,SeRCOP Detailed Expenditure Type,SeRCOP Detailed Expenditure Code,Date,Transaction Number,Amount,Capital and Revenue,Supplier Name,Supplier ID
Fareham Borough Council,http://statistics.data.gov.uk/id/local-authority/24UE,OTHER REVENUE ACCOUNTS,RV,NON WORK GROUP HOLDING ACCOUNT,RV18,DEPARTMENT OF OPERATIONS,TRANSPORT RELATED EXPENDITURE,3,Vehicle Management,38,VEHICLE TRACKER CHARGES,3021,10/08/2017,589327,1363.48 ,Revenue,UK TELEMATICS LIMITED,04203244
Fareham Borough Council,http://statistics.data.gov.uk/id/local-authority/24UE,OTHER REVENUE ACCOUNTS,RV,NON WORK GROUP HOLDING ACCOUNT,RV18,DEPARTMENT OF OPERATIONS,TRANSPORT RELATED EXPENDITURE,3,Vehicle Management,38,VEHICLE TRACKER CHARGES,3021,10/08/2017,589327,260.44 ,Revenue,UK TELEMATICS LIMITED,04203244
Fareham Borough Council,http://statistics.data.gov.uk/id/local-authority/24UE,OTHER REVENUE ACCOUNTS,RV,NON WORK GROUP HOLDING ACCOUNT,RV18,DEPARTMENT OF OPERATIONS,TRANSPORT RELATED EXPENDITURE,3,Vehicle Management,38,VEHICLE TRACKER CHARGES,3021,17/08/2017,591776,260.44 ,Revenue,UK TELEMATICS LIMITED,04203244
Fareham Borough Council,http://statistics.data.gov.uk/id/local-authority/24UE,OTHER REVENUE ACCOUNTS,RV,NON WORK GROUP HOLDING ACCOUNT,RV18,DEPARTMENT OF OPERATIONS,TRANSPORT RELATED EXPENDITURE,3,Vehicle Management,38,VEHICLE TRACKER CHARGES,3021,17/08/2017,591776,1363.48 ,Revenue,UK TELEMATICS LIMITED,04203244
Fareham Borough Council,http://statistics.data.gov.uk/id/local-authority/24UE,ENVIRONMENT AND REGULATORY SER,BV03,WASTE COLLECTION,BV03G,DEPARTMENT OF OPERATIONS,EMPLOYEES RELATED EXPENDITURE,1,Human Resources,26,AGENCY WORKERS,1050,17/08/2017,592319,597.60 ,Revenue,THE BEST CONNECTION GROUP LTD,2600534
Fareham Borough Council,http://statistics.data.gov.uk/id/local-authority/24UE,BALANCE SHEET,BS,BAL. SHEET - D.S.O.,BS1,BAL. SHEET - D.S.O.,TOTAL ASSETS LESS LIABILITIES,BS100,Vehicle Management,38,MATERIALS SUSPENSE ACCOUNT (VE,A016,10/08/2017,592595,12642.00 ,Balance Sheet,WESSEX PETROLEUM LTD,01024472
Fareham Borough Council,http://statistics.data.gov.uk/id/local-authority/24UE,CORPORATE & DEMOCRATIC CORE,BV07A,CORPORATE MANAGEMENT,BV07AB,DEPT of FINANCE and RESOURCES,SUPPLIES & SERVICES,4,Local/Central Government,98,GRAPHIC DESIGN SERVICE,4445,03/08/2017,592659,528.00 ,Revenue,PORTSMOUTH CITY COUNCIL,
Fareham Borough Council,http://statistics.data.gov.uk/id/local-authority/24UE,PLANNING SERVICES,BV13,ECONOMIC DEVELOPMENT,BV13E,DEPARTMENT OF OPERATIONS,SUPPLIES & SERVICES,4,Local/Central Government,98,GRAPHIC DESIGN SERVICE,4445,03/08/2017,592659,325.60 ,Revenue,PORTSMOUTH CITY COUNCIL,
Fareham Borough Council,http://statistics.data.gov.uk/id/local-authority/24UE,ENVIRONMENT AND REGULATORY SER,BV03,WASTE COLLECTION,BV03G,DEPARTMENT OF OPERATIONS,SUPPLIES & SERVICES,4,Local/Central Government,98,EXTERNAL PRINTING,4310,03/08/2017,592659,228.00 ,Revenue,PORTSMOUTH CITY COUNCIL,
Fareham Borough Council,http://statistics.data.gov.uk/id/local-authority/24UE,ENVIRONMENT AND REGULATORY SER,BV03,WASTE COLLECTION,BV03G,DEPARTMENT OF OPERATIONS,EMPLOYEES RELATED EXPENDITURE,1,Human Resources,26,AGENCY WORKERS,1050,03/08/2017,593045,597.60 ,Revenue,THE BEST CONNECTION GROUP LTD,2600534
Fareham Borough Council,http://statistics.data.gov.uk/id/local-authority/24UE,ENVIRONMENT AND REGULATORY SER,BV03,WASTE COLLECTION,BV03G,DEPARTMENT OF OPERATIONS,EMPLOYEES RELATED EXPENDITURE,1,Human Resources,26,AGENCY WORKERS,1050,03/08/2017,593046,532.80 ,Revenue,THE BEST CONNECTION GROUP LTD,2600534
Fareham Borough Council,http://statistics.data.gov.uk/id/local-authority/24UE,CAPITAL PROGRAMME - OTHER SERVICES,CP,SCHEMES FUNDED FROM BALANCES,CP20,CAPITAL - SCHEMES FUNDED FROM BALANCES,SUPPLIES & SERVICES,4,Consultancy,15,CONSULTANTS FEES,4401,24/08/2017,593059,4089.75 ,Capital,PICK EVERARD,
Fareham Borough Council,http://statistics.data.gov.uk/id/local-authority/24UE,OTHER REVENUE ACCOUNTS,RV,CONTRACT SERVICES D.S.O.,RV14,DEPT of STRATEGIC PLANNING and ENVIRONMENT,EMPLOYEES RELATED EXPENDITURE,1,Human Resources,26,AGENCY WORKERS,1050,03/08/2017,593092,1402.50 ,Revenue,HAYS SPECIALIST RECRUITMENT LTD,975677
Fareham Borough Council,http://statistics.data.gov.uk/id/local-authority/24UE,HIGHWAYS ROADS AND TRANSPORT,BV12,HIGHWAYS ROADS ROUTINE,BV12B,DEPARTMENT OF OPERATIONS,SUPPLIES & SERVICES,4,Highway Equipment & Materials�,23,FURNITURE & EQUIPT. MAINT.,4030,03/08/2017,593125,3001.00 ,Revenue,SIGNWAY SUPPLIES,01450039
Fareham Borough Council,http://statistics.data.gov.uk/id/local-authority/24UE,ENVIRONMENT AND REGULATORY SER,BV03,STREET CLEANSING,BV03F,DEPARTMENT OF OPERATIONS,SUPPLIES & SERVICES,4,Environmental Services,18,SUB-CONTRACTORS CHARGES,4432,10/08/2017,593128,550.00 ,Revenue,L&S WASTE MANAGEMENT LTD,03475329
Fareham Borough Council,http://statistics.data.gov.uk/id/local-authority/24UE,OTHER REVENUE ACCOUNTS,RV,CONTRACT SERVICES D.S.O.,RV14,DEPARTMENT OF OPERATIONS,SUPPLIES & SERVICES,4,Environmental Services,18,SUB-CONTRACTORS CHARGES,4432,10/08/2017,593128,375.00 ,Revenue,L&S WASTE MANAGEMENT LTD,03475329
Fareham Borough Council,http://statistics.data.gov.uk/id/local-authority/24UE,ENVIRONMENT AND REGULATORY SER,BV03,WASTE COLLECTION,BV03G,DEPARTMENT OF OPERATIONS,EMPLOYEES RELATED EXPENDITURE,1,Human Resources,26,AGENCY WORKERS,1050,17/08/2017,593132,6124.58 ,Revenue,BUZZ PEOPLE RECRUITMENT LTD,07908887
Fareham Borough Council,http://statistics.data.gov.uk/id/local-authority/24UE,ENVIRONMENT AND REGULATORY SER,BV03,WASTE COLLECTION,BV03G,DEPARTMENT OF OPERATIONS,EMPLOYEES RELATED EXPENDITURE,1,Human Resources,26,AGENCY WORKERS,1050,17/08/2017,593132,1122.31 ,Revenue,BUZZ PEOPLE RECRUITMENT LTD,07908887
Fareham Borough Council,http://statistics.data.gov.uk/id/local-authority/24UE,ENVIRONMENT AND REGULATORY SER,BV03,WASTE COLLECTION,BV03G,DEPARTMENT OF OPERATIONS,EMPLOYEES RELATED EXPENDITURE,1,Human Resources,26,AGENCY WORKERS,1050,17/08/2017,593132,6877.83 ,Revenue,BUZZ PEOPLE RECRUITMENT LTD,07908887
Fareham Borough Council,http://statistics.data.gov.uk/id/local-authority/24UE,ENVIRONMENT AND REGULATORY SER,BV03,WASTE COLLECTION,BV03G,DEPARTMENT OF OPERATIONS,EMPLOYEES RELATED EXPENDITURE,1,Human Resources,26,AGENCY WORKERS,1050,17/08/2017,593132,5215.60 ,Revenue,BUZZ PEOPLE RECRUITMENT LTD,07908887
Fareham Borough Council,http://statistics.data.gov.uk/id/local-authority/24UE,OTHER REVENUE ACCOUNTS,RV,NON WORK GROUP HOLDING ACCOUNT,RV18,DEPARTMENT OF OPERATIONS,SUPPLIES & SERVICES,4,Vehicle Management,38,MATERIALS (OPERATIONAL),4007,17/08/2017,593309,-43.65 ,Revenue,SPALDINGS (U K) LTD,01558147
Fareham Borough Council,http://statistics.data.gov.uk/id/local-authority/24UE,ENVIRONMENT AND REGULATORY SER,BV03,WASTE COLLECTION,BV03G,DEPARTMENT OF OPERATIONS,TRANSPORT RELATED EXPENDITURE,3,Vehicle Management,38,ROUTINE REPAIRS VEHICLES/PLANT,3010,17/08/2017,593323,6389.32 ,Revenue,MITCHELL DIESEL LTD,
Fareham Borough Council,http://statistics.data.gov.uk/id/local-authority/24UE,HOUSING REVENUE ACCOUNT,BV06,GENERAL ADMINISTRATION EXPENSE,5021,DEPARTMENT OF OPERATIONS,SUPPLIES & SERVICES,4,Facilities & Management Services,19,TENANT PARTICIPATION COSTS,4723,03/08/2017,593595,398.00 ,Revenue,BLACKMORE LTD,3260753
Fareham Borough Council,http://statistics.data.gov.uk/id/local-authority/24UE,HOUSING REVENUE ACCOUNT,BV06,GENERAL ADMINISTRATION EXPENSE,5021,DEPARTMENT OF OPERATIONS,SUPPLIES & SERVICES,4,Facilities & Management Services,19,TENANT PARTICIPATION COSTS,4723,03/08/2017,593595,314.00 ,Revenue,BLACKMORE LTD,3260753
Fareham Borough Council,http://statistics.data.gov.uk/id/local-authority/24UE,HOUSING REVENUE ACCOUNT,BV06,GENERAL ADMINISTRATION EXPENSE,5021,DEPARTMENT OF OPERATIONS,SUPPLIES & SERVICES,4,Facilities & Management Services,19,TENANT PARTICIPATION COSTS,4723,03/08/2017,593595,754.25 ,Revenue,BLACKMORE LTD,3260753
Fareham Borough Council,http://statistics.data.gov.uk/id/local-authority/24UE,HIGHWAYS ROADS AND TRANSPORT,BV12,TRAFFIC MANAGEMENT & RD SAFETY,BV12C,DEPARTMENT OF OPERATIONS,THIRD PARTY PAYMENTS,5,Facilities & Management Services,19,PRIVATE CONTRACTORS,5610,17/08/2017,593609,927.40 ,Revenue,HAMPSHIRE MEDIA LTD,4139403
Fareham Borough Council,http://statistics.data.gov.uk/id/local-authority/24UE,ENVIRONMENT AND REGULATORY SER,BV03,WASTE COLLECTION,BV03G,DEPARTMENT OF OPERATIONS,TRANSPORT RELATED EXPENDITURE,3,Vehicle Management,38,ROUTINE REPAIRS VEHICLES/PLANT,3010,17/08/2017,593611,118.68 ,Revenue,DENNIS EAGLE LIMITED,03794455
Fareham Borough Council,http://statistics.data.gov.uk/id/local-authority/24UE,ENVIRONMENT AND REGULATORY SER,BV03,WASTE COLLECTION,BV03G,DEPARTMENT OF OPERATIONS,TRANSPORT RELATED EXPENDITURE,3,Vehicle Management,38,ROUTINE REPAIRS VEHICLES/PLANT,3010,17/08/2017,593611,255.13 ,Revenue,DENNIS EAGLE LIMITED,03794455
Fareham Borough Council,http://statistics.data.gov.uk/id/local-authority/24UE,ENVIRONMENT AND REGULATORY SER,BV03,WASTE COLLECTION,BV03G,DEPARTMENT OF OPERATIONS,TRANSPORT RELATED EXPENDITURE,3,Vehicle Management,38,ROUTINE REPAIRS VEHICLES/PLANT,3010,17/08/2017,593611,255.13 ,Revenue,DENNIS EAGLE LIMITED,03794455
Fareham Borough Council,http://statistics.data.gov.uk/id/local-authority/24UE,ENVIRONMENT AND REGULATORY SER,BV03,WASTE COLLECTION,BV03G,DEPARTMENT OF OPERATIONS,TRANSPORT RELATED EXPENDITURE,3,Vehicle Management,38,ROUTINE REPAIRS VEHICLES/PLANT,3010,17/08/2017,593611,118.68 ,Revenue,DENNIS EAGLE LIMITED,03794455
Fareham Borough Council,http://statistics.data.gov.uk/id/local-authority/24UE,ENVIRONMENT AND REGULATORY SER,BV03,WASTE COLLECTION,BV03G,DEPARTMENT OF OPERATIONS,TRANSPORT RELATED EXPENDITURE,3,Vehicle Management,38,ROUTINE REPAIRS VEHICLES/PLANT,3010,17/08/2017,593611,255.13 ,Revenue,DENNIS EAGLE LIMITED,03794455
Fareham Borough Council,http://statistics.data.gov.uk/id/local-authority/24UE,ENVIRONMENT AND REGULATORY SER,BV03,WASTE COLLECTION,BV03G,DEPARTMENT OF OPERATIONS,TRANSPORT RELATED EXPENDITURE,3,Vehicle Management,38,ROUTINE REPAIRS VEHICLES/PLANT,3010,17/08/2017,593611,118.68 ,Revenue,DENNIS EAGLE LIMITED,03794455
Fareham Borough Council,http://statistics.data.gov.uk/id/local-authority/24UE,ENVIRONMENT AND REGULATORY SER,BV03,WASTE COLLECTION,BV03G,DEPARTMENT OF OPERATIONS,EMPLOYEES RELATED EXPENDITURE,1,Human Resources,26,AGENCY WORKERS,1050,17/08/2017,593617,662.40 ,Revenue,THE BEST CONNECTION GROUP LTD,2600534
Fareham Borough Council,http://statistics.data.gov.uk/id/local-authority/24UE,BALANCE SHEET,BS,BAL. SHEET - D.S.O.,BS1,BAL. SHEET - D.S.O.,TOTAL ASSETS LESS LIABILITIES,BS100,Vehicle Management,38,MATERIALS SUSPENSE ACCOUNT (VE,A016,10/08/2017,593641,11314.00 ,Balance Sheet,WESSEX PETROLEUM LTD,01024472
Fareham Borough Council,http://statistics.data.gov.uk/id/local-authority/24UE,HOUSING REVENUE ACCOUNT,BV06,RESPONSIVE & VOID MAINTENANCE,5901,DEPARTMENT OF OPERATIONS,SUPPLIES & SERVICES,4,Building Construction Materials,10,MATERIALS (OPERATIONAL),4007,10/08/2017,593644,-48.79 ,Revenue,WILTS ELECTRICAL WHOLESALERS,00679117
Fareham Borough Council,http://statistics.data.gov.uk/id/local-authority/24UE,HOUSING REVENUE ACCOUNT,BV06,RESPONSIVE & VOID MAINTENANCE,5901,DEPARTMENT OF OPERATIONS,PREMISES RELATED EXPENDITURE,2,Environmental Services,18,GENERAL REPAIRS,2018,03/08/2017,593661,550.00 ,Revenue,R H INSULATION SERVICES LIMITED,02062526
Fareham Borough Council,http://statistics.data.gov.uk/id/local-authority/24UE,HOUSING REVENUE ACCOUNT,BV06,RESPONSIVE & VOID MAINTENANCE,5901,DEPARTMENT OF OPERATIONS,PREMISES RELATED EXPENDITURE,2,Environmental Services,18,GENERAL REPAIRS,2018,03/08/2017,593662,550.00 ,Revenue,R H INSULATION SERVICES LIMITED,02062526
Fareham Borough Council,http://statistics.data.gov.uk/id/local-authority/24UE,HOUSING REVENUE ACCOUNT,BV06,RESPONSIVE & VOID MAINTENANCE,5901,DEPARTMENT OF OPERATIONS,PREMISES RELATED EXPENDITURE,2,Environmental Services,18,GENERAL REPAIRS,2018,03/08/2017,593663,550.00 ,Revenue,R H INSULATION SERVICES LIMITED,02062526
Fareham Borough Council,http://statistics.data.gov.uk/id/local-authority/24UE,OTHER REVENUE ACCOUNTS,RV,CONTRACT SERVICES D.S.O.,RV14,DEPT of STRATEGIC PLANNING and ENVIRONMENT,EMPLOYEES RELATED EXPENDITURE,1,Human Resources,26,AGENCY WORKERS,1050,10/08/2017,593692,1402.50 ,Revenue,HAYS SPECIALIST RECRUITMENT LTD,975677
Fareham Borough Council,http://statistics.data.gov.uk/id/local-authority/24UE,CAPITAL PROGRAMME - HOUSING SERVICES,CP,RENOVATION OF L.A. DWELLINGS,CP10,CAPITAL - IMPROVEMENTS WORK/MODERNIS'N,PREMISES RELATED EXPENDITURE,2,Utilities,37,R & M OF BUILDINGS,2000,03/08/2017,593697,603.00 ,Capital,SGN CONNECTIONS LIMITED,05618886
Fareham Borough Council,http://statistics.data.gov.uk/id/local-authority/24UE,OTHER REVENUE ACCOUNTS,RV,NON WORK GROUP HOLDING ACCOUNT,RV18,DEPT of FINANCE and RESOURCES,SUPPLIES & SERVICES,4,Information Communication Technology,27,FURNITURE & EQUIPT. PURCHASES,4000,03/08/2017,593841,491.25 ,Revenue,THE IT SUPPLIER,6514473
Fareham Borough Council,http://statistics.data.gov.uk/id/local-authority/24UE,OTHER REVENUE ACCOUNTS,RV,NON WORK GROUP HOLDING ACCOUNT,RV18,DEPT of FINANCE and RESOURCES,SUPPLIES & SERVICES,4,Information Communication Technology,27,FURNITURE & EQUIPT. PURCHASES,4000,03/08/2017,593841,101.25 ,Revenue,THE IT SUPPLIER,6514473
Fareham Borough Council,http://statistics.data.gov.uk/id/local-authority/24UE,OTHER REVENUE ACCOUNTS,RV,NON WORK GROUP HOLDING ACCOUNT,RV18,DEPT of FINANCE and RESOURCES,SUPPLIES & SERVICES,4,Information Communication Technology,27,FURNITURE & EQUIPT. PURCHASES,4000,03/08/2017,593841,405.00 ,Revenue,THE IT SUPPLIER,6514473
Fareham Borough Council,http://statistics.data.gov.uk/id/local-authority/24UE,OTHER REVENUE ACCOUNTS,RV,CONTRACT SERVICES D.S.O.,RV14,DEPARTMENT OF OPERATIONS,TRANSPORT RELATED EXPENDITURE,3,Vehicle Management,38,PURCHASE OF VEHICLES,3000,10/08/2017,593846,1575.00 ,Revenue,CARTERS OF SWANWICK LTD,6866052
Fareham Borough Council,http://statistics.data.gov.uk/id/local-authority/24UE,OTHER REVENUE ACCOUNTS,RV,NON WORK GROUP HOLDING ACCOUNT,RV18,DEPT of FINANCE and RESOURCES,SUPPLIES & SERVICES,4,Information Communication Technology,27,FURNITURE & EQUIPT.-RENTS/LSES,4040,10/08/2017,593870,3691.31 ,Revenue,ANNODATA LTD,2246366
Fareham Borough Council,http://statistics.data.gov.uk/id/local-authority/24UE,HIGHWAYS ROADS AND TRANSPORT,BV12,PUBLIC TRANSPORT,BV12E,DEPARTMENT OF OPERATIONS,PREMISES RELATED EXPENDITURE,2,Highway Equipment & Materials�,23,R & M OF BUILDINGS,2000,24/08/2017,593875,1064.80 ,Revenue,QUEENSBURY SHELTERS,3822195
Fareham Borough Council,http://statistics.data.gov.uk/id/local-authority/24UE,GENERAL FUND HOUSING,BV05,HOUSING ADVICE,BV05C,DEPARTMENT OF OPERATIONS,SUPPLIES & SERVICES,4,Information Communication Technology,27,MOBILE TELEPHONES,4514,17/08/2017,593879,30.90 ,Revenue,VODAFONE LIMITED,01471587
Fareham Borough Council,http://statistics.data.gov.uk/id/local-authority/24UE,GENERAL FUND HOUSING,BV05,HOUSING ADVICE,BV05C,DEPARTMENT OF OPERATIONS,SUPPLIES & SERVICES,4,Information Communication Technology,27,MOBILE TELEPHONES,4514,17/08/2017,593879,31.47 ,Revenue,VODAFONE LIMITED,01471587
Fareham Borough Council,http://statistics.data.gov.uk/id/local-authority/24UE,OTHER REVENUE ACCOUNTS,RV,NON WORK GROUP HOLDING ACCOUNT,RV18,DEPT of FINANCE and RESOURCES,SUPPLIES & SERVICES,4,Information Communication Technology,27,MOBILE TELEPHONES,4514,17/08/2017,593879,12976.00 ,Revenue,VODAFONE LIMITED,01471587
Fareham Borough Council,http://statistics.data.gov.uk/id/local-authority/24UE,GENERAL FUND HOUSING,BV05,OTHER COUNCIL PROPERTY,BV05K,DEPARTMENT OF OPERATIONS,SUPPLIES & SERVICES,4,Local/Central Government,,LEGAL FEES,4400,03/08/2017,593885,121.00 ,Revenue,SOUTHAMPTON CITY COUNCIL,
Fareham Borough Council,http://statistics.data.gov.uk/id/local-authority/24UE,GENERAL FUND HOUSING,BV05,HOUSING STRATEGY,BV05A,DEPARTMENT OF OPERATIONS,SUPPLIES & SERVICES,4,Local/Central Government,,LEGAL FEES,4400,03/08/2017,593885,27.00 ,Revenue,SOUTHAMPTON CITY COUNCIL,
Fareham Borough Council,http://statistics.data.gov.uk/id/local-authority/24UE,CULTURAL AND RELATED SERVICES,BV09,RECREATION AND SPORT,BV09B,DEPARTMENT OF OPERATIONS,SUPPLIES & SERVICES,4,Local/Central Government,,LEGAL FEES,4400,03/08/2017,593885,6.00 ,Revenue,SOUTHAMPTON CITY COUNCIL,
Fareham Borough Council,http://statistics.data.gov.uk/id/local-authority/24UE,CULTURAL AND RELATED SERVICES,BV09,RECREATION AND SPORT,BV09B,DEPARTMENT OF OPERATIONS,SUPPLIES & SERVICES,4,Local/Central Government,,LEGAL FEES,4400,03/08/2017,593885,12.00 ,Revenue,SOUTHAMPTON CITY COUNCIL,
Fareham Borough Council,http://statistics.data.gov.uk/id/local-authority/24UE,ENVIRONMENT AND REGULATORY SER,BV03,STREET CLEANSING,BV03F,DEPARTMENT OF OPERATIONS,SUPPLIES & SERVICES,4,Local/Central Government,,LEGAL FEES,4400,03/08/2017,593885,664.00 ,Revenue,SOUTHAMPTON CITY COUNCIL,
Fareham Borough Council,http://statistics.data.gov.uk/id/local-authority/24UE,PLANNING SERVICES,BV13,DEVELOPMENT CONTROL,BV13B,DEPT of STRATEGIC PLANNING and ENVIRONMENT,SUPPLIES & SERVICES,4,Local/Central Government,,LEGAL FEES,4400,03/08/2017,593885,100.00 ,Revenue,SOUTHAMPTON CITY COUNCIL,
Fareham Borough Council,http://statistics.data.gov.uk/id/local-authority/24UE,HOUSING REVENUE ACCOUNT,BV06,GENERAL ADMINISTRATION EXPENSE,5021,DEPARTMENT OF OPERATIONS,SUPPLIES & SERVICES,4,Local/Central Government,,LEGAL FEES,4400,03/08/2017,593885,6448.00 ,Revenue,SOUTHAMPTON CITY COUNCIL,
Fareham Borough Council,http://statistics.data.gov.uk/id/local-authority/24UE,OTHER REVENUE ACCOUNTS,RV,NON WORK GROUP HOLDING ACCOUNT,RV18,DEPT of FINANCE and RESOURCES,THIRD PARTY PAYMENTS,5,Local/Central Government,,SOUTHAMPTON-LEGAL SERVICES,5160,03/08/2017,593885,68200.00 ,Revenue,SOUTHAMPTON CITY COUNCIL,
Fareham Borough Council,http://statistics.data.gov.uk/id/local-authority/24UE,OTHER REVENUE ACCOUNTS,RV,NON WORK GROUP HOLDING ACCOUNT,RV18,DEPT of FINANCE and RESOURCES,THIRD PARTY PAYMENTS,5,Local/Central Government,,SOUTHAMPTON-LEGAL SERVICES,5160,03/08/2017,593885,148.20 ,Revenue,SOUTHAMPTON CITY COUNCIL,
Fareham Borough Council,http://statistics.data.gov.uk/id/local-authority/24UE,OTHER REVENUE ACCOUNTS,RV,NON WORK GROUP HOLDING ACCOUNT,RV18,DEPT of FINANCE and RESOURCES,THIRD PARTY PAYMENTS,5,Local/Central Government,,SOUTHAMPTON-LEGAL SERVICES,5160,03/08/2017,593885,187.50 ,Revenue,SOUTHAMPTON CITY COUNCIL,
Fareham Borough Council,http://statistics.data.gov.uk/id/local-authority/24UE,OTHER REVENUE ACCOUNTS,RV,NON WORK GROUP HOLDING ACCOUNT,RV18,DEPT of FINANCE and RESOURCES,THIRD PARTY PAYMENTS,5,Local/Central Government,,SOUTHAMPTON-LEGAL SERVICES,5160,03/08/2017,593885,1272.00 ,Revenue,SOUTHAMPTON CITY COUNCIL,
Fareham Borough Council,http://statistics.data.gov.uk/id/local-authority/24UE,OTHER REVENUE ACCOUNTS,RV,NON WORK GROUP HOLDING ACCOUNT,RV18,DEPT of FINANCE and RESOURCES,THIRD PARTY PAYMENTS,5,Local/Central Government,,SOUTHAMPTON-LEGAL SERVICES,5160,03/08/2017,593885,129.90 ,Revenue,SOUTHAMPTON CITY COUNCIL,
Fareham Borough Council,http://statistics.data.gov.uk/id/local-authority/24UE,OTHER REVENUE ACCOUNTS,RV,NON WORK GROUP HOLDING ACCOUNT,RV18,DEPT of FINANCE and RESOURCES,THIRD PARTY PAYMENTS,5,Local/Central Government,,SOUTHAMPTON-LEGAL SERVICES,5160,03/08/2017,593885,808.55 ,Revenue,SOUTHAMPTON CITY COUNCIL,
Fareham Borough Council,http://statistics.data.gov.uk/id/local-authority/24UE,HOUSING REVENUE ACCOUNT,BV06,RESPONSIVE & VOID MAINTENANCE,5901,DEPARTMENT OF OPERATIONS,PREMISES RELATED EXPENDITURE,2,"Works - Construction, Repair & Maintenance",39,VOID COSTS - NOT RECHARGEABLE,2011,02/08/2017,594282,2250.00 ,Revenue,BEAVEN GROUNDWORKS,
Fareham Borough Council,http://statistics.data.gov.uk/id/local-authority/24UE,HOUSING REVENUE ACCOUNT,BV06,RESPONSIVE & VOID MAINTENANCE,5901,DEPARTMENT OF OPERATIONS,PREMISES RELATED EXPENDITURE,2,"Works - Construction, Repair & Maintenance",39,VOID COSTS - NOT RECHARGEABLE,2011,02/08/2017,594283,3960.00 ,Revenue,BEAVEN GROUNDWORKS,
Fareham Borough Council,http://statistics.data.gov.uk/id/local-authority/24UE,HOUSING REVENUE ACCOUNT,BV06,RESPONSIVE & VOID MAINTENANCE,5901,DEPARTMENT OF OPERATIONS,PREMISES RELATED EXPENDITURE,2,"Works - Construction, Repair & Maintenance",39,VOID COSTS - NOT RECHARGEABLE,2011,02/08/2017,594284,5200.00 ,Revenue,BEAVEN GROUNDWORKS,
Fareham Borough Council,http://statistics.data.gov.uk/id/local-authority/24UE,CAPITAL PROGRAMME - HOUSING SERVICES,CP,RENOVATION OF L.A. DWELLINGS,CP10,CAPITAL - IMPROVEMENTS WORK/MODERNIS'N,PREMISES RELATED EXPENDITURE,2,Utilities,37,R & M OF BUILDINGS,2000,03/08/2017,594286,-603.00 ,Capital,SGN CONNECTIONS LIMITED,05618886
Fareham Borough Council,http://statistics.data.gov.uk/id/local-authority/24UE,CAPITAL PROGRAMME - OTHER SERVICES,CP,SCHEMES FUNDED FROM BALANCES,CP20,CAPITAL - SCHEMES FUNDED FROM BALANCES,PREMISES RELATED EXPENDITURE,2,Utilities,37,R & M OF BUILDINGS,2000,03/08/2017,594288,144991.60 ,Capital,SOUTHERN ELECTRIC POWER DISTRIBUTION PLC,04094290
Fareham Borough Council,http://statistics.data.gov.uk/id/local-authority/24UE,CAPITAL PROGRAMME - OTHER SERVICES,CP,SCHEMES FUNDED FROM BALANCES,CP20,CAPITAL - SCHEMES FUNDED FROM BALANCES,PREMISES RELATED EXPENDITURE,2,Utilities,37,R & M OF BUILDINGS,2000,03/08/2017,594299,-144991.60 ,Capital,SOUTHERN ELECTRIC POWER DISTRIBUTION PLC,04094290
Fareham Borough Council,http://statistics.data.gov.uk/id/local-authority/24UE,HOUSING REVENUE ACCOUNT,BV06,RESPONSIVE & VOID MAINTENANCE,5901,DEPARTMENT OF OPERATIONS,PREMISES RELATED EXPENDITURE,2,"Works - Construction, Repair & Maintenance",39,VOID COSTS - NOT RECHARGEABLE,2011,02/08/2017,594305,-156.92 ,Revenue,BEAVEN GROUNDWORKS,
Fareham Borough Council,http://statistics.data.gov.uk/id/local-authority/24UE,HOUSING REVENUE ACCOUNT,BV06,RESPONSIVE & VOID MAINTENANCE,5901,DEPARTMENT OF OPERATIONS,PREMISES RELATED EXPENDITURE,2,"Works - Construction, Repair & Maintenance",39,VOID COSTS - NOT RECHARGEABLE,2011,02/08/2017,594306,-2250.00 ,Revenue,BEAVEN GROUNDWORKS,
Fareham Borough Council,http://statistics.data.gov.uk/id/local-authority/24UE,HOUSING REVENUE ACCOUNT,BV06,RESPONSIVE & VOID MAINTENANCE,5901,DEPARTMENT OF OPERATIONS,PREMISES RELATED EXPENDITURE,2,"Works - Construction, Repair & Maintenance",39,VOID COSTS - NOT RECHARGEABLE,2011,02/08/2017,594307,-3960.00 ,Revenue,BEAVEN GROUNDWORKS,
Fareham Borough Council,http://statistics.data.gov.uk/id/local-authority/24UE,HOUSING REVENUE ACCOUNT,BV06,RESPONSIVE & VOID MAINTENANCE,5901,DEPARTMENT OF OPERATIONS,PREMISES RELATED EXPENDITURE,2,"Works - Construction, Repair & Maintenance",39,VOID COSTS - NOT RECHARGEABLE,2011,02/08/2017,594308,-5200.00 ,Revenue,BEAVEN GROUNDWORKS,
Fareham Borough Council,http://statistics.data.gov.uk/id/local-authority/24UE,HOUSING REVENUE ACCOUNT,BV06,RESPONSIVE & VOID MAINTENANCE,5901,DEPARTMENT OF OPERATIONS,PREMISES RELATED EXPENDITURE,2,"Works - Construction, Repair & Maintenance",39,VOID COSTS - NOT RECHARGEABLE,2011,02/08/2017,594309,-213.76 ,Revenue,BEAVEN GROUNDWORKS,
Fareham Borough Council,http://statistics.data.gov.uk/id/local-authority/24UE,HOUSING REVENUE ACCOUNT,BV06,RESPONSIVE & VOID MAINTENANCE,5901,DEPARTMENT OF OPERATIONS,PREMISES RELATED EXPENDITURE,2,"Works - Construction, Repair & Maintenance",39,VOID COSTS - NOT RECHARGEABLE,2011,03/08/2017,594311,1195.68 ,Revenue,BEAVEN GROUNDWORKS,
Fareham Borough Council,http://statistics.data.gov.uk/id/local-authority/24UE,HOUSING REVENUE ACCOUNT,BV06,RESPONSIVE & VOID MAINTENANCE,5901,DEPARTMENT OF OPERATIONS,PREMISES RELATED EXPENDITURE,2,"Works - Construction, Repair & Maintenance",39,VOID COSTS - NOT RECHARGEABLE,2011,03/08/2017,594311,4004.32 ,Revenue,BEAVEN GROUNDWORKS,
Fareham Borough Council,http://statistics.data.gov.uk/id/local-authority/24UE,HOUSING REVENUE ACCOUNT,BV06,RESPONSIVE & VOID MAINTENANCE,5901,DEPARTMENT OF OPERATIONS,PREMISES RELATED EXPENDITURE,2,"Works - Construction, Repair & Maintenance",39,VOID COSTS - NOT RECHARGEABLE,2011,03/08/2017,594313,552.00 ,Revenue,BEAVEN GROUNDWORKS,
Fareham Borough Council,http://statistics.data.gov.uk/id/local-authority/24UE,HOUSING REVENUE ACCOUNT,BV06,RESPONSIVE & VOID MAINTENANCE,5901,DEPARTMENT OF OPERATIONS,PREMISES RELATED EXPENDITURE,2,"Works - Construction, Repair & Maintenance",39,VOID COSTS - NOT RECHARGEABLE,2011,03/08/2017,594313,1698.00 ,Revenue,BEAVEN GROUNDWORKS,
Fareham Borough Council,http://statistics.data.gov.uk/id/local-authority/24UE,HOUSING REVENUE ACCOUNT,BV06,RESPONSIVE & VOID MAINTENANCE,5901,DEPARTMENT OF OPERATIONS,PREMISES RELATED EXPENDITURE,2,"Works - Construction, Repair & Maintenance",39,VOID COSTS - NOT RECHARGEABLE,2011,03/08/2017,594314,1353.80 ,Revenue,BEAVEN GROUNDWORKS,
Fareham Borough Council,http://statistics.data.gov.uk/id/local-authority/24UE,HOUSING REVENUE ACCOUNT,BV06,RESPONSIVE & VOID MAINTENANCE,5901,DEPARTMENT OF OPERATIONS,PREMISES RELATED EXPENDITURE,2,"Works - Construction, Repair & Maintenance",39,VOID COSTS - NOT RECHARGEABLE,2011,03/08/2017,594314,2606.20 ,Revenue,BEAVEN GROUNDWORKS,
Fareham Borough Council,http://statistics.data.gov.uk/id/local-authority/24UE,CORPORATE & DEMOCRATIC CORE,BV07A,DEMOCRATIC REP.& MANAGEMENT,BV07AA,DEPT of FINANCE and RESOURCES,SUPPLIES & SERVICES,4,Information Communication Technology,27,INTERNET RENTAL ALLOWANCE,4627,03/08/2017,594317,172.39 ,Revenue,BT PLC,1800000
Fareham Borough Council,http://statistics.data.gov.uk/id/local-authority/24UE,FINANCING & INVESTMENT I&E,BVB02,INVESTMENT PROPERTIES,BVB170,DEPT of FINANCE and RESOURCES,SUPPLIES & SERVICES,4,Information Communication Technology,27,TELEPHONES,4510,03/08/2017,594317,176.34 ,Revenue,BT PLC,1800000
Fareham Borough Council,http://statistics.data.gov.uk/id/local-authority/24UE,ENVIRONMENT AND REGULATORY SER,BV03,ENVIRONMENTAL HEALTH,BV03C,DEPARTMENT OF OPERATIONS,SUPPLIES & SERVICES,4,Information Communication Technology,27,FURNITURE & EQUIPT. MAINT.,4030,03/08/2017,594317,23.70 ,Revenue,BT PLC,1800000
Fareham Borough Council,http://statistics.data.gov.uk/id/local-authority/24UE,CENTRAL SERVICES,BV07,CENTRAL SERVICES TO THE PUBLIC,BV07B,DEPARTMENT OF OPERATIONS,SUPPLIES & SERVICES,4,Information Communication Technology,27,TELEPHONES,4510,03/08/2017,594317,91.64 ,Revenue,BT PLC,1800000
Fareham Borough Council,http://statistics.data.gov.uk/id/local-authority/24UE,PLANNING SERVICES,BV13,ECONOMIC DEVELOPMENT,BV13E,DEPARTMENT OF OPERATIONS,SUPPLIES & SERVICES,4,Information Communication Technology,27,TELEPHONES,4510,03/08/2017,594317,23.70 ,Revenue,BT PLC,1800000
Fareham Borough Council,http://statistics.data.gov.uk/id/local-authority/24UE,CULTURAL AND RELATED SERVICES,BV09,CULTURE AND HERITAGE,BV09A,DEPARTMENT OF OPERATIONS,SUPPLIES & SERVICES,4,Information Communication Technology,27,TELEPHONES,4510,03/08/2017,594317,63.27 ,Revenue,BT PLC,1800000
Fareham Borough Council,http://statistics.data.gov.uk/id/local-authority/24UE,CULTURAL AND RELATED SERVICES,BV09,RECREATION AND SPORT,BV09B,DEPARTMENT OF OPERATIONS,SUPPLIES & SERVICES,4,Information Communication Technology,27,TELEPHONES,4510,03/08/2017,594317,35.68 ,Revenue,BT PLC,1800000
Fareham Borough Council,http://statistics.data.gov.uk/id/local-authority/24UE,HIGHWAYS ROADS AND TRANSPORT,BV12,PARKING SERVICES,BV12D,DEPARTMENT OF OPERATIONS,SUPPLIES & SERVICES,4,Information Communication Technology,27,TELEPHONES,4510,03/08/2017,594317,271.17 ,Revenue,BT PLC,1800000
Fareham Borough Council,http://statistics.data.gov.uk/id/local-authority/24UE,HOUSING REVENUE ACCOUNT,BV06,SHELTERED HOUSING SERVICE,5031,DEPARTMENT OF OPERATIONS,SUPPLIES & SERVICES,4,Information Communication Technology,27,TELEPHONES (WARDENS & COMM'L),4511,03/08/2017,594317,698.38 ,Revenue,BT PLC,1800000
Fareham Borough Council,http://statistics.data.gov.uk/id/local-authority/24UE,HOUSING REVENUE ACCOUNT,BV06,SHELTERED HOUSING SERVICE,5031,DEPARTMENT OF OPERATIONS,PREMISES RELATED EXPENDITURE,2,Information Communication Technology,27,R & M ALARM SPEECH SYSTEMS,2027,03/08/2017,594317,469.46 ,Revenue,BT PLC,1800000
Fareham Borough Council,http://statistics.data.gov.uk/id/local-authority/24UE,CAPITAL PROGRAMME - HOUSING SERVICES,CP,RENOVATION OF L.A. DWELLINGS,CP10,CAPITAL - IMPROVEMENTS WORK/MODERNIS'N,SUPPLIES & SERVICES,4,Information Communication Technology,27,TELEPHONES (WARDENS & COMM'L),4511,03/08/2017,594317,44.50 ,Capital,BT PLC,1800000
Fareham Borough Council,http://statistics.data.gov.uk/id/local-authority/24UE,OTHER REVENUE ACCOUNTS,RV,NON WORK GROUP HOLDING ACCOUNT,RV18,DEPT of FINANCE and RESOURCES,SUPPLIES & SERVICES,4,Information Communication Technology,27,TELEPHONES,4510,03/08/2017,594317,23.70 ,Revenue,BT PLC,1800000
Fareham Borough Council,http://statistics.data.gov.uk/id/local-authority/24UE,OTHER REVENUE ACCOUNTS,RV,NON WORK GROUP HOLDING ACCOUNT,RV18,DEPT of FINANCE and RESOURCES,SUPPLIES & SERVICES,4,Information Communication Technology,27,TELEPHONES,4510,03/08/2017,594317,2952.82 ,Revenue,BT PLC,1800000
Fareham Borough Council,http://statistics.data.gov.uk/id/local-authority/24UE,CAPITAL PROGRAMME - HOUSING SERVICES,CP,HOUSE RENOVATION GRANTS,CP11,CAPITAL - HOUSE RENOVATION GRANTS,SUPPLIES & SERVICES,4,Unclassified,,GRANTS AND SUBSCRIPTIONS,4700,17/08/2017,594321,4910.00 ,Capital,LUXURIA PROPERTY LTD,
Fareham Borough Council,http://statistics.data.gov.uk/id/local-authority/24UE,OTHER REVENUE ACCOUNTS,RV,CONTRACT SERVICES D.S.O.,RV14,DEPT of STRATEGIC PLANNING and ENVIRONMENT,SUPPLIES & SERVICES,4,Local/Central Government,,SUB-CONTRACTORS CHARGES,4432,03/08/2017,594323,1704.80 ,Revenue,BASINGSTOKE and DEANE BOROUGH COUNCIL,
Fareham Borough Council,http://statistics.data.gov.uk/id/local-authority/24UE,CAPITAL PROGRAMME - HOUSING SERVICES,CP,HOUSE RENOVATION GRANTS,CP11,CAPITAL - HOUSE RENOVATION GRANTS,SUPPLIES & SERVICES,4,"Works - Construction, Repair & Maintenance",39,GRANTS AND SUBSCRIPTIONS,4700,03/08/2017,594329,9000.00 ,Capital,KEMP BUILDERS,
Fareham Borough Council,http://statistics.data.gov.uk/id/local-authority/24UE,CENTRAL SERVICES,BV07,CENTRAL SERVICES TO THE PUBLIC,BV07B,DEPARTMENT OF OPERATIONS,SUPPLIES & SERVICES,4,Financial Services,20,GRANTS AND SUBSCRIPTIONS,4700,03/08/2017,594330,3230.00 ,Revenue,TITCHFIELD COMMUNITY ASSOCIATION,05372712
Fareham Borough Council,http://statistics.data.gov.uk/id/local-authority/24UE,CAPITAL PROGRAMME - OTHER SERVICES,CP,SCHEMES FUNDED FROM BALANCES,CP20,CAPITAL - SCHEMES FUNDED FROM BALANCES,PREMISES RELATED EXPENDITURE,2,Utilities,37,R & M OF BUILDINGS,2000,03/08/2017,594333,144991.60 ,Capital,SOUTHERN ELECTRIC POWER DISTRIBUTION PLC,04094290
Fareham Borough Council,http://statistics.data.gov.uk/id/local-authority/24UE,OTHER REVENUE ACCOUNTS,RV,CONTRACT SERVICES D.S.O.,RV14,DEPT of STRATEGIC PLANNING and ENVIRONMENT,SUPPLIES & SERVICES,4,Local/Central Government,98,SUB-CONTRACTORS CHARGES,4432,03/08/2017,594339,1024.50 ,Revenue,HAVANT BOROUGH COUNCIL,
Fareham Borough Council,http://statistics.data.gov.uk/id/local-authority/24UE,HOUSING REVENUE ACCOUNT,BV06,RESPONSIVE & VOID MAINTENANCE,5901,DEPARTMENT OF OPERATIONS,PREMISES RELATED EXPENDITURE,2,"Works - Construction, Repair & Maintenance",39,GENERAL REPAIRS,2018,03/08/2017,594341,6520.04 ,Revenue,BCG ELECTRICAL SERVICES LIMITED,5097428
Fareham Borough Council,http://statistics.data.gov.uk/id/local-authority/24UE,PLANNING SERVICES,BV13,PLANNING POLICY,BV13C,DEPT of STRATEGIC PLANNING and ENVIRONMENT,EMPLOYEES RELATED EXPENDITURE,1,Unclassified,,RELOCATION EXPENSES,1900,03/08/2017,594344,554.80 ,Revenue,redacted personal data,
Fareham Borough Council,http://statistics.data.gov.uk/id/local-authority/24UE,BALANCE SHEET,BS,BAL. SHEET - GENERAL FUND,BS1,BAL. SHEET - GENERAL FUND,BALANCES & RESERVES,BS190,Building Construction Materials,10,RECHARGE WRK SUSP. - INS.,E614,03/08/2017,594351,5501.84 ,Balance Sheet,CADE ROOFING & BUILDING SERVICES LTD,02795780
Fareham Borough Council,http://statistics.data.gov.uk/id/local-authority/24UE,OTHER REVENUE ACCOUNTS,RV,CONTRACT SERVICES D.S.O.,RV14,DEPARTMENT OF OPERATIONS,EMPLOYEES RELATED EXPENDITURE,1,Human Resources,26,AGENCY WORKERS,1050,24/08/2017,594354,505.61 ,Revenue,OFFICE ANGELS LTD,1985032
Fareham Borough Council,http://statistics.data.gov.uk/id/local-authority/24UE,OTHER REVENUE ACCOUNTS,RV,NON WORK GROUP HOLDING ACCOUNT,RV18,DEPT of FINANCE and RESOURCES,EMPLOYEES RELATED EXPENDITURE,1,Financial Services,20,AGENCY WORKERS,1050,03/08/2017,594355,896.00 ,Revenue,COMPLETE CASH MANAGEMENT LIMITED,08067814
Fareham Borough Council,http://statistics.data.gov.uk/id/local-authority/24UE,OTHER REVENUE ACCOUNTS,RV,NON WORK GROUP HOLDING ACCOUNT,RV18,DEPT of FINANCE and RESOURCES,EMPLOYEES RELATED EXPENDITURE,1,Financial Services,20,AGENCY WORKERS,1050,03/08/2017,594355,1295.00 ,Revenue,COMPLETE CASH MANAGEMENT LIMITED,08067814
Fareham Borough Council,http://statistics.data.gov.uk/id/local-authority/24UE,CAPITAL PROGRAMME - OTHER SERVICES,CP,SCHEMES FUNDED FROM BALANCES,CP20,CAPITAL - SCHEMES FUNDED FROM BALANCES,SUPPLIES & SERVICES,4,Consultancy,15,CONSULTANTS FEES,4401,03/08/2017,594356,1310.00 ,Capital,BAQUS GROUP PLC,6013357
Fareham Borough Council,http://statistics.data.gov.uk/id/local-authority/24UE,CULTURAL AND RELATED SERVICES,BV09,CULTURE AND HERITAGE,BV09A,DEPARTMENT OF OPERATIONS,SUPPLIES & SERVICES,4,Financial Services,20,SECURITY SERVICES,4409,03/08/2017,594357,39.36 ,Revenue,KEYLINE CHARTERED SECURITY LTD,3754578
Fareham Borough Council,http://statistics.data.gov.uk/id/local-authority/24UE,HIGHWAYS ROADS AND TRANSPORT,BV12,PARKING SERVICES,BV12D,DEPARTMENT OF OPERATIONS,SUPPLIES & SERVICES,4,Financial Services,20,SECURITY SERVICES,4409,03/08/2017,594357,4402.88 ,Revenue,KEYLINE CHARTERED SECURITY LTD,3754578
Fareham Borough Council,http://statistics.data.gov.uk/id/local-authority/24UE,OTHER REVENUE ACCOUNTS,RV,NON WORK GROUP HOLDING ACCOUNT,RV18,DEPT of FINANCE and RESOURCES,SUPPLIES & SERVICES,4,Financial Services,20,SECURITY SERVICES,4409,03/08/2017,594357,39.37 ,Revenue,KEYLINE CHARTERED SECURITY LTD,3754578
Fareham Borough Council,http://statistics.data.gov.uk/id/local-authority/24UE,PLANNING SERVICES,BV13,PLANNING POLICY,BV13C,DEPT of STRATEGIC PLANNING and ENVIRONMENT,SUPPLIES & SERVICES,4,Art & Leisure Services,29,CONSULTANTS FEES,4401,03/08/2017,594362,200.00 ,Revenue,4 GLOBAL CONSULTING,4574194
Fareham Borough Council,http://statistics.data.gov.uk/id/local-authority/24UE,PLANNING SERVICES,BV13,PLANNING POLICY,BV13C,DEPT of STRATEGIC PLANNING and ENVIRONMENT,SUPPLIES & SERVICES,4,Art & Leisure Services,29,CONSULTANTS FEES,4401,03/08/2017,594362,8319.00 ,Revenue,4 GLOBAL CONSULTING,4574194
Fareham Borough Council,http://statistics.data.gov.uk/id/local-authority/24UE,OTHER REVENUE ACCOUNTS,RV,CONTRACT SERVICES D.S.O.,RV14,DEPARTMENT OF OPERATIONS,EMPLOYEES RELATED EXPENDITURE,1,Human Resources,26,AGENCY WORKERS,1050,17/08/2017,594365,505.61 ,Revenue,OFFICE ANGELS LTD,1985032
Fareham Borough Council,http://statistics.data.gov.uk/id/local-authority/24UE,OTHER REVENUE ACCOUNTS,RV,CONTRACT SERVICES D.S.O.,RV14,DEPARTMENT OF OPERATIONS,EMPLOYEES RELATED EXPENDITURE,1,Human Resources,26,AGENCY WORKERS,1050,17/08/2017,594366,520.75 ,Revenue,THE BEST CONNECTION GROUP LTD,2600534
Fareham Borough Council,http://statistics.data.gov.uk/id/local-authority/24UE,OTHER REVENUE ACCOUNTS,RV,NON WORK GROUP HOLDING ACCOUNT,RV18,DEPT of FINANCE and RESOURCES,EMPLOYEES RELATED EXPENDITURE,1,Healthcare,31,MEDICAL EXPENSES,1907,03/08/2017,594373,810.00 ,Revenue,OCCUPATIONAL HEALTH 1ST,7836183
Fareham Borough Council,http://statistics.data.gov.uk/id/local-authority/24UE,CORPORATE & DEMOCRATIC CORE,BV07A,CORPORATE MANAGEMENT,BV07AB,DEPT of FINANCE and RESOURCES,EMPLOYEES RELATED EXPENDITURE,1,Consultancy,15,AGENCY WORKERS,1050,03/08/2017,594376,1140.18 ,Revenue,BRISCOE FRENCH COMMUNICATIONS LTD,07726824
Fareham Borough Council,http://statistics.data.gov.uk/id/local-authority/24UE,CORPORATE & DEMOCRATIC CORE,BV07A,CORPORATE MANAGEMENT,BV07AB,DEPT of FINANCE and RESOURCES,SUPPLIES & SERVICES,4,Facilities & Management Services,19,EXTERNAL PRINTING,4310,03/08/2017,594377,672.00 ,Revenue,RAP INDUSTRIES LTD,1225443
Fareham Borough Council,http://statistics.data.gov.uk/id/local-authority/24UE,CORPORATE & DEMOCRATIC CORE,BV07A,CORPORATE MANAGEMENT,BV07AB,DEPT of FINANCE and RESOURCES,SUPPLIES & SERVICES,4,Facilities & Management Services,19,EXTERNAL PRINTING,4310,03/08/2017,594377,37.00 ,Revenue,RAP INDUSTRIES LTD,1225443
Fareham Borough Council,http://statistics.data.gov.uk/id/local-authority/24UE,CORPORATE & DEMOCRATIC CORE,BV07A,CORPORATE MANAGEMENT,BV07AB,DEPT of FINANCE and RESOURCES,SUPPLIES & SERVICES,4,Facilities & Management Services,19,EXTERNAL PRINTING,4310,03/08/2017,594377,97.00 ,Revenue,RAP INDUSTRIES LTD,1225443
Fareham Borough Council,http://statistics.data.gov.uk/id/local-authority/24UE,CULTURAL AND RELATED SERVICES,BV09,CULTURE AND HERITAGE,BV09A,DEPARTMENT OF OPERATIONS,SUPPLIES & SERVICES,4,Art & Leisure Services,29,PROMOTER,4916,03/08/2017,594380,3667.46 ,Revenue,RIVIERA ENTERTAINMENTS LIMITED,4047599
Fareham Borough Council,http://statistics.data.gov.uk/id/local-authority/24UE,CULTURAL AND RELATED SERVICES,BV09,CULTURE AND HERITAGE,BV09A,DEPARTMENT OF OPERATIONS,SUPPLIES & SERVICES,4,Art & Leisure Services,29,PERFORMING RIGHTS SOCIETY,4717,03/08/2017,594381,2391.00 ,Revenue,PERFORMING RIGHT SOCIETY LTD,00134396
Fareham Borough Council,http://statistics.data.gov.uk/id/local-authority/24UE,OTHER REVENUE ACCOUNTS,RV,NON WORK GROUP HOLDING ACCOUNT,RV18,DEPT of FINANCE and RESOURCES,SUPPLIES & SERVICES,4,Information Communication Technology,27,FURNITURE & EQUIPT. MAINT.,4030,10/08/2017,594382,553.22 ,Revenue,BLUE CHIP DATA SYSTEMS LTD,02708840
Fareham Borough Council,http://statistics.data.gov.uk/id/local-authority/24UE,OTHER REVENUE ACCOUNTS,RV,NON WORK GROUP HOLDING ACCOUNT,RV18,DEPT of FINANCE and RESOURCES,SUPPLIES & SERVICES,4,Information Communication Technology,27,FURNITURE & EQUIPT. MAINT.,4030,10/08/2017,594383,520.30 ,Revenue,BLUE CHIP DATA SYSTEMS LTD,02708840
Fareham Borough Council,http://statistics.data.gov.uk/id/local-authority/24UE,CAPITAL PROGRAMME - OTHER SERVICES,CP,COMPUTER APPROVED,CP23,CAPITAL - COMPUTER APPROVED,SUPPLIES & SERVICES,4,Information Communication Technology,27,FURNITURE & EQUIPT. PURCHASES,4000,17/08/2017,594385,2193.00 ,Capital,DELL COMPUTER CORPORATION LTD,2081369
Fareham Borough Council,http://statistics.data.gov.uk/id/local-authority/24UE,PLANNING SERVICES,BV13,COMMUNITY DEVELOPMENT,BV13H,DEPARTMENT OF OPERATIONS,SUPPLIES & SERVICES,4,Art & Leisure Services,29,FURNITURE & EQUIPT. PURCHASES,4000,03/08/2017,594387,895.00 ,Revenue,Y SERVICES FOR YOUNG PEOPLE,07530223
Fareham Borough Council,http://statistics.data.gov.uk/id/local-authority/24UE,HOUSING REVENUE ACCOUNT,BV06,GENERAL ADMINISTRATION EXPENSE,5021,DEPARTMENT OF OPERATIONS,SUPPLIES & SERVICES,4,Financial Services,20,PAYMENT CARD CHARGES,4411,03/08/2017,594388,1021.97 ,Revenue,ALLPAY LIMITED,02933191
Fareham Borough Council,http://statistics.data.gov.uk/id/local-authority/24UE,OTHER REVENUE ACCOUNTS,RV,NON WORK GROUP HOLDING ACCOUNT,RV18,DEPT of FINANCE and RESOURCES,PREMISES RELATED EXPENDITURE,2,"Works - Construction, Repair & Maintenance",39,R & M OF FIXED PLANT,2040,03/08/2017,594395,1937.50 ,Revenue,P & I GENERATORS LTD,05717392
Fareham Borough Council,http://statistics.data.gov.uk/id/local-authority/24UE,CAPITAL PROGRAMME - HOUSING SERVICES,CP,RENOVATION OF L.A. DWELLINGS,CP10,CAPITAL - ENERGY CONSERVATION,PREMISES RELATED EXPENDITURE,2,Consultancy,15,R & M OF BUILDINGS,2000,10/08/2017,594406,38.00 ,Capital,GAS CONTRACT SERVICES LIMITED,3400365
Fareham Borough Council,http://statistics.data.gov.uk/id/local-authority/24UE,CAPITAL PROGRAMME - HOUSING SERVICES,CP,RENOVATION OF L.A. DWELLINGS,CP10,CAPITAL - ENERGY CONSERVATION,PREMISES RELATED EXPENDITURE,2,Consultancy,15,R & M OF BUILDINGS,2000,10/08/2017,594406,38.00 ,Capital,GAS CONTRACT SERVICES LIMITED,3400365
Fareham Borough Council,http://statistics.data.gov.uk/id/local-authority/24UE,CAPITAL PROGRAMME - HOUSING SERVICES,CP,RENOVATION OF L.A. DWELLINGS,CP10,CAPITAL - ENERGY CONSERVATION,PREMISES RELATED EXPENDITURE,2,Consultancy,15,R & M OF BUILDINGS,2000,10/08/2017,594406,38.00 ,Capital,GAS CONTRACT SERVICES LIMITED,3400365
Fareham Borough Council,http://statistics.data.gov.uk/id/local-authority/24UE,CAPITAL PROGRAMME - HOUSING SERVICES,CP,RENOVATION OF L.A. DWELLINGS,CP10,CAPITAL - ENERGY CONSERVATION,PREMISES RELATED EXPENDITURE,2,Consultancy,15,R & M OF BUILDINGS,2000,10/08/2017,594406,38.00 ,Capital,GAS CONTRACT SERVICES LIMITED,3400365
Fareham Borough Council,http://statistics.data.gov.uk/id/local-authority/24UE,HOUSING REVENUE ACCOUNT,BV06,RESPONSIVE & VOID MAINTENANCE,5901,DEPARTMENT OF OPERATIONS,PREMISES RELATED EXPENDITURE,2,Consultancy,15,GAS SERVICING & ASSOC REPAIRS,2029,10/08/2017,594406,38.00 ,Revenue,GAS CONTRACT SERVICES LIMITED,3400365
Fareham Borough Council,http://statistics.data.gov.uk/id/local-authority/24UE,HOUSING REVENUE ACCOUNT,BV06,RESPONSIVE & VOID MAINTENANCE,5901,DEPARTMENT OF OPERATIONS,PREMISES RELATED EXPENDITURE,2,Consultancy,15,GAS SERVICING & ASSOC REPAIRS,2029,10/08/2017,594406,38.00 ,Revenue,GAS CONTRACT SERVICES LIMITED,3400365
Fareham Borough Council,http://statistics.data.gov.uk/id/local-authority/24UE,HOUSING REVENUE ACCOUNT,BV06,RESPONSIVE & VOID MAINTENANCE,5901,DEPARTMENT OF OPERATIONS,PREMISES RELATED EXPENDITURE,2,Consultancy,15,GAS SERVICING & ASSOC REPAIRS,2029,10/08/2017,594406,38.00 ,Revenue,GAS CONTRACT SERVICES LIMITED,3400365
Fareham Borough Council,http://statistics.data.gov.uk/id/local-authority/24UE,HOUSING REVENUE ACCOUNT,BV06,RESPONSIVE & VOID MAINTENANCE,5901,DEPARTMENT OF OPERATIONS,PREMISES RELATED EXPENDITURE,2,Consultancy,15,GAS SERVICING & ASSOC REPAIRS,2029,10/08/2017,594406,38.00 ,Revenue,GAS CONTRACT SERVICES LIMITED,3400365
Fareham Borough Council,http://statistics.data.gov.uk/id/local-authority/24UE,HOUSING REVENUE ACCOUNT,BV06,RESPONSIVE & VOID MAINTENANCE,5901,DEPARTMENT OF OPERATIONS,PREMISES RELATED EXPENDITURE,2,Consultancy,15,GAS SERVICING & ASSOC REPAIRS,2029,10/08/2017,594406,38.00 ,Revenue,GAS CONTRACT SERVICES LIMITED,3400365
Fareham Borough Council,http://statistics.data.gov.uk/id/local-authority/24UE,HOUSING REVENUE ACCOUNT,BV06,RESPONSIVE & VOID MAINTENANCE,5901,DEPARTMENT OF OPERATIONS,PREMISES RELATED EXPENDITURE,2,Consultancy,15,GAS SERVICING & ASSOC REPAIRS,2029,10/08/2017,594406,38.00 ,Revenue,GAS CONTRACT SERVICES LIMITED,3400365
Fareham Borough Council,http://statistics.data.gov.uk/id/local-authority/24UE,HOUSING REVENUE ACCOUNT,BV06,RESPONSIVE & VOID MAINTENANCE,5901,DEPARTMENT OF OPERATIONS,PREMISES RELATED EXPENDITURE,2,Consultancy,15,GAS SERVICING & ASSOC REPAIRS,2029,10/08/2017,594406,38.00 ,Revenue,GAS CONTRACT SERVICES LIMITED,3400365
Fareham Borough Council,http://statistics.data.gov.uk/id/local-authority/24UE,HOUSING REVENUE ACCOUNT,BV06,RESPONSIVE & VOID MAINTENANCE,5901,DEPARTMENT OF OPERATIONS,PREMISES RELATED EXPENDITURE,2,Consultancy,15,GAS SERVICING & ASSOC REPAIRS,2029,10/08/2017,594406,38.00 ,Revenue,GAS CONTRACT SERVICES LIMITED,3400365
Fareham Borough Council,http://statistics.data.gov.uk/id/local-authority/24UE,HOUSING REVENUE ACCOUNT,BV06,RESPONSIVE & VOID MAINTENANCE,5901,DEPARTMENT OF OPERATIONS,PREMISES RELATED EXPENDITURE,2,Consultancy,15,GAS SERVICING & ASSOC REPAIRS,2029,10/08/2017,594406,38.00 ,Revenue,GAS CONTRACT SERVICES LIMITED,3400365
Fareham Borough Council,http://statistics.data.gov.uk/id/local-authority/24UE,HOUSING REVENUE ACCOUNT,BV06,RESPONSIVE & VOID MAINTENANCE,5901,DEPARTMENT OF OPERATIONS,PREMISES RELATED EXPENDITURE,2,Consultancy,15,GAS SERVICING & ASSOC REPAIRS,2029,10/08/2017,594406,38.00 ,Revenue,GAS CONTRACT SERVICES LIMITED,3400365
Fareham Borough Council,http://statistics.data.gov.uk/id/local-authority/24UE,HOUSING REVENUE ACCOUNT,BV06,RESPONSIVE & VOID MAINTENANCE,5901,DEPARTMENT OF OPERATIONS,PREMISES RELATED EXPENDITURE,2,Consultancy,15,GAS SERVICING & ASSOC REPAIRS,2029,10/08/2017,594406,38.00 ,Revenue,GAS CONTRACT SERVICES LIMITED,3400365
Fareham Borough Council,http://statistics.data.gov.uk/id/local-authority/24UE,HOUSING REVENUE ACCOUNT,BV06,RESPONSIVE & VOID MAINTENANCE,5901,DEPARTMENT OF OPERATIONS,PREMISES RELATED EXPENDITURE,2,Consultancy,15,GAS SERVICING & ASSOC REPAIRS,2029,10/08/2017,594406,38.00 ,Revenue,GAS CONTRACT SERVICES LIMITED,3400365
Fareham Borough Council,http://statistics.data.gov.uk/id/local-authority/24UE,HOUSING REVENUE ACCOUNT,BV06,RESPONSIVE & VOID MAINTENANCE,5901,DEPARTMENT OF OPERATIONS,PREMISES RELATED EXPENDITURE,2,Consultancy,15,GAS SERVICING & ASSOC REPAIRS,2029,10/08/2017,594406,38.00 ,Revenue,GAS CONTRACT SERVICES LIMITED,3400365
Fareham Borough Council,http://statistics.data.gov.uk/id/local-authority/24UE,HOUSING REVENUE ACCOUNT,BV06,RESPONSIVE & VOID MAINTENANCE,5901,DEPARTMENT OF OPERATIONS,PREMISES RELATED EXPENDITURE,2,Consultancy,15,GAS SERVICING & ASSOC REPAIRS,2029,10/08/2017,594406,38.00 ,Revenue,GAS CONTRACT SERVICES LIMITED,3400365
Fareham Borough Council,http://statistics.data.gov.uk/id/local-authority/24UE,HOUSING REVENUE ACCOUNT,BV06,RESPONSIVE & VOID MAINTENANCE,5901,DEPARTMENT OF OPERATIONS,PREMISES RELATED EXPENDITURE,2,Consultancy,15,GAS SERVICING & ASSOC REPAIRS,2029,10/08/2017,594406,38.00 ,Revenue,GAS CONTRACT SERVICES LIMITED,3400365
Fareham Borough Council,http://statistics.data.gov.uk/id/local-authority/24UE,HOUSING REVENUE ACCOUNT,BV06,RESPONSIVE & VOID MAINTENANCE,5901,DEPARTMENT OF OPERATIONS,PREMISES RELATED EXPENDITURE,2,Consultancy,15,GAS SERVICING & ASSOC REPAIRS,2029,10/08/2017,594406,38.00 ,Revenue,GAS CONTRACT SERVICES LIMITED,3400365
Fareham Borough Council,http://statistics.data.gov.uk/id/local-authority/24UE,HOUSING REVENUE ACCOUNT,BV06,RESPONSIVE & VOID MAINTENANCE,5901,DEPARTMENT OF OPERATIONS,PREMISES RELATED EXPENDITURE,2,Consultancy,15,GAS SERVICING & ASSOC REPAIRS,2029,10/08/2017,594406,38.00 ,Revenue,GAS CONTRACT SERVICES LIMITED,3400365
Fareham Borough Council,http://statistics.data.gov.uk/id/local-authority/24UE,CAPITAL PROGRAMME - HOUSING SERVICES,CP,RENOVATION OF L.A. DWELLINGS,CP10,CAPITAL - ENERGY CONSERVATION,PREMISES RELATED EXPENDITURE,2,Consultancy,15,R & M OF BUILDINGS,2000,10/08/2017,594407,70.00 ,Capital,GAS CONTRACT SERVICES LIMITED,3400365
Fareham Borough Council,http://statistics.data.gov.uk/id/local-authority/24UE,CAPITAL PROGRAMME - HOUSING SERVICES,CP,RENOVATION OF L.A. DWELLINGS,CP10,CAPITAL - ENERGY CONSERVATION,PREMISES RELATED EXPENDITURE,2,Consultancy,15,R & M OF BUILDINGS,2000,10/08/2017,594407,70.00 ,Capital,GAS CONTRACT SERVICES LIMITED,3400365
Fareham Borough Council,http://statistics.data.gov.uk/id/local-authority/24UE,CAPITAL PROGRAMME - HOUSING SERVICES,CP,RENOVATION OF L.A. DWELLINGS,CP10,CAPITAL - ENERGY CONSERVATION,PREMISES RELATED EXPENDITURE,2,Consultancy,15,R & M OF BUILDINGS,2000,10/08/2017,594407,70.00 ,Capital,GAS CONTRACT SERVICES LIMITED,3400365
Fareham Borough Council,http://statistics.data.gov.uk/id/local-authority/24UE,CAPITAL PROGRAMME - HOUSING SERVICES,CP,RENOVATION OF L.A. DWELLINGS,CP10,CAPITAL - ENERGY CONSERVATION,PREMISES RELATED EXPENDITURE,2,Consultancy,15,R & M OF BUILDINGS,2000,10/08/2017,594407,70.00 ,Capital,GAS CONTRACT SERVICES LIMITED,3400365
Fareham Borough Council,http://statistics.data.gov.uk/id/local-authority/24UE,CAPITAL PROGRAMME - HOUSING SERVICES,CP,RENOVATION OF L.A. DWELLINGS,CP10,CAPITAL - ENERGY CONSERVATION,PREMISES RELATED EXPENDITURE,2,Consultancy,15,R & M OF BUILDINGS,2000,10/08/2017,594407,70.00 ,Capital,GAS CONTRACT SERVICES LIMITED,3400365
Fareham Borough Council,http://statistics.data.gov.uk/id/local-authority/24UE,CAPITAL PROGRAMME - HOUSING SERVICES,CP,RENOVATION OF L.A. DWELLINGS,CP10,CAPITAL - ENERGY CONSERVATION,PREMISES RELATED EXPENDITURE,2,Consultancy,15,R & M OF BUILDINGS,2000,10/08/2017,594407,70.00 ,Capital,GAS CONTRACT SERVICES LIMITED,3400365
Fareham Borough Council,http://statistics.data.gov.uk/id/local-authority/24UE,CAPITAL PROGRAMME - HOUSING SERVICES,CP,RENOVATION OF L.A. DWELLINGS,CP10,CAPITAL - ENERGY CONSERVATION,PREMISES RELATED EXPENDITURE,2,Consultancy,15,R & M OF BUILDINGS,2000,10/08/2017,594407,70.00 ,Capital,GAS CONTRACT SERVICES LIMITED,3400365
Fareham Borough Council,http://statistics.data.gov.uk/id/local-authority/24UE,CAPITAL PROGRAMME - HOUSING SERVICES,CP,RENOVATION OF L.A. DWELLINGS,CP10,CAPITAL - ENERGY CONSERVATION,PREMISES RELATED EXPENDITURE,2,Consultancy,15,R & M OF BUILDINGS,2000,10/08/2017,594407,70.00 ,Capital,GAS CONTRACT SERVICES LIMITED,3400365
Fareham Borough Council,http://statistics.data.gov.uk/id/local-authority/24UE,CAPITAL PROGRAMME - HOUSING SERVICES,CP,RENOVATION OF L.A. DWELLINGS,CP10,CAPITAL - ENERGY CONSERVATION,PREMISES RELATED EXPENDITURE,2,Consultancy,15,R & M OF BUILDINGS,2000,10/08/2017,594407,70.00 ,Capital,GAS CONTRACT SERVICES LIMITED,3400365
Fareham Borough Council,http://statistics.data.gov.uk/id/local-authority/24UE,CAPITAL PROGRAMME - HOUSING SERVICES,CP,RENOVATION OF L.A. DWELLINGS,CP10,CAPITAL - ENERGY CONSERVATION,PREMISES RELATED EXPENDITURE,2,Consultancy,15,R & M OF BUILDINGS,2000,10/08/2017,594407,70.00 ,Capital,GAS CONTRACT SERVICES LIMITED,3400365
Fareham Borough Council,http://statistics.data.gov.uk/id/local-authority/24UE,CAPITAL PROGRAMME - HOUSING SERVICES,CP,RENOVATION OF L.A. DWELLINGS,CP10,CAPITAL - ENERGY CONSERVATION,PREMISES RELATED EXPENDITURE,2,Consultancy,15,R & M OF BUILDINGS,2000,10/08/2017,594407,70.00 ,Capital,GAS CONTRACT SERVICES LIMITED,3400365
Fareham Borough Council,http://statistics.data.gov.uk/id/local-authority/24UE,CAPITAL PROGRAMME - HOUSING SERVICES,CP,RENOVATION OF L.A. DWELLINGS,CP10,CAPITAL - ENERGY CONSERVATION,PREMISES RELATED EXPENDITURE,2,Consultancy,15,R & M OF BUILDINGS,2000,10/08/2017,594407,70.00 ,Capital,GAS CONTRACT SERVICES LIMITED,3400365
Fareham Borough Council,http://statistics.data.gov.uk/id/local-authority/24UE,CAPITAL PROGRAMME - HOUSING SERVICES,CP,RENOVATION OF L.A. DWELLINGS,CP10,CAPITAL - ENERGY CONSERVATION,PREMISES RELATED EXPENDITURE,2,Consultancy,15,R & M OF BUILDINGS,2000,10/08/2017,594407,70.00 ,Capital,GAS CONTRACT SERVICES LIMITED,3400365
Fareham Borough Council,http://statistics.data.gov.uk/id/local-authority/24UE,CAPITAL PROGRAMME - HOUSING SERVICES,CP,RENOVATION OF L.A. DWELLINGS,CP10,CAPITAL - ENERGY CONSERVATION,PREMISES RELATED EXPENDITURE,2,Consultancy,15,R & M OF BUILDINGS,2000,10/08/2017,594407,70.00 ,Capital,GAS CONTRACT SERVICES LIMITED,3400365
Fareham Borough Council,http://statistics.data.gov.uk/id/local-authority/24UE,HOUSING REVENUE ACCOUNT,BV06,MAINT OF LAWNS VERGES ETC,5030,DEPARTMENT OF OPERATIONS,PREMISES RELATED EXPENDITURE,2,Horticultural,24,R&M OF TREE PRESERVATION,2063,03/08/2017,594415,150.00 ,Revenue,LIGHTFOOT LANDSCAPES,
Fareham Borough Council,http://statistics.data.gov.uk/id/local-authority/24UE,HOUSING REVENUE ACCOUNT,BV06,MAINT OF LAWNS VERGES ETC,5030,DEPARTMENT OF OPERATIONS,PREMISES RELATED EXPENDITURE,2,Horticultural,24,R&M OF TREE PRESERVATION,2063,03/08/2017,594415,380.00 ,Revenue,LIGHTFOOT LANDSCAPES,
Fareham Borough Council,http://statistics.data.gov.uk/id/local-authority/24UE,CORPORATE & DEMOCRATIC CORE,BV07A,CORPORATE MANAGEMENT,BV07AB,DEPT of FINANCE and RESOURCES,SUPPLIES & SERVICES,4,Facilities & Management Services,19,GRAPHIC DESIGN SERVICE,4445,03/08/2017,594423,20.00 ,Revenue,BLACKPIG CREATIVE DESIGN,
Fareham Borough Council,http://statistics.data.gov.uk/id/local-authority/24UE,CORPORATE & DEMOCRATIC CORE,BV07A,CORPORATE MANAGEMENT,BV07AB,DEPT of FINANCE and RESOURCES,SUPPLIES & SERVICES,4,Facilities & Management Services,19,GRAPHIC DESIGN SERVICE,4445,03/08/2017,594423,60.00 ,Revenue,BLACKPIG CREATIVE DESIGN,
Fareham Borough Council,http://statistics.data.gov.uk/id/local-authority/24UE,CORPORATE & DEMOCRATIC CORE,BV07A,CORPORATE MANAGEMENT,BV07AB,DEPT of FINANCE and RESOURCES,SUPPLIES & SERVICES,4,Facilities & Management Services,19,GRAPHIC DESIGN SERVICE,4445,03/08/2017,594423,420.00 ,Revenue,BLACKPIG CREATIVE DESIGN,
Fareham Borough Council,http://statistics.data.gov.uk/id/local-authority/24UE,CORPORATE & DEMOCRATIC CORE,BV07A,CORPORATE MANAGEMENT,BV07AB,DEPT of FINANCE and RESOURCES,SUPPLIES & SERVICES,4,Facilities & Management Services,19,GRAPHIC DESIGN SERVICE,4445,03/08/2017,594423,40.00 ,Revenue,BLACKPIG CREATIVE DESIGN,
Fareham Borough Council,http://statistics.data.gov.uk/id/local-authority/24UE,PLANNING SERVICES,BV13,DEVELOPMENT CONTROL,BV13B,DEPT of STRATEGIC PLANNING and ENVIRONMENT,SUPPLIES & SERVICES,4,Consultancy,15,CONSULTANTS FEES,4401,03/08/2017,594426,900.00 ,Revenue,ADAMS HENDRY CONSULTING LTD,03804753
Fareham Borough Council,http://statistics.data.gov.uk/id/local-authority/24UE,PLANNING SERVICES,BV13,DEVELOPMENT CONTROL,BV13B,DEPT of STRATEGIC PLANNING and ENVIRONMENT,SUPPLIES & SERVICES,4,Consultancy,15,CONSULTANTS FEES,4401,03/08/2017,594426,1800.00 ,Revenue,ADAMS HENDRY CONSULTING LTD,03804753
Fareham Borough Council,http://statistics.data.gov.uk/id/local-authority/24UE,ENVIRONMENT AND REGULATORY SER,BV03,COAST PROTECTION,BV03B,DEPT of STRATEGIC PLANNING and ENVIRONMENT,THIRD PARTY PAYMENTS,5,Local/Central Government,98,COASTAL DEFENCE PARTNERSHIP,5230,03/08/2017,594427,29755.25 ,Revenue,HAVANT BOROUGH COUNCIL,
Fareham Borough Council,http://statistics.data.gov.uk/id/local-authority/24UE,CULTURAL AND RELATED SERVICES,BV09,CULTURE AND HERITAGE,BV09A,DEPARTMENT OF OPERATIONS,PREMISES RELATED EXPENDITURE,2,"Works - Construction, Repair & Maintenance",39,R & M OF BUILDINGS,2000,03/08/2017,594429,40.00 ,Revenue,M & B DRAIN SERVICES,
Fareham Borough Council,http://statistics.data.gov.uk/id/local-authority/24UE,CULTURAL AND RELATED SERVICES,BV09,RECREATION AND SPORT,BV09B,DEPARTMENT OF OPERATIONS,PREMISES RELATED EXPENDITURE,2,"Works - Construction, Repair & Maintenance",39,GENERAL REPAIRS,2018,03/08/2017,594429,40.00 ,Revenue,M & B DRAIN SERVICES,
Fareham Borough Council,http://statistics.data.gov.uk/id/local-authority/24UE,CULTURAL AND RELATED SERVICES,BV09,RECREATION AND SPORT,BV09B,DEPARTMENT OF OPERATIONS,PREMISES RELATED EXPENDITURE,2,"Works - Construction, Repair & Maintenance",39,GENERAL REPAIRS,2018,03/08/2017,594429,100.00 ,Revenue,M & B DRAIN SERVICES,
Fareham Borough Council,http://statistics.data.gov.uk/id/local-authority/24UE,ENVIRONMENT AND REGULATORY SER,BV03,ENVIRONMENTAL HEALTH,BV03C,DEPARTMENT OF OPERATIONS,PREMISES RELATED EXPENDITURE,2,"Works - Construction, Repair & Maintenance",39,GENERAL REPAIRS,2018,03/08/2017,594429,80.00 ,Revenue,M & B DRAIN SERVICES,
Fareham Borough Council,http://statistics.data.gov.uk/id/local-authority/24UE,CAPITAL PROGRAMME - HOUSING SERVICES,CP,RENOVATION OF L.A. DWELLINGS,CP10,CAPITAL - IMPROVEMENTS WORK/MODERNIS'N,PREMISES RELATED EXPENDITURE,2,"Works - Construction, Repair & Maintenance",39,R & M OF BUILDINGS,2000,03/08/2017,594429,1810.00 ,Capital,M & B DRAIN SERVICES,
Fareham Borough Council,http://statistics.data.gov.uk/id/local-authority/24UE,HOUSING REVENUE ACCOUNT,BV06,RESPONSIVE & VOID MAINTENANCE,5901,DEPARTMENT OF OPERATIONS,PREMISES RELATED EXPENDITURE,2,"Works - Construction, Repair & Maintenance",39,GENERAL REPAIRS,2018,03/08/2017,594429,796.00 ,Revenue,M & B DRAIN SERVICES,
Fareham Borough Council,http://statistics.data.gov.uk/id/local-authority/24UE,OTHER REVENUE ACCOUNTS,RV,CONTRACT SERVICES D.S.O.,RV14,DEPARTMENT OF OPERATIONS,SUPPLIES & SERVICES,4,Facilities & Management Services,19,MATERIALS (OPERATIONAL),4007,03/08/2017,594447,514.22 ,Revenue,CROMA LOCKSMITHS & SECURITY SOLUTIONS LTD,3909669
Fareham Borough Council,http://statistics.data.gov.uk/id/local-authority/24UE,OTHER REVENUE ACCOUNTS,RV,CONTRACT SERVICES D.S.O.,RV14,DEPARTMENT OF OPERATIONS,SUPPLIES & SERVICES,4,Building Construction Materials,10,TOOLS & EQUIPMENT,4002,03/08/2017,594495,-54.17 ,Revenue,TRADE UK,3006378
Fareham Borough Council,http://statistics.data.gov.uk/id/local-authority/24UE,CAPITAL PROGRAMME - HOUSING SERVICES,CP,RENOVATION OF L.A. DWELLINGS,CP10,CAPITAL - IMPROVEMENTS WORK/MODERNIS'N,PREMISES RELATED EXPENDITURE,2,Building Construction Materials,10,GENERAL REPAIRS,2018,03/08/2017,594510,1701.67 ,Capital,IDEAL WINDOW SOLUTIONS LIMITED,3623785
Fareham Borough Council,http://statistics.data.gov.uk/id/local-authority/24UE,CAPITAL PROGRAMME - HOUSING SERVICES,CP,RENOVATION OF L.A. DWELLINGS,CP10,CAPITAL - IMPROVEMENTS WORK/MODERNIS'N,PREMISES RELATED EXPENDITURE,2,Building Construction Materials,10,GENERAL REPAIRS,2018,03/08/2017,594511,1701.67 ,Capital,IDEAL WINDOW SOLUTIONS LIMITED,3623785
Fareham Borough Council,http://statistics.data.gov.uk/id/local-authority/24UE,PLANNING SERVICES,BV13,COMMUNITY DEVELOPMENT,BV13H,DEPARTMENT OF OPERATIONS,SUPPLIES & SERVICES,4,Environmental Services,18,COMMUNITY EVENTS,4986,03/08/2017,594512,1270.00 ,Revenue,ELLIOTT GROUP LTD,147207
Fareham Borough Council,http://statistics.data.gov.uk/id/local-authority/24UE,OTHER REVENUE ACCOUNTS,RV,CONTRACT SERVICES D.S.O.,RV14,DEPARTMENT OF OPERATIONS,SUPPLIES & SERVICES,4,"Works - Construction, Repair & Maintenance",39,MATERIALS (OPERATIONAL),4007,03/08/2017,594518,-108.90 ,Revenue,HOWDENS JOINERY LTD,00526923
Fareham Borough Council,http://statistics.data.gov.uk/id/local-authority/24UE,CAPITAL PROGRAMME - HOUSING SERVICES,CP,RENOVATION OF L.A. DWELLINGS,CP10,CAPITAL - IMPROVEMENTS WORK/MODERNIS'N,SUPPLIES & SERVICES,4,Building Construction Materials,10,MATERIALS (OPERATIONAL),4007,03/08/2017,594520,508.53 ,Capital,SPECIALIST BUILDING DISTRIBUTION LTD,2599297
Fareham Borough Council,http://statistics.data.gov.uk/id/local-authority/24UE,CAPITAL PROGRAMME - HOUSING SERVICES,CP,RENOVATION OF L.A. DWELLINGS,CP10,CAPITAL - IMPROVEMENTS WORK/MODERNIS'N,SUPPLIES & SERVICES,4,Building Construction Materials,10,MATERIALS (OPERATIONAL),4007,03/08/2017,594525,632.19 ,Capital,SPECIALIST BUILDING DISTRIBUTION LTD,2599297
Fareham Borough Council,http://statistics.data.gov.uk/id/local-authority/24UE,CAPITAL PROGRAMME - HOUSING SERVICES,CP,RENOVATION OF L.A. DWELLINGS,CP10,CAPITAL - IMPROVEMENTS WORK/MODERNIS'N,SUPPLIES & SERVICES,4,Building Construction Materials,10,MATERIALS (OPERATIONAL),4007,03/08/2017,594527,770.63 ,Capital,SPECIALIST BUILDING DISTRIBUTION LTD,2599297
Fareham Borough Council,http://statistics.data.gov.uk/id/local-authority/24UE,CAPITAL PROGRAMME - HOUSING SERVICES,CP,RENOVATION OF L.A. DWELLINGS,CP10,CAPITAL - IMPROVEMENTS WORK/MODERNIS'N,SUPPLIES & SERVICES,4,Building Construction Materials,10,MATERIALS (OPERATIONAL),4007,03/08/2017,594529,2192.02 ,Capital,SPECIALIST BUILDING DISTRIBUTION LTD,2599297
Fareham Borough Council,http://statistics.data.gov.uk/id/local-authority/24UE,CAPITAL PROGRAMME - HOUSING SERVICES,CP,RENOVATION OF L.A. DWELLINGS,CP10,CAPITAL - IMPROVEMENTS WORK/MODERNIS'N,SUPPLIES & SERVICES,4,Building Construction Materials,10,MATERIALS (OPERATIONAL),4007,03/08/2017,594530,541.68 ,Capital,SPECIALIST BUILDING DISTRIBUTION LTD,2599297
Fareham Borough Council,http://statistics.data.gov.uk/id/local-authority/24UE,CAPITAL PROGRAMME - HOUSING SERVICES,CP,RENOVATION OF L.A. DWELLINGS,CP10,CAPITAL - IMPROVEMENTS WORK/MODERNIS'N,SUPPLIES & SERVICES,4,Building Construction Materials,10,MATERIALS (OPERATIONAL),4007,03/08/2017,594531,1109.20 ,Capital,SPECIALIST BUILDING DISTRIBUTION LTD,2599297
Fareham Borough Council,http://statistics.data.gov.uk/id/local-authority/24UE,CAPITAL PROGRAMME - HOUSING SERVICES,CP,RENOVATION OF L.A. DWELLINGS,CP10,CAPITAL - IMPROVEMENTS WORK/MODERNIS'N,SUPPLIES & SERVICES,4,Building Construction Materials,10,MATERIALS (OPERATIONAL),4007,03/08/2017,594532,530.27 ,Capital,SPECIALIST BUILDING DISTRIBUTION LTD,2599297
Fareham Borough Council,http://statistics.data.gov.uk/id/local-authority/24UE,CAPITAL PROGRAMME - HOUSING SERVICES,CP,RENOVATION OF L.A. DWELLINGS,CP10,CAPITAL - IMPROVEMENTS WORK/MODERNIS'N,SUPPLIES & SERVICES,4,Building Construction Materials,10,MATERIALS (OPERATIONAL),4007,03/08/2017,594535,2055.92 ,Capital,SPECIALIST BUILDING DISTRIBUTION LTD,2599297
Fareham Borough Council,http://statistics.data.gov.uk/id/local-authority/24UE,CAPITAL PROGRAMME - HOUSING SERVICES,CP,RENOVATION OF L.A. DWELLINGS,CP10,CAPITAL - IMPROVEMENTS WORK/MODERNIS'N,SUPPLIES & SERVICES,4,Building Construction Materials,10,MATERIALS (OPERATIONAL),4007,03/08/2017,594536,733.62 ,Capital,SPECIALIST BUILDING DISTRIBUTION LTD,2599297
Fareham Borough Council,http://statistics.data.gov.uk/id/local-authority/24UE,CAPITAL PROGRAMME - HOUSING SERVICES,CP,RENOVATION OF L.A. DWELLINGS,CP10,CAPITAL - IMPROVEMENTS WORK/MODERNIS'N,SUPPLIES & SERVICES,4,Building Construction Materials,10,MATERIALS (OPERATIONAL),4007,03/08/2017,594537,1668.13 ,Capital,SPECIALIST BUILDING DISTRIBUTION LTD,2599297
Fareham Borough Council,http://statistics.data.gov.uk/id/local-authority/24UE,CAPITAL PROGRAMME - HOUSING SERVICES,CP,RENOVATION OF L.A. DWELLINGS,CP10,CAPITAL - IMPROVEMENTS WORK/MODERNIS'N,SUPPLIES & SERVICES,4,Building Construction Materials,10,MATERIALS (OPERATIONAL),4007,03/08/2017,594538,697.92 ,Capital,SPECIALIST BUILDING DISTRIBUTION LTD,2599297
Fareham Borough Council,http://statistics.data.gov.uk/id/local-authority/24UE,CAPITAL PROGRAMME - HOUSING SERVICES,CP,RENOVATION OF L.A. DWELLINGS,CP10,CAPITAL - IMPROVEMENTS WORK/MODERNIS'N,SUPPLIES & SERVICES,4,Building Construction Materials,10,MATERIALS (OPERATIONAL),4007,03/08/2017,594539,535.98 ,Capital,SPECIALIST BUILDING DISTRIBUTION LTD,2599297
Fareham Borough Council,http://statistics.data.gov.uk/id/local-authority/24UE,HOUSING REVENUE ACCOUNT,BV06,RESPONSIVE & VOID MAINTENANCE,5901,DEPARTMENT OF OPERATIONS,SUPPLIES & SERVICES,4,Building Construction Materials,10,MATERIALS (OPERATIONAL),4007,03/08/2017,594539,8.85 ,Revenue,SPECIALIST BUILDING DISTRIBUTION LTD,2599297
Fareham Borough Council,http://statistics.data.gov.uk/id/local-authority/24UE,CAPITAL PROGRAMME - HOUSING SERVICES,CP,RENOVATION OF L.A. DWELLINGS,CP10,CAPITAL - IMPROVEMENTS WORK/MODERNIS'N,SUPPLIES & SERVICES,4,Building Construction Materials,10,MATERIALS (OPERATIONAL),4007,03/08/2017,594551,-42.47 ,Capital,SPECIALIST BUILDING DISTRIBUTION LTD,2599297
Fareham Borough Council,http://statistics.data.gov.uk/id/local-authority/24UE,CAPITAL PROGRAMME - HOUSING SERVICES,CP,RENOVATION OF L.A. DWELLINGS,CP10,CAPITAL - IMPROVEMENTS WORK/MODERNIS'N,SUPPLIES & SERVICES,4,Building Construction Materials,10,MATERIALS (OPERATIONAL),4007,03/08/2017,594552,-47.14 ,Capital,SPECIALIST BUILDING DISTRIBUTION LTD,2599297
Fareham Borough Council,http://statistics.data.gov.uk/id/local-authority/24UE,CAPITAL PROGRAMME - OTHER SERVICES,CP,SCHEMES FUNDED FROM BALANCES,CP20,CAPITAL - SCHEMES FUNDED FROM BALANCES,SUPPLIES & SERVICES,4,Consultancy,15,CONSULTANTS FEES,4401,10/08/2017,594560,525.00 ,Capital,COLIN MITCHELL CONSULTING,
Fareham Borough Council,http://statistics.data.gov.uk/id/local-authority/24UE,CAPITAL PROGRAMME - OTHER SERVICES,CP,SCHEMES FUNDED FROM BALANCES,CP20,CAPITAL - SCHEMES FUNDED FROM BALANCES,SUPPLIES & SERVICES,4,Consultancy,15,CONSULTANTS FEES,4401,10/08/2017,594560,675.00 ,Capital,COLIN MITCHELL CONSULTING,
Fareham Borough Council,http://statistics.data.gov.uk/id/local-authority/24UE,CAPITAL PROGRAMME - OTHER SERVICES,CP,SCHEMES FUNDED FROM BALANCES,CP20,CAPITAL - SCHEMES FUNDED FROM BALANCES,SUPPLIES & SERVICES,4,Consultancy,15,CONSULTANTS FEES,4401,10/08/2017,594560,400.00 ,Capital,COLIN MITCHELL CONSULTING,
Fareham Borough Council,http://statistics.data.gov.uk/id/local-authority/24UE,CAPITAL PROGRAMME - OTHER SERVICES,CP,SCHEMES FUNDED FROM BALANCES,CP20,CAPITAL - SCHEMES FUNDED FROM BALANCES,SUPPLIES & SERVICES,4,Consultancy,15,CONSULTANTS FEES,4401,10/08/2017,594560,400.00 ,Capital,COLIN MITCHELL CONSULTING,
Fareham Borough Council,http://statistics.data.gov.uk/id/local-authority/24UE,CAPITAL PROGRAMME - OTHER SERVICES,CP,SCHEMES FUNDED FROM BALANCES,CP20,CAPITAL - SCHEMES FUNDED FROM BALANCES,SUPPLIES & SERVICES,4,Consultancy,15,CONSULTANTS FEES,4401,10/08/2017,594560,1575.00 ,Capital,COLIN MITCHELL CONSULTING,
Fareham Borough Council,http://statistics.data.gov.uk/id/local-authority/24UE,CAPITAL PROGRAMME - OTHER SERVICES,CP,APPROVED PROGRAMME,CP24,CAPITAL - APPROVED PROGRAMME,PREMISES RELATED EXPENDITURE,2,"Works - Construction, Repair & Maintenance",39,R&M OF GROUNDS,2060,03/08/2017,594561,260.00 ,Capital,BEAVEN GROUNDWORKS,
Fareham Borough Council,http://statistics.data.gov.uk/id/local-authority/24UE,CAPITAL PROGRAMME - OTHER SERVICES,CP,APPROVED PROGRAMME,CP24,CAPITAL - APPROVED PROGRAMME,PREMISES RELATED EXPENDITURE,2,"Works - Construction, Repair & Maintenance",39,R&M OF GROUNDS,2060,03/08/2017,594561,3800.00 ,Capital,BEAVEN GROUNDWORKS,
Fareham Borough Council,http://statistics.data.gov.uk/id/local-authority/24UE,CAPITAL PROGRAMME - OTHER SERVICES,CP,APPROVED PROGRAMME,CP24,CAPITAL - APPROVED PROGRAMME,PREMISES RELATED EXPENDITURE,2,"Works - Construction, Repair & Maintenance",39,R&M OF GROUNDS,2060,03/08/2017,594561,-4060.00 ,Capital,BEAVEN GROUNDWORKS,
Fareham Borough Council,http://statistics.data.gov.uk/id/local-authority/24UE,CAPITAL PROGRAMME - OTHER SERVICES,CP,APPROVED PROGRAMME,CP24,CAPITAL - APPROVED PROGRAMME,PREMISES RELATED EXPENDITURE,2,"Works - Construction, Repair & Maintenance",39,R&M OF GROUNDS,2060,03/08/2017,594561,4060.00 ,Capital,BEAVEN GROUNDWORKS,
Fareham Borough Council,http://statistics.data.gov.uk/id/local-authority/24UE,OTHER REVENUE ACCOUNTS,RV,CONTRACT SERVICES D.S.O.,RV14,DEPT of STRATEGIC PLANNING and ENVIRONMENT,EMPLOYEES RELATED EXPENDITURE,1,Human Resources,26,AGENCY WORKERS,1050,17/08/2017,594564,1512.50 ,Revenue,HAYS SPECIALIST RECRUITMENT LTD,975677
Fareham Borough Council,http://statistics.data.gov.uk/id/local-authority/24UE,OTHER REVENUE ACCOUNTS,RV,CONTRACT SERVICES D.S.O.,RV14,DEPT of STRATEGIC PLANNING and ENVIRONMENT,THIRD PARTY PAYMENTS,5,Local/Central Government,98,PCC - B C PARTNERSHIP,5170,03/08/2017,594567,3200.00 ,Revenue,PORTSMOUTH CITY COUNCIL,
Fareham Borough Council,http://statistics.data.gov.uk/id/local-authority/24UE,OTHER REVENUE ACCOUNTS,RV,CONTRACT SERVICES D.S.O.,RV14,DEPT of STRATEGIC PLANNING and ENVIRONMENT,SUPPLIES & SERVICES,4,Local/Central Government,98,MOBILE TELEPHONES,4514,03/08/2017,594567,13.44 ,Revenue,PORTSMOUTH CITY COUNCIL,
Fareham Borough Council,http://statistics.data.gov.uk/id/local-authority/24UE,OTHER REVENUE ACCOUNTS,RV,CONTRACT SERVICES D.S.O.,RV14,DEPT of STRATEGIC PLANNING and ENVIRONMENT,SUPPLIES & SERVICES,4,Local/Central Government,98,FURNITURE & EQUIPT. PURCHASES,4000,03/08/2017,594567,100.00 ,Revenue,PORTSMOUTH CITY COUNCIL,
Fareham Borough Council,http://statistics.data.gov.uk/id/local-authority/24UE,OTHER REVENUE ACCOUNTS,RV,CONTRACT SERVICES D.S.O.,RV14,DEPT of STRATEGIC PLANNING and ENVIRONMENT,EMPLOYEES RELATED EXPENDITURE,1,Local/Central Government,98,PCC - EMPLOYEE COSTS,1044,03/08/2017,594567,5556.08 ,Revenue,PORTSMOUTH CITY COUNCIL,
Fareham Borough Council,http://statistics.data.gov.uk/id/local-authority/24UE,CAPITAL PROGRAMME - HOUSING SERVICES,CP,RENOVATION OF L.A. DWELLINGS,CP10,CAPITAL - IMPROVEMENTS WORK/MODERNIS'N,PREMISES RELATED EXPENDITURE,2,"Works - Construction, Repair & Maintenance",39,VOID COSTS - NOT RECHARGEABLE,2011,03/08/2017,594568,3096.00 ,Capital,FUTUREMOST LTD,2207885
Fareham Borough Council,http://statistics.data.gov.uk/id/local-authority/24UE,GENERAL FUND HOUSING,BV05,HOMELESSNESS,BV05F,DEPARTMENT OF OPERATIONS,SUPPLIES & SERVICES,4,Unclassified,,OTHER EXPENDITURE,4940,03/08/2017,594569,750.00 ,Revenue,redacted personal data,
Fareham Borough Council,http://statistics.data.gov.uk/id/local-authority/24UE,GENERAL FUND HOUSING,BV05,HOMELESSNESS,BV05F,DEPARTMENT OF OPERATIONS,SUPPLIES & SERVICES,4,Unclassified,,LOCAL ASSISTANCE PAYMENT,4727,03/08/2017,594570,500.00 ,Revenue,redacted personal data,
Fareham Borough Council,http://statistics.data.gov.uk/id/local-authority/24UE,ENVIRONMENT AND REGULATORY SER,BV03,STREET CLEANSING,BV03F,DEPARTMENT OF OPERATIONS,TRANSPORT RELATED EXPENDITURE,3,Vehicle Management,38,SERVICING,3027,17/08/2017,594574,561.75 ,Revenue,TENNANT UK CLEANING SOLUTIONS LTD,SC042491
Fareham Borough Council,http://statistics.data.gov.uk/id/local-authority/24UE,HOUSING REVENUE ACCOUNT,BV06,GENERAL ADMINISTRATION EXPENSE,5021,DEPARTMENT OF OPERATIONS,SUPPLIES & SERVICES,4,Information Communication Technology,27,COMPUTER SOFTWARE,4531,24/08/2017,594575,1000.00 ,Revenue,NORTHGATE PUBLIC SERVICES (UK) LTD,968498
Fareham Borough Council,http://statistics.data.gov.uk/id/local-authority/24UE,CULTURAL AND RELATED SERVICES,BV09,CULTURE AND HERITAGE,BV09A,DEPARTMENT OF OPERATIONS,PREMISES RELATED EXPENDITURE,2,Cleaning & Janitorial,13,CONTRACT CLEANING - GENERAL,2700,31/08/2017,594578,795.66 ,Revenue,HI-SPEC FACILITIES SERVICES PLC,4373379
Fareham Borough Council,http://statistics.data.gov.uk/id/local-authority/24UE,CULTURAL AND RELATED SERVICES,BV09,RECREATION AND SPORT,BV09B,DEPARTMENT OF OPERATIONS,PREMISES RELATED EXPENDITURE,2,Cleaning & Janitorial,13,CONTRACT CLEANING - GENERAL,2700,31/08/2017,594578,1352.64 ,Revenue,HI-SPEC FACILITIES SERVICES PLC,4373379
Fareham Borough Council,http://statistics.data.gov.uk/id/local-authority/24UE,CULTURAL AND RELATED SERVICES,BV09,CULTURE AND HERITAGE,BV09A,DEPARTMENT OF OPERATIONS,PREMISES RELATED EXPENDITURE,2,Cleaning & Janitorial,13,CONTRACT CLEANING - GENERAL,2700,31/08/2017,594578,1405.51 ,Revenue,HI-SPEC FACILITIES SERVICES PLC,4373379
Fareham Borough Council,http://statistics.data.gov.uk/id/local-authority/24UE,HIGHWAYS ROADS AND TRANSPORT,BV12,PARKING SERVICES,BV12D,DEPARTMENT OF OPERATIONS,PREMISES RELATED EXPENDITURE,2,Cleaning & Janitorial,13,CONTRACT CLEANING - GENERAL,2700,31/08/2017,594578,38.00 ,Revenue,HI-SPEC FACILITIES SERVICES PLC,4373379
Fareham Borough Council,http://statistics.data.gov.uk/id/local-authority/24UE,HIGHWAYS ROADS AND TRANSPORT,BV12,PARKING SERVICES,BV12D,DEPARTMENT OF OPERATIONS,PREMISES RELATED EXPENDITURE,2,Cleaning & Janitorial,13,CONTRACT CLEANING - GENERAL,2700,31/08/2017,594578,1180.47 ,Revenue,HI-SPEC FACILITIES SERVICES PLC,4373379
Fareham Borough Council,http://statistics.data.gov.uk/id/local-authority/24UE,ENVIRONMENT AND REGULATORY SER,BV03,ENVIRONMENTAL HEALTH,BV03C,DEPARTMENT OF OPERATIONS,PREMISES RELATED EXPENDITURE,2,Cleaning & Janitorial,13,CONTRACT CLEANING - GENERAL,2700,31/08/2017,594578,9610.10 ,Revenue,HI-SPEC FACILITIES SERVICES PLC,4373379
Fareham Borough Council,http://statistics.data.gov.uk/id/local-authority/24UE,HOUSING REVENUE ACCOUNT,BV06,COMMUNAL CARETAKING & CLEANING,5027,DEPARTMENT OF OPERATIONS,PREMISES RELATED EXPENDITURE,2,Cleaning & Janitorial,13,CONTRACT CLEANING - GENERAL,2700,31/08/2017,594578,152.00 ,Revenue,HI-SPEC FACILITIES SERVICES PLC,4373379
Fareham Borough Council,http://statistics.data.gov.uk/id/local-authority/24UE,HOUSING REVENUE ACCOUNT,BV06,COMMUNAL CARETAKING & CLEANING,5027,DEPARTMENT OF OPERATIONS,PREMISES RELATED EXPENDITURE,2,Cleaning & Janitorial,13,CONTRACT CLEANING - GENERAL,2700,31/08/2017,594578,9465.63 ,Revenue,HI-SPEC FACILITIES SERVICES PLC,4373379
Fareham Borough Council,http://statistics.data.gov.uk/id/local-authority/24UE,HOUSING REVENUE ACCOUNT,BV06,COMMUNAL CARETAKING & CLEANING,5027,DEPARTMENT OF OPERATIONS,PREMISES RELATED EXPENDITURE,2,Cleaning & Janitorial,13,CONTRACT CLEANING - GENERAL,2700,31/08/2017,594578,1113.83 ,Revenue,HI-SPEC FACILITIES SERVICES PLC,4373379
Fareham Borough Council,http://statistics.data.gov.uk/id/local-authority/24UE,HOUSING REVENUE ACCOUNT,BV06,COMMUNAL CARETAKING & CLEANING,5027,DEPARTMENT OF OPERATIONS,PREMISES RELATED EXPENDITURE,2,Cleaning & Janitorial,13,CONTRACT CLEANING - GENERAL,2700,31/08/2017,594578,1325.99 ,Revenue,HI-SPEC FACILITIES SERVICES PLC,4373379
Fareham Borough Council,http://statistics.data.gov.uk/id/local-authority/24UE,OTHER REVENUE ACCOUNTS,RV,CONTRACT SERVICES D.S.O.,RV14,DEPARTMENT OF OPERATIONS,PREMISES RELATED EXPENDITURE,2,Cleaning & Janitorial,13,CONTRACT CLEANING - GENERAL,2700,31/08/2017,594578,88.81 ,Revenue,HI-SPEC FACILITIES SERVICES PLC,4373379
Fareham Borough Council,http://statistics.data.gov.uk/id/local-authority/24UE,OTHER REVENUE ACCOUNTS,RV,NON WORK GROUP HOLDING ACCOUNT,RV18,DEPT of FINANCE and RESOURCES,PREMISES RELATED EXPENDITURE,2,Cleaning & Janitorial,13,R & M OF BUILDINGS,2000,31/08/2017,594578,66.50 ,Revenue,HI-SPEC FACILITIES SERVICES PLC,4373379
Fareham Borough Council,http://statistics.data.gov.uk/id/local-authority/24UE,OTHER REVENUE ACCOUNTS,RV,NON WORK GROUP HOLDING ACCOUNT,RV18,DEPT of FINANCE and RESOURCES,PREMISES RELATED EXPENDITURE,2,Cleaning & Janitorial,13,WINDOW CLEANING,2760,31/08/2017,594578,218.67 ,Revenue,HI-SPEC FACILITIES SERVICES PLC,4373379
Fareham Borough Council,http://statistics.data.gov.uk/id/local-authority/24UE,OTHER REVENUE ACCOUNTS,RV,NON WORK GROUP HOLDING ACCOUNT,RV18,DEPT of FINANCE and RESOURCES,PREMISES RELATED EXPENDITURE,2,Cleaning & Janitorial,13,CONTRACT CLEANING - GENERAL,2700,31/08/2017,594578,380.61 ,Revenue,HI-SPEC FACILITIES SERVICES PLC,4373379
Fareham Borough Council,http://statistics.data.gov.uk/id/local-authority/24UE,OTHER REVENUE ACCOUNTS,RV,NON WORK GROUP HOLDING ACCOUNT,RV18,DEPT of FINANCE and RESOURCES,PREMISES RELATED EXPENDITURE,2,Cleaning & Janitorial,13,CONTRACT CLEANING - GENERAL,2700,31/08/2017,594578,706.85 ,Revenue,HI-SPEC FACILITIES SERVICES PLC,4373379
Fareham Borough Council,http://statistics.data.gov.uk/id/local-authority/24UE,OTHER REVENUE ACCOUNTS,RV,NON WORK GROUP HOLDING ACCOUNT,RV18,DEPARTMENT OF OPERATIONS,SUPPLIES & SERVICES,4,Clothing,14,PROTECTIVE CLOTHING & UNIFORMS,4200,31/08/2017,594586,585.92 ,Revenue,JOHNSONS APPARELMASTER,00464645
Fareham Borough Council,http://statistics.data.gov.uk/id/local-authority/24UE,GENERAL FUND HOUSING,BV05,HOUSING BENEFIT ADMINISTRATION,BV05H,DEPARTMENT OF OPERATIONS,SUPPLIES & SERVICES,4,Information Communication Technology,27,SOFTWARE LICENCES,4530,17/08/2017,594587,950.00 ,Revenue,NORTHGATE PUBLIC SERVICES (UK) LTD,968498
Fareham Borough Council,http://statistics.data.gov.uk/id/local-authority/24UE,CORPORATE & DEMOCRATIC CORE,BV07A,CORPORATE MANAGEMENT,BV07AB,DEPT of FINANCE and RESOURCES,SUPPLIES & SERVICES,4,Local/Central Government,98,GRAPHIC DESIGN SERVICE,4445,10/08/2017,594588,70.00 ,Revenue,EASTLEIGH BOROUGH COUNCIL,
Fareham Borough Council,http://statistics.data.gov.uk/id/local-authority/24UE,CORPORATE & DEMOCRATIC CORE,BV07A,CORPORATE MANAGEMENT,BV07AB,DEPT of FINANCE and RESOURCES,SUPPLIES & SERVICES,4,Local/Central Government,98,GRAPHIC DESIGN SERVICE,4445,10/08/2017,594588,40.00 ,Revenue,EASTLEIGH BOROUGH COUNCIL,
Fareham Borough Council,http://statistics.data.gov.uk/id/local-authority/24UE,ENVIRONMENT AND REGULATORY SER,BV03,ENVIRONMENTAL HEALTH,BV03C,DEPT of STRATEGIC PLANNING and ENVIRONMENT,SUPPLIES & SERVICES,4,Local/Central Government,98,GRAPHIC DESIGN SERVICE,4445,10/08/2017,594588,180.00 ,Revenue,EASTLEIGH BOROUGH COUNCIL,
Fareham Borough Council,http://statistics.data.gov.uk/id/local-authority/24UE,ENVIRONMENT AND REGULATORY SER,BV03,ENVIRONMENTAL HEALTH,BV03C,DEPT of STRATEGIC PLANNING and ENVIRONMENT,SUPPLIES & SERVICES,4,Local/Central Government,98,GRAPHIC DESIGN SERVICE,4445,10/08/2017,594588,70.00 ,Revenue,EASTLEIGH BOROUGH COUNCIL,
Fareham Borough Council,http://statistics.data.gov.uk/id/local-authority/24UE,ENVIRONMENT AND REGULATORY SER,BV03,ENVIRONMENTAL HEALTH,BV03C,DEPT of STRATEGIC PLANNING and ENVIRONMENT,SUPPLIES & SERVICES,4,Local/Central Government,98,GRAPHIC DESIGN SERVICE,4445,10/08/2017,594588,300.00 ,Revenue,EASTLEIGH BOROUGH COUNCIL,
Fareham Borough Council,http://statistics.data.gov.uk/id/local-authority/24UE,CULTURAL AND RELATED SERVICES,BV09,RECREATION AND SPORT,BV09B,DEPARTMENT OF OPERATIONS,PREMISES RELATED EXPENDITURE,2,Local/Central Government,98,R&M OF GROUNDS,2060,10/08/2017,594588,120.00 ,Revenue,EASTLEIGH BOROUGH COUNCIL,
Fareham Borough Council,http://statistics.data.gov.uk/id/local-authority/24UE,PLANNING SERVICES,BV13,COMMUNITY DEVELOPMENT,BV13H,DEPARTMENT OF OPERATIONS,SUPPLIES & SERVICES,4,Local/Central Government,98,GRAPHIC DESIGN SERVICE,4445,10/08/2017,594588,50.00 ,Revenue,EASTLEIGH BOROUGH COUNCIL,
Fareham Borough Council,http://statistics.data.gov.uk/id/local-authority/24UE,HOUSING REVENUE ACCOUNT,BV06,GENERAL ADMINISTRATION EXPENSE,5021,DEPARTMENT OF OPERATIONS,SUPPLIES & SERVICES,4,Local/Central Government,98,TENANT PARTICIPATION COSTS,4723,10/08/2017,594588,120.00 ,Revenue,EASTLEIGH BOROUGH COUNCIL,
Fareham Borough Council,http://statistics.data.gov.uk/id/local-authority/24UE,CENTRAL SERVICES,BV07,CENTRAL SERVICES TO THE PUBLIC,BV07B,DEPARTMENT OF OPERATIONS,SUPPLIES & SERVICES,4,Information Communication Technology,27,SOFTWARE LICENCES,4530,10/08/2017,594593,1250.00 ,Revenue,OCELLA,02837294
Fareham Borough Council,http://statistics.data.gov.uk/id/local-authority/24UE,PLANNING SERVICES,BV13,ECONOMIC DEVELOPMENT,BV13E,DEPARTMENT OF OPERATIONS,SUPPLIES & SERVICES,4,Horticultural,24,FLORAL DECORATIONS,4012,17/08/2017,594594,483.70 ,Revenue,DOWNS VIEW NURSERIES LTD,04783609
Fareham Borough Council,http://statistics.data.gov.uk/id/local-authority/24UE,CULTURAL AND RELATED SERVICES,BV09,RECREATION AND SPORT,BV09B,DEPARTMENT OF OPERATIONS,PREMISES RELATED EXPENDITURE,2,Horticultural,24,STRUCTURAL FINISH-REGLAZING,2020,17/08/2017,594594,17267.94 ,Revenue,DOWNS VIEW NURSERIES LTD,04783609
Fareham Borough Council,http://statistics.data.gov.uk/id/local-authority/24UE,HOUSING REVENUE ACCOUNT,BV06,RESPONSIVE & VOID MAINTENANCE,5901,DEPARTMENT OF OPERATIONS,PREMISES RELATED EXPENDITURE,2,"Works - Construction, Repair & Maintenance",39,R & M OF BUILDINGS,2000,10/08/2017,594808,1995.00 ,Revenue,REDS BUILDERS LIMITED,4387646
Fareham Borough Council,http://statistics.data.gov.uk/id/local-authority/24UE,HOUSING REVENUE ACCOUNT,BV06,RESPONSIVE & VOID MAINTENANCE,5901,DEPARTMENT OF OPERATIONS,PREMISES RELATED EXPENDITURE,2,"Works - Construction, Repair & Maintenance",39,R & M OF BUILDINGS,2000,10/08/2017,594809,1995.00 ,Revenue,REDS BUILDERS LIMITED,4387646
Fareham Borough Council,http://statistics.data.gov.uk/id/local-authority/24UE,OTHER REVENUE ACCOUNTS,RV,NON WORK GROUP HOLDING ACCOUNT,RV18,DEPT of FINANCE and RESOURCES,PREMISES RELATED EXPENDITURE,2,"Works - Construction, Repair & Maintenance",39,R & M OF BUILDINGS,2000,10/08/2017,594812,3209.22 ,Revenue,BCG ELECTRICAL SERVICES LIMITED,5097428
Fareham Borough Council,http://statistics.data.gov.uk/id/local-authority/24UE,OTHER REVENUE ACCOUNTS,RV,NON WORK GROUP HOLDING ACCOUNT,RV18,DEPT of FINANCE and RESOURCES,PREMISES RELATED EXPENDITURE,2,Building Construction Materials,10,R & M OF FIXED PLANT,2040,10/08/2017,594817,1996.00 ,Revenue,CONDAIR PLC,01652665
Fareham Borough Council,http://statistics.data.gov.uk/id/local-authority/24UE,OTHER REVENUE ACCOUNTS,RV,NON WORK GROUP HOLDING ACCOUNT,RV18,DEPT of FINANCE and RESOURCES,PREMISES RELATED EXPENDITURE,2,Building Construction Materials,10,R & M OF FIXED PLANT,2040,10/08/2017,594818,1356.85 ,Revenue,CONDAIR PLC,01652665
Fareham Borough Council,http://statistics.data.gov.uk/id/local-authority/24UE,OTHER REVENUE ACCOUNTS,RV,NON WORK GROUP HOLDING ACCOUNT,RV18,DEPT of FINANCE and RESOURCES,PREMISES RELATED EXPENDITURE,2,Facilities & Management Services,19,R & M OF BUILDINGS,2000,10/08/2017,594819,1236.50 ,Revenue,RAINER SECURITY PRODUCTS LTD,02240635
Fareham Borough Council,http://statistics.data.gov.uk/id/local-authority/24UE,CAPITAL PROGRAMME - OTHER SERVICES,CP,APPROVED PROGRAMME,CP24,CAPITAL - APPROVED PROGRAMME,PREMISES RELATED EXPENDITURE,2,"Works - Construction, Repair & Maintenance",39,R&M OF GROUNDS,2060,10/08/2017,594821,4358.60 ,Capital,REDS BUILDERS LIMITED,4387646
Fareham Borough Council,http://statistics.data.gov.uk/id/local-authority/24UE,FINANCING & INVESTMENT I&E,BVB02,INVESTMENT PROPERTIES,BVB170,DEPT of FINANCE and RESOURCES,PREMISES RELATED EXPENDITURE,2,"Works - Construction, Repair & Maintenance",39,R & M OF BUILDINGS,2000,10/08/2017,594823,550.94 ,Revenue,REDS BUILDERS LIMITED,4387646
Fareham Borough Council,http://statistics.data.gov.uk/id/local-authority/24UE,ENVIRONMENT AND REGULATORY SER,BV03,STREET CLEANSING,BV03F,DEPARTMENT OF OPERATIONS,SUPPLIES & SERVICES,4,Highway Equipment & Materials�,23,FURNITURE & EQUIPT. PURCHASES,4000,31/08/2017,594835,74.96 ,Revenue,GLASDON U K LIMITED,02160576
Fareham Borough Council,http://statistics.data.gov.uk/id/local-authority/24UE,ENVIRONMENT AND REGULATORY SER,BV03,STREET CLEANSING,BV03F,DEPARTMENT OF OPERATIONS,SUPPLIES & SERVICES,4,Highway Equipment & Materials�,23,FURNITURE & EQUIPT. PURCHASES,4000,31/08/2017,594835,536.06 ,Revenue,GLASDON U K LIMITED,02160576
Fareham Borough Council,http://statistics.data.gov.uk/id/local-authority/24UE,PLANNING SERVICES,BV13,DEVELOPMENT CONTROL,BV13B,DEPT of STRATEGIC PLANNING and ENVIRONMENT,EMPLOYEES RELATED EXPENDITURE,1,Financial Services,20,STAFF ADVERTISING,1902,24/08/2017,594837,2625.00 ,Revenue,HAYMARKET MEDIA GROUP,00267189
Fareham Borough Council,http://statistics.data.gov.uk/id/local-authority/24UE,CENTRAL SERVICES,BV07,CENTRAL SERVICES TO THE PUBLIC,BV07B,DEPARTMENT OF OPERATIONS,SUPPLIES & SERVICES,4,Local/Central Government,98,LEGAL FEES,4400,10/08/2017,594838,2153.25 ,Revenue,HAMPSHIRE COUNTY COUNCIL,
Fareham Borough Council,http://statistics.data.gov.uk/id/local-authority/24UE,CORPORATE & DEMOCRATIC CORE,BV07A,CORPORATE MANAGEMENT,BV07AB,DEPT of FINANCE and RESOURCES,SUPPLIES & SERVICES,4,Facilities & Management Services,19,GRAPHIC DESIGN SERVICE,4445,10/08/2017,594840,85.00 ,Revenue,MILLHARBOUR DIGITAL LTD,6619241
Fareham Borough Council,http://statistics.data.gov.uk/id/local-authority/24UE,CORPORATE & DEMOCRATIC CORE,BV07A,CORPORATE MANAGEMENT,BV07AB,DEPT of FINANCE and RESOURCES,SUPPLIES & SERVICES,4,Facilities & Management Services,19,GRAPHIC DESIGN SERVICE,4445,10/08/2017,594840,571.00 ,Revenue,MILLHARBOUR DIGITAL LTD,6619241
Fareham Borough Council,http://statistics.data.gov.uk/id/local-authority/24UE,CAPITAL PROGRAMME - OTHER SERVICES,CP,SCHEMES FUNDED FROM BALANCES,CP20,CAPITAL - SCHEMES FUNDED FROM BALANCES,SUPPLIES & SERVICES,4,Local/Central Government,98,CONSULTANTS FEES,4401,10/08/2017,594852,40375.19 ,Capital,HAMPSHIRE COUNTY COUNCIL,
Fareham Borough Council,http://statistics.data.gov.uk/id/local-authority/24UE,ENVIRONMENT AND REGULATORY SER,BV03,ENVIRONMENTAL HEALTH,BV03C,DEPT of STRATEGIC PLANNING and ENVIRONMENT,SUPPLIES & SERVICES,4,Art & Leisure Services,29,CRIME & COMMUNITY INITIATIVES,4978,10/08/2017,594853,8785.00 ,Revenue,LITTLE MONSTERS EVENT HIRE LTD,06478181
Fareham Borough Council,http://statistics.data.gov.uk/id/local-authority/24UE,OTHER REVENUE ACCOUNTS,RV,NON WORK GROUP HOLDING ACCOUNT,RV18,DEPARTMENT OF OPERATIONS,SUPPLIES & SERVICES,4,Vehicle Management,38,TOOLS & EQUIPMENT,4002,10/08/2017,594863,645.50 ,Revenue,GUARANTEED TOOL COMPANY LIMITED,1904682
Fareham Borough Council,http://statistics.data.gov.uk/id/local-authority/24UE,OTHER REVENUE ACCOUNTS,RV,NON WORK GROUP HOLDING ACCOUNT,RV18,DEPARTMENT OF OPERATIONS,SUPPLIES & SERVICES,4,Vehicle Management,38,TOOLS & EQUIPMENT,4002,10/08/2017,594864,1238.86 ,Revenue,GUARANTEED TOOL COMPANY LIMITED,1904682
Fareham Borough Council,http://statistics.data.gov.uk/id/local-authority/24UE,ENVIRONMENT AND REGULATORY SER,BV03,WASTE COLLECTION,BV03G,DEPARTMENT OF OPERATIONS,TRANSPORT RELATED EXPENDITURE,3,Vehicle Management,38,ROUTINE REPAIRS VEHICLES/PLANT,3010,10/08/2017,594870,14.50 ,Revenue,TERBERG MATEC UK LTD,03404297
Fareham Borough Council,http://statistics.data.gov.uk/id/local-authority/24UE,ENVIRONMENT AND REGULATORY SER,BV03,WASTE COLLECTION,BV03G,DEPARTMENT OF OPERATIONS,TRANSPORT RELATED EXPENDITURE,3,Vehicle Management,38,ROUTINE REPAIRS VEHICLES/PLANT,3010,10/08/2017,594870,804.28 ,Revenue,TERBERG MATEC UK LTD,03404297
Fareham Borough Council,http://statistics.data.gov.uk/id/local-authority/24UE,CULTURAL AND RELATED SERVICES,BV09,RECREATION AND SPORT,BV09B,DEPARTMENT OF OPERATIONS,SUPPLIES & SERVICES,4,Facilities & Management Services,19,MATERIALS (OPERATIONAL),4007,10/08/2017,594881,70.29 ,Revenue,CROMA LOCKSMITHS & SECURITY SOLUTIONS LTD,3909669
Fareham Borough Council,http://statistics.data.gov.uk/id/local-authority/24UE,ENVIRONMENT AND REGULATORY SER,BV03,ENVIRONMENTAL HEALTH,BV03C,DEPARTMENT OF OPERATIONS,SUPPLIES & SERVICES,4,Facilities & Management Services,19,MATERIALS (OPERATIONAL),4007,10/08/2017,594881,75.11 ,Revenue,CROMA LOCKSMITHS & SECURITY SOLUTIONS LTD,3909669
Fareham Borough Council,http://statistics.data.gov.uk/id/local-authority/24UE,HOUSING REVENUE ACCOUNT,BV06,RESPONSIVE & VOID MAINTENANCE,5901,DEPARTMENT OF OPERATIONS,SUPPLIES & SERVICES,4,Facilities & Management Services,19,MATERIALS (OPERATIONAL),4007,10/08/2017,594881,533.77 ,Revenue,CROMA LOCKSMITHS & SECURITY SOLUTIONS LTD,3909669
Fareham Borough Council,http://statistics.data.gov.uk/id/local-authority/24UE,OTHER REVENUE ACCOUNTS,RV,CONTRACT SERVICES D.S.O.,RV14,DEPARTMENT OF OPERATIONS,SUPPLIES & SERVICES,4,Facilities & Management Services,19,TOOLS & EQUIPMENT,4002,10/08/2017,594881,50.00 ,Revenue,CROMA LOCKSMITHS & SECURITY SOLUTIONS LTD,3909669
Fareham Borough Council,http://statistics.data.gov.uk/id/local-authority/24UE,OTHER REVENUE ACCOUNTS,RV,NON WORK GROUP HOLDING ACCOUNT,RV18,DEPT of FINANCE and RESOURCES,SUPPLIES & SERVICES,4,Facilities & Management Services,19,MATERIALS (OPERATIONAL),4007,10/08/2017,594881,13.39 ,Revenue,CROMA LOCKSMITHS & SECURITY SOLUTIONS LTD,3909669
Fareham Borough Council,http://statistics.data.gov.uk/id/local-authority/24UE,HOUSING REVENUE ACCOUNT,BV06,RESPONSIVE & VOID MAINTENANCE,5901,DEPARTMENT OF OPERATIONS,SUPPLIES & SERVICES,4,Building Construction Materials,10,MATERIALS (OPERATIONAL),4007,10/08/2017,594885,653.54 ,Revenue,WRP WINDOWS LTD T/A MILTON GLASS SUPPLIES,2164547
Fareham Borough Council,http://statistics.data.gov.uk/id/local-authority/24UE,ENVIRONMENT AND REGULATORY SER,BV03,CEMETERIES CREM & MORTUARY,BV03A,DEPARTMENT OF OPERATIONS,SUPPLIES & SERVICES,4,Building Construction Materials,10,MATERIALS (OPERATIONAL),4007,10/08/2017,594905,159.26 ,Revenue,ELLIOTT BROTHERS LIMITED,02511005
Fareham Borough Council,http://statistics.data.gov.uk/id/local-authority/24UE,CULTURAL AND RELATED SERVICES,BV09,RECREATION AND SPORT,BV09B,DEPARTMENT OF OPERATIONS,SUPPLIES & SERVICES,4,Building Construction Materials,10,MATERIALS (OPERATIONAL),4007,10/08/2017,594905,71.72 ,Revenue,ELLIOTT BROTHERS LIMITED,02511005
Fareham Borough Council,http://statistics.data.gov.uk/id/local-authority/24UE,HIGHWAYS ROADS AND TRANSPORT,BV12,PARKING SERVICES,BV12D,DEPARTMENT OF OPERATIONS,SUPPLIES & SERVICES,4,Building Construction Materials,10,MATERIALS (OPERATIONAL),4007,10/08/2017,594905,163.47 ,Revenue,ELLIOTT BROTHERS LIMITED,02511005
Fareham Borough Council,http://statistics.data.gov.uk/id/local-authority/24UE,HOUSING REVENUE ACCOUNT,BV06,RESPONSIVE & VOID MAINTENANCE,5901,DEPARTMENT OF OPERATIONS,SUPPLIES & SERVICES,4,Building Construction Materials,10,MATERIALS (OPERATIONAL),4007,10/08/2017,594905,1768.33 ,Revenue,ELLIOTT BROTHERS LIMITED,02511005
Fareham Borough Council,http://statistics.data.gov.uk/id/local-authority/24UE,OTHER REVENUE ACCOUNTS,RV,CONTRACT SERVICES D.S.O.,RV14,DEPARTMENT OF OPERATIONS,SUPPLIES & SERVICES,4,Building Construction Materials,10,PROTECTIVE CLOTHING & UNIFORMS,4200,10/08/2017,594905,3.14 ,Revenue,ELLIOTT BROTHERS LIMITED,02511005
Fareham Borough Council,http://statistics.data.gov.uk/id/local-authority/24UE,OTHER REVENUE ACCOUNTS,RV,CONTRACT SERVICES D.S.O.,RV14,DEPARTMENT OF OPERATIONS,SUPPLIES & SERVICES,4,Building Construction Materials,10,TOOLS & EQUIPMENT,4002,10/08/2017,594905,867.73 ,Revenue,ELLIOTT BROTHERS LIMITED,02511005
Fareham Borough Council,http://statistics.data.gov.uk/id/local-authority/24UE,OTHER REVENUE ACCOUNTS,RV,CONTRACT SERVICES D.S.O.,RV14,DEPARTMENT OF OPERATIONS,SUPPLIES & SERVICES,4,Building Construction Materials,10,MATERIALS (OPERATIONAL),4007,10/08/2017,594905,441.28 ,Revenue,ELLIOTT BROTHERS LIMITED,02511005
Fareham Borough Council,http://statistics.data.gov.uk/id/local-authority/24UE,OTHER REVENUE ACCOUNTS,RV,NON WORK GROUP HOLDING ACCOUNT,RV18,DEPT of FINANCE and RESOURCES,SUPPLIES & SERVICES,4,Building Construction Materials,10,MATERIALS (OPERATIONAL),4007,10/08/2017,594905,33.10 ,Revenue,ELLIOTT BROTHERS LIMITED,02511005
Fareham Borough Council,http://statistics.data.gov.uk/id/local-authority/24UE,CULTURAL AND RELATED SERVICES,BV09,CULTURE AND HERITAGE,BV09A,DEPARTMENT OF OPERATIONS,SUPPLIES & SERVICES,4,Building Construction Materials,10,MATERIALS (OPERATIONAL),4007,24/08/2017,594906,370.05 ,Revenue,ELLIOTT BROTHERS LIMITED,02511005
Fareham Borough Council,http://statistics.data.gov.uk/id/local-authority/24UE,HOUSING REVENUE ACCOUNT,BV06,RESPONSIVE & VOID MAINTENANCE,5901,DEPARTMENT OF OPERATIONS,SUPPLIES & SERVICES,4,Building Construction Materials,10,MATERIALS (OPERATIONAL),4007,24/08/2017,594906,1366.34 ,Revenue,ELLIOTT BROTHERS LIMITED,02511005
Fareham Borough Council,http://statistics.data.gov.uk/id/local-authority/24UE,OTHER REVENUE ACCOUNTS,RV,CONTRACT SERVICES D.S.O.,RV14,DEPARTMENT OF OPERATIONS,SUPPLIES & SERVICES,4,Building Construction Materials,10,TOOLS & EQUIPMENT,4002,24/08/2017,594906,176.57 ,Revenue,ELLIOTT BROTHERS LIMITED,02511005
Fareham Borough Council,http://statistics.data.gov.uk/id/local-authority/24UE,OTHER REVENUE ACCOUNTS,RV,CONTRACT SERVICES D.S.O.,RV14,DEPARTMENT OF OPERATIONS,SUPPLIES & SERVICES,4,Building Construction Materials,10,MATERIALS (OPERATIONAL),4007,24/08/2017,594906,727.67 ,Revenue,ELLIOTT BROTHERS LIMITED,02511005
Fareham Borough Council,http://statistics.data.gov.uk/id/local-authority/24UE,CULTURAL AND RELATED SERVICES,BV09,CULTURE AND HERITAGE,BV09A,DEPARTMENT OF OPERATIONS,SUPPLIES & SERVICES,4,Building Construction Materials,10,MATERIALS (OPERATIONAL),4007,10/08/2017,594907,787.37 ,Revenue,WILTS ELECTRICAL WHOLESALERS,00679117
Fareham Borough Council,http://statistics.data.gov.uk/id/local-authority/24UE,CULTURAL AND RELATED SERVICES,BV09,RECREATION AND SPORT,BV09B,DEPARTMENT OF OPERATIONS,SUPPLIES & SERVICES,4,Building Construction Materials,10,MATERIALS (OPERATIONAL),4007,10/08/2017,594907,47.28 ,Revenue,WILTS ELECTRICAL WHOLESALERS,00679117
Fareham Borough Council,http://statistics.data.gov.uk/id/local-authority/24UE,HOUSING REVENUE ACCOUNT,BV06,RESPONSIVE & VOID MAINTENANCE,5901,DEPARTMENT OF OPERATIONS,SUPPLIES & SERVICES,4,Building Construction Materials,10,MATERIALS (OPERATIONAL),4007,10/08/2017,594907,696.55 ,Revenue,WILTS ELECTRICAL WHOLESALERS,00679117
Fareham Borough Council,http://statistics.data.gov.uk/id/local-authority/24UE,OTHER REVENUE ACCOUNTS,RV,CONTRACT SERVICES D.S.O.,RV14,DEPARTMENT OF OPERATIONS,SUPPLIES & SERVICES,4,Building Construction Materials,10,MATERIALS (OPERATIONAL),4007,10/08/2017,594907,39.50 ,Revenue,WILTS ELECTRICAL WHOLESALERS,00679117
Fareham Borough Council,http://statistics.data.gov.uk/id/local-authority/24UE,OTHER REVENUE ACCOUNTS,RV,NON WORK GROUP HOLDING ACCOUNT,RV18,DEPT of FINANCE and RESOURCES,SUPPLIES & SERVICES,4,Building Construction Materials,10,MATERIALS (OPERATIONAL),4007,10/08/2017,594907,31.72 ,Revenue,WILTS ELECTRICAL WHOLESALERS,00679117
Fareham Borough Council,http://statistics.data.gov.uk/id/local-authority/24UE,OTHER REVENUE ACCOUNTS,RV,CONTRACT SERVICES D.S.O.,RV14,DEPARTMENT OF OPERATIONS,SUPPLIES & SERVICES,4,Building Construction Materials,10,TOOLS & EQUIPMENT,4002,24/08/2017,594913,-21.63 ,Revenue,C BREWER & SONS LIMITED,203852
Fareham Borough Council,http://statistics.data.gov.uk/id/local-authority/24UE,CULTURAL AND RELATED SERVICES,BV09,RECREATION AND SPORT,BV09B,DEPARTMENT OF OPERATIONS,PREMISES RELATED EXPENDITURE,2,"Works - Construction, Repair & Maintenance",39,GENERAL REPAIRS,2018,10/08/2017,594985,40.00 ,Revenue,M & B DRAIN SERVICES,
Fareham Borough Council,http://statistics.data.gov.uk/id/local-authority/24UE,HIGHWAYS ROADS AND TRANSPORT,BV12,PARKING SERVICES,BV12D,DEPARTMENT OF OPERATIONS,PREMISES RELATED EXPENDITURE,2,"Works - Construction, Repair & Maintenance",39,GENERAL REPAIRS,2018,10/08/2017,594985,40.00 ,Revenue,M & B DRAIN SERVICES,
Fareham Borough Council,http://statistics.data.gov.uk/id/local-authority/24UE,ENVIRONMENT AND REGULATORY SER,BV03,ENVIRONMENTAL HEALTH,BV03C,DEPARTMENT OF OPERATIONS,PREMISES RELATED EXPENDITURE,2,"Works - Construction, Repair & Maintenance",39,GENERAL REPAIRS,2018,10/08/2017,594985,80.00 ,Revenue,M & B DRAIN SERVICES,
Fareham Borough Council,http://statistics.data.gov.uk/id/local-authority/24UE,HOUSING REVENUE ACCOUNT,BV06,RESPONSIVE & VOID MAINTENANCE,5901,DEPARTMENT OF OPERATIONS,PREMISES RELATED EXPENDITURE,2,"Works - Construction, Repair & Maintenance",39,GENERAL REPAIRS,2018,10/08/2017,594985,1040.00 ,Revenue,M & B DRAIN SERVICES,
Fareham Borough Council,http://statistics.data.gov.uk/id/local-authority/24UE,HOUSING REVENUE ACCOUNT,BV06,RESPONSIVE & VOID MAINTENANCE,5901,DEPARTMENT OF OPERATIONS,PREMISES RELATED EXPENDITURE,2,Building Construction Materials,10,GENERAL REPAIRS,2018,10/08/2017,594986,311.28 ,Revenue,BALMORAL FLOORING LTD,5196959
Fareham Borough Council,http://statistics.data.gov.uk/id/local-authority/24UE,HOUSING REVENUE ACCOUNT,BV06,RESPONSIVE & VOID MAINTENANCE,5901,DEPARTMENT OF OPERATIONS,PREMISES RELATED EXPENDITURE,2,Building Construction Materials,10,GENERAL REPAIRS,2018,10/08/2017,594986,640.87 ,Revenue,BALMORAL FLOORING LTD,5196959
Fareham Borough Council,http://statistics.data.gov.uk/id/local-authority/24UE,HOUSING REVENUE ACCOUNT,BV06,RESPONSIVE & VOID MAINTENANCE,5901,DEPARTMENT OF OPERATIONS,PREMISES RELATED EXPENDITURE,2,Building Construction Materials,10,GENERAL REPAIRS,2018,10/08/2017,594986,952.15 ,Revenue,BALMORAL FLOORING LTD,5196959
Fareham Borough Council,http://statistics.data.gov.uk/id/local-authority/24UE,HOUSING REVENUE ACCOUNT,BV06,RESPONSIVE & VOID MAINTENANCE,5901,DEPARTMENT OF OPERATIONS,PREMISES RELATED EXPENDITURE,2,Building Construction Materials,10,GENERAL REPAIRS,2018,10/08/2017,594986,-952.15 ,Revenue,BALMORAL FLOORING LTD,5196959
Fareham Borough Council,http://statistics.data.gov.uk/id/local-authority/24UE,CAPITAL PROGRAMME - OTHER SERVICES,CP,SCHEMES FUNDED FROM BALANCES,CP20,CAPITAL - SCHEMES FUNDED FROM BALANCES,SUPPLIES & SERVICES,4,Local/Central Government,98,CONSULTANTS FEES,4401,10/08/2017,594996,10598.00 ,Capital,HAMPSHIRE COUNTY COUNCIL,
Fareham Borough Council,http://statistics.data.gov.uk/id/local-authority/24UE,PLANNING SERVICES,BV13,PLANNING POLICY,BV13C,DEPT of STRATEGIC PLANNING and ENVIRONMENT,SUPPLIES & SERVICES,4,Consultancy,15,CONSULTANTS FEES,4401,10/08/2017,594997,3800.00 ,Revenue,NATHANIEL LICHFIELD & PARTNERS,02420307
Fareham Borough Council,http://statistics.data.gov.uk/id/local-authority/24UE,ENVIRONMENT AND REGULATORY SER,BV03,COAST PROTECTION,BV03B,DEPT of STRATEGIC PLANNING and ENVIRONMENT,PREMISES RELATED EXPENDITURE,2,Environmental Services,18,R&M OF GROUNDS,2060,10/08/2017,594998,8496.50 ,Revenue,SOIL MECHANICS ASSOCIATES LTD,09691118
Fareham Borough Council,http://statistics.data.gov.uk/id/local-authority/24UE,CAPITAL PROGRAMME - HOUSING SERVICES,CP,RENOVATION OF L.A. DWELLINGS,CP10,CAPITAL - IMPROVEMENTS WORK/MODERNIS'N,PREMISES RELATED EXPENDITURE,2,"Works - Construction, Repair & Maintenance",39,GENERAL REPAIRS,2018,10/08/2017,595001,4492.02 ,Capital,FUTUREMOST LTD,2207885
Fareham Borough Council,http://statistics.data.gov.uk/id/local-authority/24UE,OTHER REVENUE ACCOUNTS,RV,CONTRACT SERVICES D.S.O.,RV14,DEPARTMENT OF OPERATIONS,EMPLOYEES RELATED EXPENDITURE,1,Human Resources,26,AGENCY WORKERS,1050,10/08/2017,595003,527.44 ,Revenue,OFFICE ANGELS LTD,1985032
Fareham Borough Council,http://statistics.data.gov.uk/id/local-authority/24UE,OTHER REVENUE ACCOUNTS,RV,CONTRACT SERVICES D.S.O.,RV14,DEPARTMENT OF OPERATIONS,EMPLOYEES RELATED EXPENDITURE,1,Human Resources,26,AGENCY WORKERS,1050,10/08/2017,595004,830.88 ,Revenue,BUILDING RECRUITMENT COMPANY LTD,3750125
Fareham Borough Council,http://statistics.data.gov.uk/id/local-authority/24UE,OTHER REVENUE ACCOUNTS,RV,CONTRACT SERVICES D.S.O.,RV14,DEPARTMENT OF OPERATIONS,EMPLOYEES RELATED EXPENDITURE,1,Human Resources,26,AGENCY WORKERS,1050,10/08/2017,595005,820.62 ,Revenue,BUILDING RECRUITMENT COMPANY LTD,3750125
Fareham Borough Council,http://statistics.data.gov.uk/id/local-authority/24UE,GENERAL FUND HOUSING,BV05,HOMELESSNESS,BV05F,DEPARTMENT OF OPERATIONS,SUPPLIES & SERVICES,4,Facilities & Management Services,19,LOCAL ASSISTANCE PAYMENT,4727,10/08/2017,595022,2200.00 ,Revenue,redacted personal data,02122344
Fareham Borough Council,http://statistics.data.gov.uk/id/local-authority/24UE,CENTRAL SERVICES,BV07,CENTRAL SERVICES TO THE PUBLIC,BV07B,DEPARTMENT OF OPERATIONS,SUPPLIES & SERVICES,4,Financial Services,20,SPECIAL EXPENDITURE,4999,10/08/2017,595024,2.12 ,Revenue,ALLPAY LIMITED,02933191
Fareham Borough Council,http://statistics.data.gov.uk/id/local-authority/24UE,CENTRAL SERVICES,BV07,CENTRAL SERVICES TO THE PUBLIC,BV07B,DEPARTMENT OF OPERATIONS,SUPPLIES & SERVICES,4,Financial Services,20,BANK CHARGES,4954,10/08/2017,595024,83.74 ,Revenue,ALLPAY LIMITED,02933191
Fareham Borough Council,http://statistics.data.gov.uk/id/local-authority/24UE,CENTRAL SERVICES,BV07,CENTRAL SERVICES TO THE PUBLIC,BV07B,DEPARTMENT OF OPERATIONS,SUPPLIES & SERVICES,4,Financial Services,20,SPECIAL EXPENDITURE,4999,10/08/2017,595024,416.24 ,Revenue,ALLPAY LIMITED,02933191
Fareham Borough Council,http://statistics.data.gov.uk/id/local-authority/24UE,CENTRAL SERVICES,BV07,CENTRAL SERVICES TO THE PUBLIC,BV07B,DEPARTMENT OF OPERATIONS,SUPPLIES & SERVICES,4,Financial Services,20,BANK CHARGES,4954,10/08/2017,595024,934.77 ,Revenue,ALLPAY LIMITED,02933191
Fareham Borough Council,http://statistics.data.gov.uk/id/local-authority/24UE,CENTRAL SERVICES,BV07,CENTRAL SERVICES TO THE PUBLIC,BV07B,DEPARTMENT OF OPERATIONS,SUPPLIES & SERVICES,4,Legal Services,28,LEGAL FEES,4400,17/08/2017,595030,912.00 ,Revenue,GREENHALGH KERR,07739552
Fareham Borough Council,http://statistics.data.gov.uk/id/local-authority/24UE,CENTRAL SERVICES,BV07,CENTRAL SERVICES TO THE PUBLIC,BV07B,DEPARTMENT OF OPERATIONS,SUPPLIES & SERVICES,4,Legal Services,28,LEGAL FEES,4400,17/08/2017,595030,1153.40 ,Revenue,GREENHALGH KERR,07739552
Fareham Borough Council,http://statistics.data.gov.uk/id/local-authority/24UE,CENTRAL SERVICES,BV07,CENTRAL SERVICES TO THE PUBLIC,BV07B,DEPARTMENT OF OPERATIONS,SUPPLIES & SERVICES,4,Legal Services,28,LEGAL FEES,4400,17/08/2017,595030,-2065.40 ,Revenue,GREENHALGH KERR,07739552
Fareham Borough Council,http://statistics.data.gov.uk/id/local-authority/24UE,CENTRAL SERVICES,BV07,CENTRAL SERVICES TO THE PUBLIC,BV07B,DEPARTMENT OF OPERATIONS,SUPPLIES & SERVICES,4,Legal Services,28,LEGAL FEES,4400,17/08/2017,595030,729.60 ,Revenue,GREENHALGH KERR,07739552
Fareham Borough Council,http://statistics.data.gov.uk/id/local-authority/24UE,CENTRAL SERVICES,BV07,CENTRAL SERVICES TO THE PUBLIC,BV07B,DEPARTMENT OF OPERATIONS,SUPPLIES & SERVICES,4,Legal Services,28,LEGAL FEES,4400,17/08/2017,595030,2065.40 ,Revenue,GREENHALGH KERR,07739552
Fareham Borough Council,http://statistics.data.gov.uk/id/local-authority/24UE,CENTRAL SERVICES,BV07,CENTRAL SERVICES TO THE PUBLIC,BV07B,DEPARTMENT OF OPERATIONS,SUPPLIES & SERVICES,4,Furniture,21,FURNITURE & EQUIPT. PURCHASES,4000,10/08/2017,595033,26.64 ,Revenue,ACE OFFICE ENVIRONMENT,00781883
Fareham Borough Council,http://statistics.data.gov.uk/id/local-authority/24UE,CENTRAL SERVICES,BV07,CENTRAL SERVICES TO THE PUBLIC,BV07B,DEPARTMENT OF OPERATIONS,SUPPLIES & SERVICES,4,Furniture,21,FURNITURE & EQUIPT. PURCHASES,4000,10/08/2017,595033,506.09 ,Revenue,ACE OFFICE ENVIRONMENT,00781883
Fareham Borough Council,http://statistics.data.gov.uk/id/local-authority/24UE,GENERAL FUND HOUSING,BV05,HOUSING BENEFIT ADMINISTRATION,BV05H,DEPARTMENT OF OPERATIONS,EMPLOYEES RELATED EXPENDITURE,1,Human Resources,26,AGENCY WORKERS,1050,17/08/2017,595034,2290.66 ,Revenue,EDEN BROWN SYNERGY,3643845
Fareham Borough Council,http://statistics.data.gov.uk/id/local-authority/24UE,CENTRAL SERVICES,BV07,CENTRAL SERVICES TO THE PUBLIC,BV07B,DEPARTMENT OF OPERATIONS,EMPLOYEES RELATED EXPENDITURE,1,Human Resources,26,AGENCY WORKERS,1050,17/08/2017,595034,168.02 ,Revenue,EDEN BROWN SYNERGY,3643845
Fareham Borough Council,http://statistics.data.gov.uk/id/local-authority/24UE,CENTRAL SERVICES,BV07,CENTRAL SERVICES TO THE PUBLIC,BV07B,DEPARTMENT OF OPERATIONS,EMPLOYEES RELATED EXPENDITURE,1,Human Resources,26,AGENCY WORKERS,1050,17/08/2017,595034,1233.43 ,Revenue,EDEN BROWN SYNERGY,3643845
Fareham Borough Council,http://statistics.data.gov.uk/id/local-authority/24UE,CENTRAL SERVICES,BV07,CENTRAL SERVICES TO THE PUBLIC,BV07B,DEPARTMENT OF OPERATIONS,EMPLOYEES RELATED EXPENDITURE,1,Human Resources,26,AGENCY WORKERS,1050,17/08/2017,595034,3192.48 ,Revenue,EDEN BROWN SYNERGY,3643845
Fareham Borough Council,http://statistics.data.gov.uk/id/local-authority/24UE,CORPORATE & DEMOCRATIC CORE,BV07A,CORPORATE MANAGEMENT,BV07AB,DEPT of FINANCE and RESOURCES,SUPPLIES & SERVICES,4,Information Communication Technology,27,MOBILE TELEPHONES,4514,24/08/2017,595042,550.00 ,Revenue,VODAFONE LIMITED,01471587
Fareham Borough Council,http://statistics.data.gov.uk/id/local-authority/24UE,CAPITAL PROGRAMME - OTHER SERVICES,CP,COMPUTER APPROVED,CP23,CAPITAL - COMPUTER APPROVED,SUPPLIES & SERVICES,4,Financial Services,20,SOFTWARE LICENCES,4530,24/08/2017,595043,3135.00 ,Capital,CAPITA BUSINESS SERVICES LTD,02299747
Fareham Borough Council,http://statistics.data.gov.uk/id/local-authority/24UE,OTHER REVENUE ACCOUNTS,RV,NON WORK GROUP HOLDING ACCOUNT,RV18,DEPT of FINANCE and RESOURCES,SUPPLIES & SERVICES,4,Financial Services,20,FURNITURE & EQUIPT. PURCHASES,4000,24/08/2017,595043,567.00 ,Revenue,CAPITA BUSINESS SERVICES LTD,02299747
Fareham Borough Council,http://statistics.data.gov.uk/id/local-authority/24UE,CULTURAL AND RELATED SERVICES,BV09,RECREATION AND SPORT,BV09B,DEPARTMENT OF OPERATIONS,PREMISES RELATED EXPENDITURE,2,Building Construction Materials,10,R&M OF GROUNDS,2060,31/08/2017,595045,580.00 ,Revenue,J D C OUTDOOR SERVICES,05941402
Fareham Borough Council,http://statistics.data.gov.uk/id/local-authority/24UE,CULTURAL AND RELATED SERVICES,BV09,RECREATION AND SPORT,BV09B,DEPARTMENT OF OPERATIONS,PREMISES RELATED EXPENDITURE,2,Building Construction Materials,10,R&M OF GROUNDS,2060,31/08/2017,595045,195.00 ,Revenue,J D C OUTDOOR SERVICES,05941402
Fareham Borough Council,http://statistics.data.gov.uk/id/local-authority/24UE,CULTURAL AND RELATED SERVICES,BV09,RECREATION AND SPORT,BV09B,DEPARTMENT OF OPERATIONS,PREMISES RELATED EXPENDITURE,2,Building Construction Materials,10,R&M OF GROUNDS,2060,31/08/2017,595045,427.00 ,Revenue,J D C OUTDOOR SERVICES,05941402
Fareham Borough Council,http://statistics.data.gov.uk/id/local-authority/24UE,BALANCE SHEET,BS,FMS BAL.SHEET & CONTROL ACCT.,BS1,FMS BAL.SHEET & CONTROL ACCT.,CONTROL ACCOUNTS,C001,Financial Services,20,GOVT PROCURE CARD-CASH CONTROL,C114,10/08/2017,595051,2137.38 ,Balance Sheet,NATWEST COMMERCIAL CARDS,929027
Fareham Borough Council,http://statistics.data.gov.uk/id/local-authority/24UE,BALANCE SHEET,BS,FMS BAL.SHEET & CONTROL ACCT.,BS1,FMS BAL.SHEET & CONTROL ACCT.,CONTROL ACCOUNTS,C001,Financial Services,20,GOVT PROCURE CARD-CASH CONTROL,C114,10/08/2017,595052,19887.34 ,Balance Sheet,NATWEST COMMERCIAL CARDS,929027
Fareham Borough Council,http://statistics.data.gov.uk/id/local-authority/24UE,CULTURAL AND RELATED SERVICES,BV09,RECREATION AND SPORT,BV09B,DEPARTMENT OF OPERATIONS,PREMISES RELATED EXPENDITURE,2,Utilities,37,GAS,2130,10/08/2017,595053,91.49 ,Revenue,CORONA ENERGY RETAIL 1 LIMITED,02798334
Fareham Borough Council,http://statistics.data.gov.uk/id/local-authority/24UE,CULTURAL AND RELATED SERVICES,BV09,CULTURE AND HERITAGE,BV09A,DEPARTMENT OF OPERATIONS,PREMISES RELATED EXPENDITURE,2,Utilities,37,GAS,2130,10/08/2017,595053,978.78 ,Revenue,CORONA ENERGY RETAIL 1 LIMITED,02798334
Fareham Borough Council,http://statistics.data.gov.uk/id/local-authority/24UE,HOUSING REVENUE ACCOUNT,BV06,COMMUNAL HEATING SERVICES,5025,DEPARTMENT OF OPERATIONS,PREMISES RELATED EXPENDITURE,2,Utilities,37,GAS,2130,10/08/2017,595053,1324.35 ,Revenue,CORONA ENERGY RETAIL 1 LIMITED,02798334
Fareham Borough Council,http://statistics.data.gov.uk/id/local-authority/24UE,HOUSING REVENUE ACCOUNT,BV06,COMMUNAL HEATING SERVICES,5025,DEPARTMENT OF OPERATIONS,PREMISES RELATED EXPENDITURE,2,Utilities,37,GAS,2130,10/08/2017,595053,1886.42 ,Revenue,CORONA ENERGY RETAIL 1 LIMITED,02798334
Fareham Borough Council,http://statistics.data.gov.uk/id/local-authority/24UE,OTHER REVENUE ACCOUNTS,RV,NON WORK GROUP HOLDING ACCOUNT,RV18,DEPT of FINANCE and RESOURCES,PREMISES RELATED EXPENDITURE,2,Utilities,37,GAS,2130,10/08/2017,595053,1361.97 ,Revenue,CORONA ENERGY RETAIL 1 LIMITED,02798334
Fareham Borough Council,http://statistics.data.gov.uk/id/local-authority/24UE,OTHER REVENUE ACCOUNTS,RV,NON WORK GROUP HOLDING ACCOUNT,RV18,DEPT of FINANCE and RESOURCES,PREMISES RELATED EXPENDITURE,2,Utilities,37,GAS,2130,10/08/2017,595053,683.45 ,Revenue,CORONA ENERGY RETAIL 1 LIMITED,02798334
Fareham Borough Council,http://statistics.data.gov.uk/id/local-authority/24UE,OTHER REVENUE ACCOUNTS,RV,NON WORK GROUP HOLDING ACCOUNT,RV18,DEPT of FINANCE and RESOURCES,PREMISES RELATED EXPENDITURE,2,Utilities,37,GAS,2130,10/08/2017,595053,180.64 ,Revenue,CORONA ENERGY RETAIL 1 LIMITED,02798334
Fareham Borough Council,http://statistics.data.gov.uk/id/local-authority/24UE,CULTURAL AND RELATED SERVICES,BV09,CULTURE AND HERITAGE,BV09A,DEPARTMENT OF OPERATIONS,SUPPLIES & SERVICES,4,Financial Services,20,CREDIT CARD CHARGES,4957,10/08/2017,595057,574.30 ,Revenue,WORLDPAY,07316500
Fareham Borough Council,http://statistics.data.gov.uk/id/local-authority/24UE,CULTURAL AND RELATED SERVICES,BV09,CULTURE AND HERITAGE,BV09A,DEPARTMENT OF OPERATIONS,SUPPLIES & SERVICES,4,Financial Services,20,CREDIT CARD CHARGES,4957,10/08/2017,595057,50.89 ,Revenue,WORLDPAY,07316500
Fareham Borough Council,http://statistics.data.gov.uk/id/local-authority/24UE,CORPORATE & DEMOCRATIC CORE,BV07A,CORPORATE MANAGEMENT,BV07AB,DEPT of FINANCE and RESOURCES,SUPPLIES & SERVICES,4,Financial Services,20,EXTERNAL AUDIT FEES,4419,31/08/2017,595058,16048.00 ,Revenue,ERNST & YOUNG LLP,OC300001
Fareham Borough Council,http://statistics.data.gov.uk/id/local-authority/24UE,OTHER REVENUE ACCOUNTS,RV,NON WORK GROUP HOLDING ACCOUNT,RV18,DEPT of FINANCE and RESOURCES,SUPPLIES & SERVICES,4,Information Communication Technology,27,SOFTWARE LICENCES,4530,24/08/2017,595060,416.71 ,Revenue,FRONTIER SOFTWARE PLC,02512827
Fareham Borough Council,http://statistics.data.gov.uk/id/local-authority/24UE,OTHER REVENUE ACCOUNTS,RV,NON WORK GROUP HOLDING ACCOUNT,RV18,DEPT of FINANCE and RESOURCES,SUPPLIES & SERVICES,4,Information Communication Technology,27,SOFTWARE LICENCES,4530,24/08/2017,595060,1750.00 ,Revenue,FRONTIER SOFTWARE PLC,02512827
Fareham Borough Council,http://statistics.data.gov.uk/id/local-authority/24UE,OTHER REVENUE ACCOUNTS,RV,NON WORK GROUP HOLDING ACCOUNT,RV18,DEPT of FINANCE and RESOURCES,SUPPLIES & SERVICES,4,Information Communication Technology,27,SOFTWARE LICENCES,4530,24/08/2017,595060,1750.00 ,Revenue,FRONTIER SOFTWARE PLC,02512827
Fareham Borough Council,http://statistics.data.gov.uk/id/local-authority/24UE,OTHER REVENUE ACCOUNTS,RV,NON WORK GROUP HOLDING ACCOUNT,RV18,DEPT of FINANCE and RESOURCES,SUPPLIES & SERVICES,4,Information Communication Technology,27,SOFTWARE LICENCES,4530,24/08/2017,595060,3500.00 ,Revenue,FRONTIER SOFTWARE PLC,02512827
Fareham Borough Council,http://statistics.data.gov.uk/id/local-authority/24UE,OTHER REVENUE ACCOUNTS,RV,NON WORK GROUP HOLDING ACCOUNT,RV18,DEPT of FINANCE and RESOURCES,SUPPLIES & SERVICES,4,Information Communication Technology,27,SOFTWARE LICENCES,4530,24/08/2017,595060,2000.00 ,Revenue,FRONTIER SOFTWARE PLC,02512827
Fareham Borough Council,http://statistics.data.gov.uk/id/local-authority/24UE,OTHER REVENUE ACCOUNTS,RV,NON WORK GROUP HOLDING ACCOUNT,RV18,DEPT of FINANCE and RESOURCES,SUPPLIES & SERVICES,4,Information Communication Technology,27,SOFTWARE LICENCES,4530,24/08/2017,595060,8500.00 ,Revenue,FRONTIER SOFTWARE PLC,02512827
Fareham Borough Council,http://statistics.data.gov.uk/id/local-authority/24UE,OTHER REVENUE ACCOUNTS,RV,NON WORK GROUP HOLDING ACCOUNT,RV18,DEPT of FINANCE and RESOURCES,SUPPLIES & SERVICES,4,Information Communication Technology,27,SOFTWARE LICENCES,4530,24/08/2017,595060,2000.00 ,Revenue,FRONTIER SOFTWARE PLC,02512827
Fareham Borough Council,http://statistics.data.gov.uk/id/local-authority/24UE,OTHER REVENUE ACCOUNTS,RV,CONTRACT SERVICES D.S.O.,RV14,DEPARTMENT OF OPERATIONS,EMPLOYEES RELATED EXPENDITURE,1,Human Resources,26,AGENCY WORKERS,1050,17/08/2017,595066,2204.33 ,Revenue,BUZZ PEOPLE RECRUITMENT LTD,07908887
Fareham Borough Council,http://statistics.data.gov.uk/id/local-authority/24UE,OTHER REVENUE ACCOUNTS,RV,CONTRACT SERVICES D.S.O.,RV14,DEPARTMENT OF OPERATIONS,EMPLOYEES RELATED EXPENDITURE,1,Human Resources,26,AGENCY WORKERS,1050,17/08/2017,595067,3344.72 ,Revenue,BUZZ PEOPLE RECRUITMENT LTD,07908887
Fareham Borough Council,http://statistics.data.gov.uk/id/local-authority/24UE,ENVIRONMENT AND REGULATORY SER,BV03,WASTE COLLECTION,BV03G,DEPARTMENT OF OPERATIONS,EMPLOYEES RELATED EXPENDITURE,1,Human Resources,26,AGENCY WORKERS,1050,17/08/2017,595068,6760.75 ,Revenue,BUZZ PEOPLE RECRUITMENT LTD,07908887
Fareham Borough Council,http://statistics.data.gov.uk/id/local-authority/24UE,ENVIRONMENT AND REGULATORY SER,BV03,WASTE COLLECTION,BV03G,DEPARTMENT OF OPERATIONS,EMPLOYEES RELATED EXPENDITURE,1,Human Resources,26,AGENCY WORKERS,1050,17/08/2017,595068,2339.02 ,Revenue,BUZZ PEOPLE RECRUITMENT LTD,07908887
Fareham Borough Council,http://statistics.data.gov.uk/id/local-authority/24UE,ENVIRONMENT AND REGULATORY SER,BV03,WASTE COLLECTION,BV03G,DEPARTMENT OF OPERATIONS,EMPLOYEES RELATED EXPENDITURE,1,Human Resources,26,AGENCY WORKERS,1050,17/08/2017,595068,5766.45 ,Revenue,BUZZ PEOPLE RECRUITMENT LTD,07908887
Fareham Borough Council,http://statistics.data.gov.uk/id/local-authority/24UE,ENVIRONMENT AND REGULATORY SER,BV03,WASTE COLLECTION,BV03G,DEPARTMENT OF OPERATIONS,EMPLOYEES RELATED EXPENDITURE,1,Human Resources,26,AGENCY WORKERS,1050,17/08/2017,595068,5898.57 ,Revenue,BUZZ PEOPLE RECRUITMENT LTD,07908887
Fareham Borough Council,http://statistics.data.gov.uk/id/local-authority/24UE,CENTRAL SERVICES,BV07,CENTRAL SERVICES TO THE PUBLIC,BV07B,DEPT of FINANCE and RESOURCES,SUPPLIES & SERVICES,4,Facilities & Management Services,19,POSTAGES,4500,10/08/2017,595069,5448.52 ,Revenue,FINANCIAL DATA MANAGEMENT LTD,2827644
Fareham Borough Council,http://statistics.data.gov.uk/id/local-authority/24UE,CENTRAL SERVICES,BV07,CENTRAL SERVICES TO THE PUBLIC,BV07B,DEPT of FINANCE and RESOURCES,SUPPLIES & SERVICES,4,Facilities & Management Services,19,POSTAGES,4500,10/08/2017,595070,6333.50 ,Revenue,FINANCIAL DATA MANAGEMENT LTD,2827644
Fareham Borough Council,http://statistics.data.gov.uk/id/local-authority/24UE,CAPITAL PROGRAMME - OTHER SERVICES,CP,SCHEMES FUNDED FROM BALANCES,CP20,CAPITAL - SCHEMES FUNDED FROM BALANCES,PREMISES RELATED EXPENDITURE,2,"Works - Construction, Repair & Maintenance",39,R & M OF BUILDINGS,2000,10/08/2017,595074,748723.95 ,Capital,MORGAN SINDALL CONSTRUCT & INFRASTRUCTURE LTD,4273754
Fareham Borough Council,http://statistics.data.gov.uk/id/local-authority/24UE,ENVIRONMENT AND REGULATORY SER,BV03,CEMETERIES CREM & MORTUARY,BV03A,DEPARTMENT OF OPERATIONS,PREMISES RELATED EXPENDITURE,2,Building Construction Materials,10,R & M OF BUILDINGS,2000,24/08/2017,595079,27.85 ,Revenue,TSG BUILDING SERVICES,03908728
Fareham Borough Council,http://statistics.data.gov.uk/id/local-authority/24UE,CULTURAL AND RELATED SERVICES,BV09,RECREATION AND SPORT,BV09B,DEPARTMENT OF OPERATIONS,PREMISES RELATED EXPENDITURE,2,Building Construction Materials,10,R & M OF BUILDINGS,2000,24/08/2017,595079,103.76 ,Revenue,TSG BUILDING SERVICES,03908728
Fareham Borough Council,http://statistics.data.gov.uk/id/local-authority/24UE,CULTURAL AND RELATED SERVICES,BV09,CULTURE AND HERITAGE,BV09A,DEPARTMENT OF OPERATIONS,PREMISES RELATED EXPENDITURE,2,Building Construction Materials,10,R & M OF FIXED PLANT,2040,24/08/2017,595079,100.89 ,Revenue,TSG BUILDING SERVICES,03908728
Fareham Borough Council,http://statistics.data.gov.uk/id/local-authority/24UE,CULTURAL AND RELATED SERVICES,BV09,RECREATION AND SPORT,BV09B,DEPARTMENT OF OPERATIONS,PREMISES RELATED EXPENDITURE,2,Building Construction Materials,10,R & M OF BUILDINGS,2000,24/08/2017,595079,103.76 ,Revenue,TSG BUILDING SERVICES,03908728
Fareham Borough Council,http://statistics.data.gov.uk/id/local-authority/24UE,CAPITAL PROGRAMME - HOUSING SERVICES,CP,RENOVATION OF L.A. DWELLINGS,CP10,CAPITAL - IMPROVEMENTS WORK/MODERNIS'N,PREMISES RELATED EXPENDITURE,2,Building Construction Materials,10,R & M OF BUILDINGS,2000,24/08/2017,595079,29636.78 ,Capital,TSG BUILDING SERVICES,03908728
Fareham Borough Council,http://statistics.data.gov.uk/id/local-authority/24UE,HOUSING REVENUE ACCOUNT,BV06,RESPONSIVE & VOID MAINTENANCE,5901,DEPARTMENT OF OPERATIONS,PREMISES RELATED EXPENDITURE,2,Building Construction Materials,10,GAS SERVICING & ASSOC REPAIRS,2029,24/08/2017,595079,26517.89 ,Revenue,TSG BUILDING SERVICES,03908728
Fareham Borough Council,http://statistics.data.gov.uk/id/local-authority/24UE,OTHER REVENUE ACCOUNTS,RV,NON WORK GROUP HOLDING ACCOUNT,RV18,DEPT of FINANCE and RESOURCES,PREMISES RELATED EXPENDITURE,2,Building Construction Materials,10,R & M OF FIXED PLANT,2040,24/08/2017,595079,76.87 ,Revenue,TSG BUILDING SERVICES,03908728
Fareham Borough Council,http://statistics.data.gov.uk/id/local-authority/24UE,OTHER REVENUE ACCOUNTS,RV,NON WORK GROUP HOLDING ACCOUNT,RV18,DEPT of FINANCE and RESOURCES,PREMISES RELATED EXPENDITURE,2,Building Construction Materials,10,R & M OF FIXED PLANT,2040,24/08/2017,595079,99.89 ,Revenue,TSG BUILDING SERVICES,03908728
Fareham Borough Council,http://statistics.data.gov.uk/id/local-authority/24UE,CAPITAL PROGRAMME - HOUSING SERVICES,CP,RENOVATION OF L.A. DWELLINGS,CP10,CAPITAL - IMPROVEMENTS WORK/MODERNIS'N,PREMISES RELATED EXPENDITURE,2,"Works - Construction, Repair & Maintenance",39,GENERAL REPAIRS,2018,10/08/2017,595084,6571.16 ,Capital,FUTUREMOST LTD,2207885
Fareham Borough Council,http://statistics.data.gov.uk/id/local-authority/24UE,CAPITAL PROGRAMME - HOUSING SERVICES,CP,RENOVATION OF L.A. DWELLINGS,CP10,CAPITAL - IMPROVEMENTS WORK/MODERNIS'N,PREMISES RELATED EXPENDITURE,2,Building Construction Materials,10,R & M OF BUILDINGS,2000,24/08/2017,595085,1068.28 ,Capital,TSG BUILDING SERVICES,03908728
Fareham Borough Council,http://statistics.data.gov.uk/id/local-authority/24UE,HOUSING REVENUE ACCOUNT,BV06,RESPONSIVE & VOID MAINTENANCE,5901,DEPARTMENT OF OPERATIONS,PREMISES RELATED EXPENDITURE,2,Building Construction Materials,10,GAS SERVICING & ASSOC REPAIRS,2029,24/08/2017,595085,949.02 ,Revenue,TSG BUILDING SERVICES,03908728
Fareham Borough Council,http://statistics.data.gov.uk/id/local-authority/24UE,OTHER REVENUE ACCOUNTS,RV,NON WORK GROUP HOLDING ACCOUNT,RV18,DEPT of FINANCE and RESOURCES,PREMISES RELATED EXPENDITURE,2,Building Construction Materials,10,R & M OF FIXED PLANT,2040,24/08/2017,595085,22.30 ,Revenue,TSG BUILDING SERVICES,03908728
Fareham Borough Council,http://statistics.data.gov.uk/id/local-authority/24UE,CAPITAL PROGRAMME - HOUSING SERVICES,CP,RENOVATION OF L.A. DWELLINGS,CP10,CAPITAL - IMPROVEMENTS WORK/MODERNIS'N,PREMISES RELATED EXPENDITURE,2,"Works - Construction, Repair & Maintenance",39,MODIFICATIONS,2023,10/08/2017,595087,277.00 ,Capital,JPC PROPERTY SERVICES LTD,4704385
Fareham Borough Council,http://statistics.data.gov.uk/id/local-authority/24UE,CAPITAL PROGRAMME - HOUSING SERVICES,CP,RENOVATION OF L.A. DWELLINGS,CP10,CAPITAL - IMPROVEMENTS WORK/MODERNIS'N,PREMISES RELATED EXPENDITURE,2,"Works - Construction, Repair & Maintenance",39,VOID COSTS - NOT RECHARGEABLE,2011,10/08/2017,595087,3019.60 ,Capital,JPC PROPERTY SERVICES LTD,4704385
Fareham Borough Council,http://statistics.data.gov.uk/id/local-authority/24UE,CAPITAL PROGRAMME - HOUSING SERVICES,CP,RENOVATION OF L.A. DWELLINGS,CP10,CAPITAL - IMPROVEMENTS WORK/MODERNIS'N,PREMISES RELATED EXPENDITURE,2,"Works - Construction, Repair & Maintenance",39,MODIFICATIONS,2023,10/08/2017,595087,39399.75 ,Capital,JPC PROPERTY SERVICES LTD,4704385
Fareham Borough Council,http://statistics.data.gov.uk/id/local-authority/24UE,CAPITAL PROGRAMME - HOUSING SERVICES,CP,RENOVATION OF L.A. DWELLINGS,CP10,CAPITAL - IMPROVEMENTS WORK/MODERNIS'N,PREMISES RELATED EXPENDITURE,2,"Works - Construction, Repair & Maintenance",39,MODIFICATIONS,2023,10/08/2017,595087,15152.10 ,Capital,JPC PROPERTY SERVICES LTD,4704385
Fareham Borough Council,http://statistics.data.gov.uk/id/local-authority/24UE,CAPITAL PROGRAMME - HOUSING SERVICES,CP,RENOVATION OF L.A. DWELLINGS,CP10,CAPITAL - IMPROVEMENTS WORK/MODERNIS'N,PREMISES RELATED EXPENDITURE,2,"Works - Construction, Repair & Maintenance",39,VOID COSTS - NOT RECHARGEABLE,2011,10/08/2017,595087,1483.75 ,Capital,JPC PROPERTY SERVICES LTD,4704385
Fareham Borough Council,http://statistics.data.gov.uk/id/local-authority/24UE,CAPITAL PROGRAMME - HOUSING SERVICES,CP,RENOVATION OF L.A. DWELLINGS,CP10,CAPITAL - IMPROVEMENTS WORK/MODERNIS'N,PREMISES RELATED EXPENDITURE,2,"Works - Construction, Repair & Maintenance",39,VOID COSTS - NOT RECHARGEABLE,2011,10/08/2017,595087,9235.21 ,Capital,JPC PROPERTY SERVICES LTD,4704385
Fareham Borough Council,http://statistics.data.gov.uk/id/local-authority/24UE,CAPITAL PROGRAMME - HOUSING SERVICES,CP,RENOVATION OF L.A. DWELLINGS,CP10,CAPITAL - IMPROVEMENTS WORK/MODERNIS'N,PREMISES RELATED EXPENDITURE,2,"Works - Construction, Repair & Maintenance",39,VOID COSTS - NOT RECHARGEABLE,2011,10/08/2017,595087,8968.59 ,Capital,JPC PROPERTY SERVICES LTD,4704385
Fareham Borough Council,http://statistics.data.gov.uk/id/local-authority/24UE,CAPITAL PROGRAMME - HOUSING SERVICES,CP,RENOVATION OF L.A. DWELLINGS,CP10,CAPITAL - IMPROVEMENTS WORK/MODERNIS'N,PREMISES RELATED EXPENDITURE,2,"Works - Construction, Repair & Maintenance",39,VOID COSTS - NOT RECHARGEABLE,2011,10/08/2017,595087,5905.20 ,Capital,JPC PROPERTY SERVICES LTD,4704385
Fareham Borough Council,http://statistics.data.gov.uk/id/local-authority/24UE,HOUSING REVENUE ACCOUNT,BV06,RESPONSIVE & VOID MAINTENANCE,5901,DEPARTMENT OF OPERATIONS,PREMISES RELATED EXPENDITURE,2,"Works - Construction, Repair & Maintenance",39,VOID COSTS - NOT RECHARGEABLE,2011,10/08/2017,595087,40729.61 ,Revenue,JPC PROPERTY SERVICES LTD,4704385
Fareham Borough Council,http://statistics.data.gov.uk/id/local-authority/24UE,HOUSING REVENUE ACCOUNT,BV06,RESPONSIVE & VOID MAINTENANCE,5901,DEPARTMENT OF OPERATIONS,PREMISES RELATED EXPENDITURE,2,"Works - Construction, Repair & Maintenance",39,GENERAL REPAIRS,2018,10/08/2017,595087,6345.25 ,Revenue,JPC PROPERTY SERVICES LTD,4704385
Fareham Borough Council,http://statistics.data.gov.uk/id/local-authority/24UE,CAPITAL PROGRAMME - OTHER SERVICES,CP,SCHEMES FUNDED FROM BALANCES,CP20,CAPITAL - SCHEMES FUNDED FROM BALANCES,PREMISES RELATED EXPENDITURE,2,Building Construction Materials,10,R & M OF BUILDINGS,2000,10/08/2017,595088,519318.83 ,Capital,MILDREN CONSTRUCTION LTD,02136748
Fareham Borough Council,http://statistics.data.gov.uk/id/local-authority/24UE,CAPITAL PROGRAMME - HOUSING SERVICES,CP,RENOVATION OF L.A. DWELLINGS,CP10,CAPITAL - IMPROVEMENTS WORK/MODERNIS'N,PREMISES RELATED EXPENDITURE,2,"Works - Construction, Repair & Maintenance",39,R & M OF BUILDINGS,2000,10/08/2017,595089,13720.61 ,Capital,JPC PROPERTY SERVICES LTD,4704385
Fareham Borough Council,http://statistics.data.gov.uk/id/local-authority/24UE,HOUSING REVENUE ACCOUNT,BV06,GENERAL ADMINISTRATION EXPENSE,5021,DEPARTMENT OF OPERATIONS,PREMISES RELATED EXPENDITURE,2,"Works - Construction, Repair & Maintenance",39,R & M OF BUILDINGS,2000,10/08/2017,595090,1190.00 ,Revenue,P R D ELECTRICAL LTD,9846111
Fareham Borough Council,http://statistics.data.gov.uk/id/local-authority/24UE,HOUSING REVENUE ACCOUNT,BV06,RESPONSIVE & VOID MAINTENANCE,5901,DEPARTMENT OF OPERATIONS,PREMISES RELATED EXPENDITURE,2,"Works - Construction, Repair & Maintenance",39,GENERAL REPAIRS,2018,10/08/2017,595090,325.75 ,Revenue,P R D ELECTRICAL LTD,9846111
Fareham Borough Council,http://statistics.data.gov.uk/id/local-authority/24UE,FINANCING & INVESTMENT I&E,BVB02,INVESTMENT PROPERTIES,BVB170,DEPT of FINANCE and RESOURCES,PREMISES RELATED EXPENDITURE,2,Facilities & Management Services,19,R & M OF BUILDINGS,2000,10/08/2017,595091,127.33 ,Revenue,TEMPLE LIFTS LTD,2388497
Fareham Borough Council,http://statistics.data.gov.uk/id/local-authority/24UE,HIGHWAYS ROADS AND TRANSPORT,BV12,PARKING SERVICES,BV12D,DEPARTMENT OF OPERATIONS,PREMISES RELATED EXPENDITURE,2,Facilities & Management Services,19,R & M OF LIFTS,2050,10/08/2017,595091,345.16 ,Revenue,TEMPLE LIFTS LTD,2388497
Fareham Borough Council,http://statistics.data.gov.uk/id/local-authority/24UE,HOUSING REVENUE ACCOUNT,BV06,RESPONSIVE & VOID MAINTENANCE,5901,DEPARTMENT OF OPERATIONS,PREMISES RELATED EXPENDITURE,2,Facilities & Management Services,19,SERVICING,2083,10/08/2017,595091,554.66 ,Revenue,TEMPLE LIFTS LTD,2388497
Fareham Borough Council,http://statistics.data.gov.uk/id/local-authority/24UE,OTHER REVENUE ACCOUNTS,RV,NON WORK GROUP HOLDING ACCOUNT,RV18,DEPT of FINANCE and RESOURCES,PREMISES RELATED EXPENDITURE,2,Facilities & Management Services,19,R & M OF LIFTS,2050,10/08/2017,595091,925.46 ,Revenue,TEMPLE LIFTS LTD,2388497
Fareham Borough Council,http://statistics.data.gov.uk/id/local-authority/24UE,CULTURAL AND RELATED SERVICES,BV09,RECREATION AND SPORT,BV09B,DEPARTMENT OF OPERATIONS,SUPPLIES & SERVICES,4,Building Construction Materials,10,FURNITURE & EQUIPT. PURCHASES,4000,17/08/2017,595092,3496.00 ,Revenue,J D C OUTDOOR SERVICES,05941402
Fareham Borough Council,http://statistics.data.gov.uk/id/local-authority/24UE,CULTURAL AND RELATED SERVICES,BV09,RECREATION AND SPORT,BV09B,DEPARTMENT OF OPERATIONS,PREMISES RELATED EXPENDITURE,2,"Works - Construction, Repair & Maintenance",39,R & M OF BUILDINGS,2000,10/08/2017,595093,326.94 ,Revenue,BCG ELECTRICAL SERVICES LIMITED,5097428
Fareham Borough Council,http://statistics.data.gov.uk/id/local-authority/24UE,CULTURAL AND RELATED SERVICES,BV09,CULTURE AND HERITAGE,BV09A,DEPARTMENT OF OPERATIONS,PREMISES RELATED EXPENDITURE,2,"Works - Construction, Repair & Maintenance",39,R & M OF BUILDINGS,2000,10/08/2017,595093,110.39 ,Revenue,BCG ELECTRICAL SERVICES LIMITED,5097428
Fareham Borough Council,http://statistics.data.gov.uk/id/local-authority/24UE,CULTURAL AND RELATED SERVICES,BV09,RECREATION AND SPORT,BV09B,DEPARTMENT OF OPERATIONS,PREMISES RELATED EXPENDITURE,2,"Works - Construction, Repair & Maintenance",39,R & M OF BUILDINGS,2000,10/08/2017,595093,243.00 ,Revenue,BCG ELECTRICAL SERVICES LIMITED,5097428
Fareham Borough Council,http://statistics.data.gov.uk/id/local-authority/24UE,HIGHWAYS ROADS AND TRANSPORT,BV12,PARKING SERVICES,BV12D,DEPARTMENT OF OPERATIONS,PREMISES RELATED EXPENDITURE,2,"Works - Construction, Repair & Maintenance",39,R & M OF BUILDINGS,2000,10/08/2017,595093,225.00 ,Revenue,BCG ELECTRICAL SERVICES LIMITED,5097428
Fareham Borough Council,http://statistics.data.gov.uk/id/local-authority/24UE,ENVIRONMENT AND REGULATORY SER,BV03,ENVIRONMENTAL HEALTH,BV03C,DEPARTMENT OF OPERATIONS,PREMISES RELATED EXPENDITURE,2,"Works - Construction, Repair & Maintenance",39,R & M OF BUILDINGS,2000,10/08/2017,595093,72.00 ,Revenue,BCG ELECTRICAL SERVICES LIMITED,5097428
Fareham Borough Council,http://statistics.data.gov.uk/id/local-authority/24UE,HOUSING REVENUE ACCOUNT,BV06,RESPONSIVE & VOID MAINTENANCE,5901,DEPARTMENT OF OPERATIONS,PREMISES RELATED EXPENDITURE,2,"Works - Construction, Repair & Maintenance",39,GENERAL REPAIRS,2018,10/08/2017,595093,3174.27 ,Revenue,BCG ELECTRICAL SERVICES LIMITED,5097428
Fareham Borough Council,http://statistics.data.gov.uk/id/local-authority/24UE,OTHER REVENUE ACCOUNTS,RV,NON WORK GROUP HOLDING ACCOUNT,RV18,DEPT of FINANCE and RESOURCES,PREMISES RELATED EXPENDITURE,2,"Works - Construction, Repair & Maintenance",39,R & M OF BUILDINGS,2000,10/08/2017,595093,1054.00 ,Revenue,BCG ELECTRICAL SERVICES LIMITED,5097428
Fareham Borough Council,http://statistics.data.gov.uk/id/local-authority/24UE,OTHER REVENUE ACCOUNTS,RV,NON WORK GROUP HOLDING ACCOUNT,RV18,DEPT of FINANCE and RESOURCES,PREMISES RELATED EXPENDITURE,2,"Works - Construction, Repair & Maintenance",39,R & M OF BUILDINGS,2000,10/08/2017,595093,54.00 ,Revenue,BCG ELECTRICAL SERVICES LIMITED,5097428
Fareham Borough Council,http://statistics.data.gov.uk/id/local-authority/24UE,CENTRAL SERVICES,BV07,CENTRAL SERVICES TO THE PUBLIC,BV07B,DEPARTMENT OF OPERATIONS,SUPPLIES & SERVICES,4,Information Communication Technology,27,CONSULTANTS FEES,4401,24/08/2017,595096,57.50 ,Revenue,NORTHGATE PUBLIC SERVICES (UK) LTD,968498
Fareham Borough Council,http://statistics.data.gov.uk/id/local-authority/24UE,CENTRAL SERVICES,BV07,CENTRAL SERVICES TO THE PUBLIC,BV07B,DEPARTMENT OF OPERATIONS,SUPPLIES & SERVICES,4,Information Communication Technology,27,CONSULTANTS FEES,4401,24/08/2017,595096,1092.50 ,Revenue,NORTHGATE PUBLIC SERVICES (UK) LTD,968498
Fareham Borough Council,http://statistics.data.gov.uk/id/local-authority/24UE,CULTURAL AND RELATED SERVICES,BV09,RECREATION AND SPORT,BV09B,DEPARTMENT OF OPERATIONS,PREMISES RELATED EXPENDITURE,2,Horticultural,24,R&M OF TREE PRESERVATION,2063,10/08/2017,595097,420.00 ,Revenue,TITCHFIELD TREE SERVICES LTD,
Fareham Borough Council,http://statistics.data.gov.uk/id/local-authority/24UE,CULTURAL AND RELATED SERVICES,BV09,RECREATION AND SPORT,BV09B,DEPARTMENT OF OPERATIONS,PREMISES RELATED EXPENDITURE,2,Horticultural,24,R&M OF TREE PRESERVATION,2063,10/08/2017,595097,210.00 ,Revenue,TITCHFIELD TREE SERVICES LTD,
Fareham Borough Council,http://statistics.data.gov.uk/id/local-authority/24UE,HOUSING REVENUE ACCOUNT,BV06,RESPONSIVE & VOID MAINTENANCE,5901,DEPARTMENT OF OPERATIONS,PREMISES RELATED EXPENDITURE,2,Building Construction Materials,10,GENERAL REPAIRS,2018,17/08/2017,595101,5703.68 ,Revenue,SOUTHERN ELECTRIC CONTRACTING LTD,2317133
Fareham Borough Council,http://statistics.data.gov.uk/id/local-authority/24UE,ENVIRONMENT AND REGULATORY SER,BV03,WASTE COLLECTION,BV03G,DEPARTMENT OF OPERATIONS,SUPPLIES & SERVICES,4,Local/Central Government,98,TIPPING / INCINERATOR FEES,4425,10/08/2017,595103,50000.00 ,Revenue,HAMPSHIRE COUNTY COUNCIL,
Fareham Borough Council,http://statistics.data.gov.uk/id/local-authority/24UE,ENVIRONMENT AND REGULATORY SER,BV03,CEMETERIES CREM & MORTUARY,BV03A,DEPARTMENT OF OPERATIONS,PREMISES RELATED EXPENDITURE,2,Utilities,37,ELECTRICITY,2120,10/08/2017,595105,22.43 ,Revenue,BRITISH GAS BUSINESS,03078711
Fareham Borough Council,http://statistics.data.gov.uk/id/local-authority/24UE,FINANCING & INVESTMENT I&E,BVB02,INVESTMENT PROPERTIES,BVB170,DEPT of FINANCE and RESOURCES,PREMISES RELATED EXPENDITURE,2,Utilities,37,ELECTRICITY,2120,10/08/2017,595105,313.67 ,Revenue,BRITISH GAS BUSINESS,03078711
Fareham Borough Council,http://statistics.data.gov.uk/id/local-authority/24UE,CULTURAL AND RELATED SERVICES,BV09,RECREATION AND SPORT,BV09B,DEPARTMENT OF OPERATIONS,PREMISES RELATED EXPENDITURE,2,Utilities,37,ELECTRICITY,2120,10/08/2017,595105,411.55 ,Revenue,BRITISH GAS BUSINESS,03078711
Fareham Borough Council,http://statistics.data.gov.uk/id/local-authority/24UE,CULTURAL AND RELATED SERVICES,BV09,RECREATION AND SPORT,BV09B,DEPARTMENT OF OPERATIONS,PREMISES RELATED EXPENDITURE,2,Utilities,37,ELECTRICITY,2120,10/08/2017,595105,255.97 ,Revenue,BRITISH GAS BUSINESS,03078711
Fareham Borough Council,http://statistics.data.gov.uk/id/local-authority/24UE,CULTURAL AND RELATED SERVICES,BV09,RECREATION AND SPORT,BV09B,DEPARTMENT OF OPERATIONS,PREMISES RELATED EXPENDITURE,2,Utilities,37,ELECTRICITY,2120,10/08/2017,595105,99.52 ,Revenue,BRITISH GAS BUSINESS,03078711
Fareham Borough Council,http://statistics.data.gov.uk/id/local-authority/24UE,HIGHWAYS ROADS AND TRANSPORT,BV12,PARKING SERVICES,BV12D,DEPARTMENT OF OPERATIONS,PREMISES RELATED EXPENDITURE,2,Utilities,37,ELECTRICITY,2120,10/08/2017,595105,4967.61 ,Revenue,BRITISH GAS BUSINESS,03078711
Fareham Borough Council,http://statistics.data.gov.uk/id/local-authority/24UE,ENVIRONMENT AND REGULATORY SER,BV03,ENVIRONMENTAL HEALTH,BV03C,DEPARTMENT OF OPERATIONS,PREMISES RELATED EXPENDITURE,2,Utilities,37,ELECTRICITY,2120,10/08/2017,595105,331.01 ,Revenue,BRITISH GAS BUSINESS,03078711
Fareham Borough Council,http://statistics.data.gov.uk/id/local-authority/24UE,HOUSING REVENUE ACCOUNT,BV06,COMMUNAL HEATING SERVICES,5025,DEPARTMENT OF OPERATIONS,PREMISES RELATED EXPENDITURE,2,Utilities,37,ELECTRICITY,2120,10/08/2017,595105,2336.28 ,Revenue,BRITISH GAS BUSINESS,03078711
Fareham Borough Council,http://statistics.data.gov.uk/id/local-authority/24UE,HOUSING REVENUE ACCOUNT,BV06,COMMUNAL HEATING SERVICES,5025,DEPARTMENT OF OPERATIONS,PREMISES RELATED EXPENDITURE,2,Utilities,37,ELECTRICITY,2120,10/08/2017,595105,105.38 ,Revenue,BRITISH GAS BUSINESS,03078711
Fareham Borough Council,http://statistics.data.gov.uk/id/local-authority/24UE,HOUSING REVENUE ACCOUNT,BV06,COMMUNAL LIGHTING,5026,DEPARTMENT OF OPERATIONS,PREMISES RELATED EXPENDITURE,2,Utilities,37,ELECTRICITY,2120,10/08/2017,595105,492.02 ,Revenue,BRITISH GAS BUSINESS,03078711
Fareham Borough Council,http://statistics.data.gov.uk/id/local-authority/24UE,HOUSING REVENUE ACCOUNT,BV06,OTHER COMMUNAL SERVICES,5034,DEPARTMENT OF OPERATIONS,PREMISES RELATED EXPENDITURE,2,Utilities,37,AERIALS & TV OUTLETS,2540,10/08/2017,595105,22.95 ,Revenue,BRITISH GAS BUSINESS,03078711
Fareham Borough Council,http://statistics.data.gov.uk/id/local-authority/24UE,CULTURAL AND RELATED SERVICES,BV09,CULTURE AND HERITAGE,BV09A,DEPARTMENT OF OPERATIONS,SUPPLIES & SERVICES,4,Catering,11,BAR PROVISIONS,4106,10/08/2017,595106,1759.84 ,Revenue,MOLSON COORS BREWING COMPANY (UK) LTD,26018
Fareham Borough Council,http://statistics.data.gov.uk/id/local-authority/24UE,CULTURAL AND RELATED SERVICES,BV09,CULTURE AND HERITAGE,BV09A,DEPARTMENT OF OPERATIONS,SUPPLIES & SERVICES,4,Art & Leisure Services,29,PROMOTER,4916,10/08/2017,595108,8943.37 ,Revenue,PRISM MUSIC GROUP LTD,5495951
Fareham Borough Council,http://statistics.data.gov.uk/id/local-authority/24UE,CULTURAL AND RELATED SERVICES,BV09,CULTURE AND HERITAGE,BV09A,DEPARTMENT OF OPERATIONS,SUPPLIES & SERVICES,4,Catering,11,BAR PROVISIONS,4106,10/08/2017,595109,1035.84 ,Revenue,MOLSON COORS BREWING COMPANY (UK) LTD,26018
Fareham Borough Council,http://statistics.data.gov.uk/id/local-authority/24UE,OTHER REVENUE ACCOUNTS,RV,NON WORK GROUP HOLDING ACCOUNT,RV18,DEPT of FINANCE and RESOURCES,SUPPLIES & SERVICES,4,Mail Services�,30,POSTAGES,4500,17/08/2017,595111,5000.00 ,Revenue,ROYAL MAIL,04138203
Fareham Borough Council,http://statistics.data.gov.uk/id/local-authority/24UE,CAPITAL PROGRAMME - OTHER SERVICES,CP,APPROVED PROGRAMME,CP24,CAPITAL - APPROVED PROGRAMME,SUPPLIES & SERVICES,4,Local/Central Government,98,CONTRIBUTION TO RUNNING EXPENS,4703,10/08/2017,595118,188444.70 ,Capital,HAMPSHIRE COUNTY COUNCIL,
Fareham Borough Council,http://statistics.data.gov.uk/id/local-authority/24UE,CORPORATE & DEMOCRATIC CORE,BV07A,CORPORATE MANAGEMENT,BV07AB,DEPT of FINANCE and RESOURCES,SUPPLIES & SERVICES,4,Information Communication Technology,27,PUBLICITY AND PROMOTION,4912,10/08/2017,595123,26.65 ,Revenue,TIMICO LTD,04841830
Fareham Borough Council,http://statistics.data.gov.uk/id/local-authority/24UE,OTHER REVENUE ACCOUNTS,RV,NON WORK GROUP HOLDING ACCOUNT,RV18,DEPT of FINANCE and RESOURCES,SUPPLIES & SERVICES,4,Information Communication Technology,27,SOFTWARE LICENCES,4530,10/08/2017,595123,2151.83 ,Revenue,TIMICO LTD,04841830
Fareham Borough Council,http://statistics.data.gov.uk/id/local-authority/24UE,ENVIRONMENT AND REGULATORY SER,BV03,ENVIRONMENTAL HEALTH,BV03C,DEPT of STRATEGIC PLANNING and ENVIRONMENT,SUPPLIES & SERVICES,4,Human Resources,26,LEGAL FEES,4400,24/08/2017,595124,924.00 ,Revenue,DISCLOSURE AND BARRING SERVICE,
Fareham Borough Council,http://statistics.data.gov.uk/id/local-authority/24UE,GENERAL FUND HOUSING,BV05,HOMELESSNESS,BV05F,DEPARTMENT OF OPERATIONS,SUPPLIES & SERVICES,4,Human Resources,26,LEGAL FEES,4400,24/08/2017,595124,88.00 ,Revenue,DISCLOSURE AND BARRING SERVICE,
Fareham Borough Council,http://statistics.data.gov.uk/id/local-authority/24UE,CULTURAL AND RELATED SERVICES,BV09,RECREATION AND SPORT,BV09B,DEPARTMENT OF OPERATIONS,PREMISES RELATED EXPENDITURE,2,Environmental Services,18,R & M OF BUILDINGS,2000,10/08/2017,595128,525.55 ,Revenue,CLEARWATER TECHNOLOGY LTD,03659610
Fareham Borough Council,http://statistics.data.gov.uk/id/local-authority/24UE,CULTURAL AND RELATED SERVICES,BV09,RECREATION AND SPORT,BV09B,DEPARTMENT OF OPERATIONS,PREMISES RELATED EXPENDITURE,2,Environmental Services,18,R & M OF BUILDINGS,2000,10/08/2017,595128,533.16 ,Revenue,CLEARWATER TECHNOLOGY LTD,03659610
Fareham Borough Council,http://statistics.data.gov.uk/id/local-authority/24UE,HOUSING REVENUE ACCOUNT,BV06,RESPONSIVE & VOID MAINTENANCE,5901,DEPARTMENT OF OPERATIONS,PREMISES RELATED EXPENDITURE,2,Environmental Services,18,R & M OF BUILDINGS,2000,10/08/2017,595128,565.00 ,Revenue,CLEARWATER TECHNOLOGY LTD,03659610
Fareham Borough Council,http://statistics.data.gov.uk/id/local-authority/24UE,OTHER REVENUE ACCOUNTS,RV,NON WORK GROUP HOLDING ACCOUNT,RV18,DEPT of FINANCE and RESOURCES,PREMISES RELATED EXPENDITURE,2,Environmental Services,18,R & M OF BUILDINGS,2000,10/08/2017,595128,696.80 ,Revenue,CLEARWATER TECHNOLOGY LTD,03659610
Fareham Borough Council,http://statistics.data.gov.uk/id/local-authority/24UE,OTHER REVENUE ACCOUNTS,RV,NON WORK GROUP HOLDING ACCOUNT,RV18,DEPT of FINANCE and RESOURCES,PREMISES RELATED EXPENDITURE,2,Environmental Services,18,R & M OF BUILDINGS,2000,10/08/2017,595128,35.08 ,Revenue,CLEARWATER TECHNOLOGY LTD,03659610
Fareham Borough Council,http://statistics.data.gov.uk/id/local-authority/24UE,CAPITAL PROGRAMME - HOUSING SERVICES,CP,HOUSE RENOVATION GRANTS,CP11,CAPITAL - HOUSE RENOVATION GRANTS,SUPPLIES & SERVICES,4,Unclassified,,GRANTS AND SUBSCRIPTIONS,4700,10/08/2017,595138,1780.04 ,Capital,HOLLAND BUILDING SERVICES,
Fareham Borough Council,http://statistics.data.gov.uk/id/local-authority/24UE,HOUSING REVENUE ACCOUNT,BV06,COMMUNAL LIGHTING,5026,DEPARTMENT OF OPERATIONS,PREMISES RELATED EXPENDITURE,2,Utilities,37,GAS,2130,10/08/2017,595149,2204.87 ,Revenue,BRITISH GAS BUSINESS,03078711
Fareham Borough Council,http://statistics.data.gov.uk/id/local-authority/24UE,HOUSING REVENUE ACCOUNT,BV06,COMMUNAL HEATING SERVICES,5025,DEPARTMENT OF OPERATIONS,PREMISES RELATED EXPENDITURE,2,Utilities,37,ELECTRICITY,2120,10/08/2017,595151,580.47 ,Revenue,BRITISH GAS BUSINESS,03078711
Fareham Borough Council,http://statistics.data.gov.uk/id/local-authority/24UE,CENTRAL SERVICES,BV07,CENTRAL SERVICES TO THE PUBLIC,BV07B,DEPARTMENT OF OPERATIONS,SUPPLIES & SERVICES,4,Information Communication Technology,27,SOFTWARE LICENCES,4530,31/08/2017,595159,1400.00 ,Revenue,NORTHGATE PUBLIC SERVICES (UK) LTD,968498
Fareham Borough Council,http://statistics.data.gov.uk/id/local-authority/24UE,HIGHWAYS ROADS AND TRANSPORT,BV12,PARKING SERVICES,BV12D,DEPARTMENT OF OPERATIONS,PREMISES RELATED EXPENDITURE,2,Street & Traffic Management,35,RENTS - GENERAL PAYABLE,2200,10/08/2017,595167,4513.00 ,Revenue,HOLY TRINITY PARISH OFFICE,
Fareham Borough Council,http://statistics.data.gov.uk/id/local-authority/24UE,ENVIRONMENT AND REGULATORY SER,BV03,ENVIRONMENTAL HEALTH,BV03C,DEPARTMENT OF OPERATIONS,PREMISES RELATED EXPENDITURE,2,Cleaning & Janitorial,13,R & M OF BUILDINGS,2000,10/08/2017,595169,5395.00 ,Revenue,WALLGATE LTD,00156022
Fareham Borough Council,http://statistics.data.gov.uk/id/local-authority/24UE,CAPITAL PROGRAMME - HOUSING SERVICES,CP,RENOVATION OF L.A. DWELLINGS,CP10,CAPITAL - IMPROVEMENTS WORK/MODERNIS'N,PREMISES RELATED EXPENDITURE,2,Building Construction Materials,10,R & M OF BUILDINGS,2000,10/08/2017,595188,302.50 ,Capital,SOUTH COAST INSULATION SERVICES LTD,07210512
Fareham Borough Council,http://statistics.data.gov.uk/id/local-authority/24UE,CAPITAL PROGRAMME - HOUSING SERVICES,CP,RENOVATION OF L.A. DWELLINGS,CP10,CAPITAL - IMPROVEMENTS WORK/MODERNIS'N,PREMISES RELATED EXPENDITURE,2,Building Construction Materials,10,R & M OF BUILDINGS,2000,10/08/2017,595188,350.00 ,Capital,SOUTH COAST INSULATION SERVICES LTD,07210512
Fareham Borough Council,http://statistics.data.gov.uk/id/local-authority/24UE,CAPITAL PROGRAMME - HOUSING SERVICES,CP,RENOVATION OF L.A. DWELLINGS,CP10,CAPITAL - IMPROVEMENTS WORK/MODERNIS'N,PREMISES RELATED EXPENDITURE,2,Building Construction Materials,10,R & M OF BUILDINGS,2000,10/08/2017,595189,10757.96 ,Capital,SOUTH COAST WINDOW SOLUTIONS LTD,9553687
Fareham Borough Council,http://statistics.data.gov.uk/id/local-authority/24UE,HOUSING REVENUE ACCOUNT,BV06,SHELTERED HOUSING SERVICE,5031,DEPARTMENT OF OPERATIONS,PREMISES RELATED EXPENDITURE,2,Local/Central Government,98,RENTS - CHICHESTER RENTALS,2210,10/08/2017,595191,5300.62 ,Revenue,CHICHESTER DISTRICT COUNCIL,
Fareham Borough Council,http://statistics.data.gov.uk/id/local-authority/24UE,HOUSING REVENUE ACCOUNT,BV06,RESPONSIVE & VOID MAINTENANCE,5901,DEPARTMENT OF OPERATIONS,PREMISES RELATED EXPENDITURE,2,"Works - Construction, Repair & Maintenance",39,VOID COSTS - NOT RECHARGEABLE,2011,10/08/2017,595196,750.00 ,Revenue,BEAVEN GROUNDWORKS,
Fareham Borough Council,http://statistics.data.gov.uk/id/local-authority/24UE,HOUSING REVENUE ACCOUNT,BV06,RESPONSIVE & VOID MAINTENANCE,5901,DEPARTMENT OF OPERATIONS,PREMISES RELATED EXPENDITURE,2,"Works - Construction, Repair & Maintenance",39,VOID COSTS - NOT RECHARGEABLE,2011,10/08/2017,595196,275.84 ,Revenue,BEAVEN GROUNDWORKS,
Fareham Borough Council,http://statistics.data.gov.uk/id/local-authority/24UE,BALANCE SHEET,BS,BAL. SHEET - COLLECTION FUND,BS1,BAL. SHEET - COLLECTION FUND,PERSONAL ACCOUNTS,BS210,Local/Central Government,,HAMPSHIRE POLICE PRECEPT,P159,10/08/2017,595198,592544.00 ,Balance Sheet,POLICE & CRIME COMMISSIONER HAMPSHIRE,
Fareham Borough Council,http://statistics.data.gov.uk/id/local-authority/24UE,BALANCE SHEET,BS,BAL. SHEET - COLLECTION FUND,BS1,BAL. SHEET - COLLECTION FUND,PERSONAL ACCOUNTS,BS210,Local/Central Government,,HAMPSHIRE FIRE/RESCUE PRECEPT,P161,10/08/2017,595199,258108.00 ,Balance Sheet,HAMPSHIRE FIRE & RESCUE AUTHORITY,
Fareham Borough Council,http://statistics.data.gov.uk/id/local-authority/24UE,CAPITAL PROGRAMME - HOUSING SERVICES,CP,HOUSE RENOVATION GRANTS,CP11,CAPITAL - HOUSE RENOVATION GRANTS,SUPPLIES & SERVICES,4,"Works - Construction, Repair & Maintenance",39,GRANTS AND SUBSCRIPTIONS,4700,10/08/2017,595201,4500.00 ,Capital,KEMP BUILDERS,
Fareham Borough Council,http://statistics.data.gov.uk/id/local-authority/24UE,BALANCE SHEET,BS,BAL. SHEET - COLLECTION FUND,BS1,BAL. SHEET - COLLECTION FUND,PERSONAL ACCOUNTS,BS210,Local/Central Government,98,HAMPSHIRE C.C. PRECEPT ACCOUNT,P157,10/08/2017,595202,4321901.00 ,Balance Sheet,HAMPSHIRE COUNTY COUNCIL,
Fareham Borough Council,http://statistics.data.gov.uk/id/local-authority/24UE,GENERAL FUND HOUSING,BV05,HOMELESSNESS,BV05F,DEPARTMENT OF OPERATIONS,SUPPLIES & SERVICES,4,Unclassified,,LOCAL ASSISTANCE PAYMENT,4727,17/08/2017,595471,1850.00 ,Revenue,redacted personal data,
Fareham Borough Council,http://statistics.data.gov.uk/id/local-authority/24UE,BALANCE SHEET,BS,BAL. SHEET - GENERAL FUND,BS1,BAL. SHEET - GENERAL FUND,PERSONAL ACCOUNTS,BS210,Vehicle Management,38,CAR LEASING ACCOUNT,P253,24/08/2017,595474,664.72 ,Balance Sheet,HITACHI CAPITAL VEHICLE SOLUTIONS,1630491
Fareham Borough Council,http://statistics.data.gov.uk/id/local-authority/24UE,BALANCE SHEET,BS,BAL. SHEET - GENERAL FUND,BS1,BAL. SHEET - GENERAL FUND,PERSONAL ACCOUNTS,BS210,Vehicle Management,38,CAR LEASING ACCOUNT,P253,24/08/2017,595474,1324.16 ,Balance Sheet,HITACHI CAPITAL VEHICLE SOLUTIONS,1630491
Fareham Borough Council,http://statistics.data.gov.uk/id/local-authority/24UE,CAPITAL PROGRAMME - HOUSING SERVICES,CP,HOUSE RENOVATION GRANTS,CP11,CAPITAL - HOUSE RENOVATION GRANTS,SUPPLIES & SERVICES,4,"Works - Construction, Repair & Maintenance",39,GRANTS AND SUBSCRIPTIONS,4700,17/08/2017,595476,6500.00 ,Capital,KEMP BUILDERS,
Fareham Borough Council,http://statistics.data.gov.uk/id/local-authority/24UE,GENERAL FUND HOUSING,BV05,HOUSING BENEFIT ADMINISTRATION,BV05H,DEPARTMENT OF OPERATIONS,EMPLOYEES RELATED EXPENDITURE,1,Human Resources,26,AGENCY WORKERS,1050,17/08/2017,595478,-2415.71 ,Revenue,EDEN BROWN SYNERGY,3643845
Fareham Borough Council,http://statistics.data.gov.uk/id/local-authority/24UE,CULTURAL AND RELATED SERVICES,BV09,CULTURE AND HERITAGE,BV09A,DEPARTMENT OF OPERATIONS,SUPPLIES & SERVICES,4,Art & Leisure Services,29,EQUIPMENT PURCHASES - TECH'L,4011,17/08/2017,595479,2695.00 ,Revenue,KV2 AUDIO EUROPE LTD,
Fareham Borough Council,http://statistics.data.gov.uk/id/local-authority/24UE,CULTURAL AND RELATED SERVICES,BV09,CULTURE AND HERITAGE,BV09A,DEPARTMENT OF OPERATIONS,SUPPLIES & SERVICES,4,Information Communication Technology,27,FURNITURE & EQUIP-SERV. AGRMT.,4042,17/08/2017,595480,5965.29 ,Revenue,TICKETS.COM LTD,02309315
Fareham Borough Council,http://statistics.data.gov.uk/id/local-authority/24UE,GENERAL FUND HOUSING,BV05,HOMELESSNESS,BV05F,DEPARTMENT OF OPERATIONS,SUPPLIES & SERVICES,4,Unclassified,,LOCAL ASSISTANCE PAYMENT,4727,17/08/2017,595486,1985.67 ,Revenue,redacted personal data,
Fareham Borough Council,http://statistics.data.gov.uk/id/local-authority/24UE,HOUSING REVENUE ACCOUNT,BV06,OTHER COMMUNAL SERVICES,5034,DEPARTMENT OF OPERATIONS,PREMISES RELATED EXPENDITURE,2,Utilities,37,SEWERAGE & ENV. CHARGES (SWS),2410,31/08/2017,595490,2553.81 ,Revenue,SCOTTISH WATER BUSINESS STREAM LIMITED,SC294924
Fareham Borough Council,http://statistics.data.gov.uk/id/local-authority/24UE,HOUSING REVENUE ACCOUNT,BV06,RESPONSIVE & VOID MAINTENANCE,5901,DEPARTMENT OF OPERATIONS,PREMISES RELATED EXPENDITURE,2,"Works - Construction, Repair & Maintenance",39,GENERAL REPAIRS,2018,17/08/2017,595492,589.89 ,Revenue,JPC PROPERTY SERVICES LTD,4704385
Fareham Borough Council,http://statistics.data.gov.uk/id/local-authority/24UE,CAPITAL PROGRAMME - HOUSING SERVICES,CP,RENOVATION OF L.A. DWELLINGS,CP10,CAPITAL - IMPROVEMENTS WORK/MODERNIS'N,PREMISES RELATED EXPENDITURE,2,Building Construction Materials,10,R & M OF BUILDINGS,2000,17/08/2017,595493,1750.00 ,Capital,INSTAGROUP (CREST SURVEYING LTD),01500228
Fareham Borough Council,http://statistics.data.gov.uk/id/local-authority/24UE,GENERAL FUND HOUSING,BV05,HOUSING ADVICE,BV05C,DEPARTMENT OF OPERATIONS,SUPPLIES & SERVICES,4,Facilities & Management Services,19,LOCAL ASSISTANCE PAYMENT,4727,17/08/2017,595502,1250.00 ,Revenue,redacted personal data,
Fareham Borough Council,http://statistics.data.gov.uk/id/local-authority/24UE,ENVIRONMENT AND REGULATORY SER,BV03,ENVIRONMENTAL HEALTH,BV03C,DEPARTMENT OF OPERATIONS,PREMISES RELATED EXPENDITURE,2,Housing Management,25,SEWERAGE & ENV. CHARGES (SWS),2410,17/08/2017,595553,1560.45 ,Revenue,MEON SHORE CHALET OWNERS ASSOCIATION,
Fareham Borough Council,http://statistics.data.gov.uk/id/local-authority/24UE,ENVIRONMENT AND REGULATORY SER,BV03,ENVIRONMENTAL HEALTH,BV03C,DEPARTMENT OF OPERATIONS,PREMISES RELATED EXPENDITURE,2,Housing Management,25,SEWERAGE & ENV. CHARGES (SWS),2410,17/08/2017,595554,560.34 ,Revenue,MEON SHORE CHALET OWNERS ASSOCIATION,
Fareham Borough Council,http://statistics.data.gov.uk/id/local-authority/24UE,HOUSING REVENUE ACCOUNT,BV06,RESPONSIVE & VOID MAINTENANCE,5901,DEPARTMENT OF OPERATIONS,PREMISES RELATED EXPENDITURE,2,"Works - Construction, Repair & Maintenance",39,GENERAL REPAIRS,2018,17/08/2017,595559,1584.40 ,Revenue,JPC PROPERTY SERVICES LTD,4704385
Fareham Borough Council,http://statistics.data.gov.uk/id/local-authority/24UE,HOUSING REVENUE ACCOUNT,BV06,RESPONSIVE & VOID MAINTENANCE,5901,DEPARTMENT OF OPERATIONS,PREMISES RELATED EXPENDITURE,2,"Works - Construction, Repair & Maintenance",39,GENERAL REPAIRS,2018,17/08/2017,595559,3800.00 ,Revenue,JPC PROPERTY SERVICES LTD,4704385
Fareham Borough Council,http://statistics.data.gov.uk/id/local-authority/24UE,HOUSING REVENUE ACCOUNT,BV06,RESPONSIVE & VOID MAINTENANCE,5901,DEPARTMENT OF OPERATIONS,PREMISES RELATED EXPENDITURE,2,"Works - Construction, Repair & Maintenance",39,R & M OF BUILDINGS - VANDALISM,2007,17/08/2017,595567,5934.95 ,Revenue,REDS BUILDERS LIMITED,4387646
Fareham Borough Council,http://statistics.data.gov.uk/id/local-authority/24UE,HOUSING REVENUE ACCOUNT,BV06,RESPONSIVE & VOID MAINTENANCE,5901,DEPARTMENT OF OPERATIONS,PREMISES RELATED EXPENDITURE,2,Social Community Care Supplies & Services,32,R & M OF BUILDINGS,2000,17/08/2017,595568,1459.38 ,Revenue,STANNAH LIFT SERVICES LIMITED,01189799
Fareham Borough Council,http://statistics.data.gov.uk/id/local-authority/24UE,OTHER REVENUE ACCOUNTS,RV,CONTRACT SERVICES D.S.O.,RV14,DEPARTMENT OF OPERATIONS,EMPLOYEES RELATED EXPENDITURE,1,Human Resources,26,AGENCY WORKERS,1050,17/08/2017,595577,821.16 ,Revenue,BUILDING RECRUITMENT COMPANY LTD,3750125
Fareham Borough Council,http://statistics.data.gov.uk/id/local-authority/24UE,FINANCING & INVESTMENT I&E,BVB02,INVESTMENT PROPERTIES,BVB170,DEPARTMENT OF OPERATIONS,PREMISES RELATED EXPENDITURE,2,"Works - Construction, Repair & Maintenance",39,R & M OF BUILDINGS,2000,17/08/2017,595592,119.06 ,Revenue,A PURKISS BUILDING & DECORATING LTD,3561215
Fareham Borough Council,http://statistics.data.gov.uk/id/local-authority/24UE,CAPITAL PROGRAMME - HOUSING SERVICES,CP,RENOVATION OF L.A. DWELLINGS,CP10,CAPITAL - IMPROVEMENTS WORK/MODERNIS'N,PREMISES RELATED EXPENDITURE,2,"Works - Construction, Repair & Maintenance",39,GENERAL REPAIRS,2018,17/08/2017,595592,26095.89 ,Capital,A PURKISS BUILDING & DECORATING LTD,3561215
Fareham Borough Council,http://statistics.data.gov.uk/id/local-authority/24UE,HOUSING REVENUE ACCOUNT,BV06,RESPONSIVE & VOID MAINTENANCE,5901,DEPARTMENT OF OPERATIONS,PREMISES RELATED EXPENDITURE,2,"Works - Construction, Repair & Maintenance",39,GENERAL REPAIRS,2018,17/08/2017,595592,44178.45 ,Revenue,A PURKISS BUILDING & DECORATING LTD,3561215
Fareham Borough Council,http://statistics.data.gov.uk/id/local-authority/24UE,CORPORATE & DEMOCRATIC CORE,BV07A,DEMOCRATIC REP.& MANAGEMENT,BV07AA,DEPT of FINANCE and RESOURCES,SUPPLIES & SERVICES,4,Facilities & Management Services,19,EXTERNAL PRINTING,4310,17/08/2017,595650,532.00 ,Revenue,BISHOPS PRINTERS LIMITED,02681030
Fareham Borough Council,http://statistics.data.gov.uk/id/local-authority/24UE,OTHER REVENUE ACCOUNTS,RV,NON WORK GROUP HOLDING ACCOUNT,RV18,DEPT of FINANCE and RESOURCES,SUPPLIES & SERVICES,4,Information Communication Technology,27,FURNITURE & EQUIPT. MAINT.,4030,24/08/2017,595653,1015.88 ,Revenue,KHIPU NETWORKS LIMITED,5218573
Fareham Borough Council,http://statistics.data.gov.uk/id/local-authority/24UE,OTHER REVENUE ACCOUNTS,RV,NON WORK GROUP HOLDING ACCOUNT,RV18,DEPT of FINANCE and RESOURCES,SUPPLIES & SERVICES,4,Information Communication Technology,27,FURNITURE & EQUIPT. MAINT.,4030,24/08/2017,595653,2137.20 ,Revenue,KHIPU NETWORKS LIMITED,5218573
Fareham Borough Council,http://statistics.data.gov.uk/id/local-authority/24UE,OTHER REVENUE ACCOUNTS,RV,NON WORK GROUP HOLDING ACCOUNT,RV18,DEPT of FINANCE and RESOURCES,SUPPLIES & SERVICES,4,Information Communication Technology,27,FURNITURE & EQUIPT. MAINT.,4030,24/08/2017,595653,2446.68 ,Revenue,KHIPU NETWORKS LIMITED,5218573
Fareham Borough Council,http://statistics.data.gov.uk/id/local-authority/24UE,OTHER REVENUE ACCOUNTS,RV,NON WORK GROUP HOLDING ACCOUNT,RV18,DEPT of FINANCE and RESOURCES,SUPPLIES & SERVICES,4,Information Communication Technology,27,FURNITURE & EQUIPT. MAINT.,4030,24/08/2017,595658,851.74 ,Revenue,L8 SOLUTIONS LTD,5663204
Fareham Borough Council,http://statistics.data.gov.uk/id/local-authority/24UE,OTHER REVENUE ACCOUNTS,RV,NON WORK GROUP HOLDING ACCOUNT,RV18,DEPT of FINANCE and RESOURCES,SUPPLIES & SERVICES,4,Information Communication Technology,27,FURNITURE & EQUIPT. MAINT.,4030,24/08/2017,595658,2325.86 ,Revenue,L8 SOLUTIONS LTD,5663204
Fareham Borough Council,http://statistics.data.gov.uk/id/local-authority/24UE,CORPORATE & DEMOCRATIC CORE,BV07A,CORPORATE MANAGEMENT,BV07AB,DEPT of FINANCE and RESOURCES,EMPLOYEES RELATED EXPENDITURE,1,Consultancy,15,AGENCY WORKERS,1050,17/08/2017,595673,1523.18 ,Revenue,BRISCOE FRENCH COMMUNICATIONS LTD,07726824
Fareham Borough Council,http://statistics.data.gov.uk/id/local-authority/24UE,ENVIRONMENT AND REGULATORY SER,BV03,WASTE COLLECTION,BV03G,DEPARTMENT OF OPERATIONS,SUPPLIES & SERVICES,4,Stationery,34,EXTERNAL PRINTING,4310,17/08/2017,595679,503.00 ,Revenue,EURO LABEL PRINTERS LTD,01175435
Fareham Borough Council,http://statistics.data.gov.uk/id/local-authority/24UE,CENTRAL SERVICES,BV07,CENTRAL SERVICES TO THE PUBLIC,BV07B,DEPARTMENT OF OPERATIONS,SUPPLIES & SERVICES,4,Mail Services�,30,POSTAGES,4500,17/08/2017,595690,4.86 ,Revenue,ROYAL MAIL,04138203
Fareham Borough Council,http://statistics.data.gov.uk/id/local-authority/24UE,CENTRAL SERVICES,BV07,CENTRAL SERVICES TO THE PUBLIC,BV07B,DEPARTMENT OF OPERATIONS,SUPPLIES & SERVICES,4,Mail Services�,30,POSTAGES,4500,17/08/2017,595690,207.90 ,Revenue,ROYAL MAIL,04138203
Fareham Borough Council,http://statistics.data.gov.uk/id/local-authority/24UE,OTHER REVENUE ACCOUNTS,RV,NON WORK GROUP HOLDING ACCOUNT,RV18,DEPT of FINANCE and RESOURCES,SUPPLIES & SERVICES,4,Mail Services�,30,POSTAGES,4500,17/08/2017,595690,8161.00 ,Revenue,ROYAL MAIL,04138203
Fareham Borough Council,http://statistics.data.gov.uk/id/local-authority/24UE,OTHER REVENUE ACCOUNTS,RV,CONTRACT SERVICES D.S.O.,RV14,DEPT of STRATEGIC PLANNING and ENVIRONMENT,SUPPLIES & SERVICES,4,Consultancy,15,STRUCTURAL ENGINEERS FEES,4405,17/08/2017,595694,2237.82 ,Revenue,RUCK CONSULTANCY LIMITED,9335936
Fareham Borough Council,http://statistics.data.gov.uk/id/local-authority/24UE,ENVIRONMENT AND REGULATORY SER,BV03,WASTE COLLECTION,BV03G,DEPARTMENT OF OPERATIONS,SUPPLIES & SERVICES,4,Environmental Services,18,FURNITURE & EQUIPT. PURCHASES,4000,17/08/2017,595711,2790.00 ,Revenue,CRAEMER UK LTD,02574815
Fareham Borough Council,http://statistics.data.gov.uk/id/local-authority/24UE,ENVIRONMENT AND REGULATORY SER,BV03,WASTE COLLECTION,BV03G,DEPARTMENT OF OPERATIONS,SUPPLIES & SERVICES,4,Environmental Services,18,FURNITURE & EQUIPT. PURCHASES,4000,17/08/2017,595713,9300.00 ,Revenue,CRAEMER UK LTD,02574815
Fareham Borough Council,http://statistics.data.gov.uk/id/local-authority/24UE,ENVIRONMENT AND REGULATORY SER,BV03,FLOOD DEFENCE & LAND DRAINAGE,BV03D,DEPT of STRATEGIC PLANNING and ENVIRONMENT,PREMISES RELATED EXPENDITURE,2,Consultancy,15,R&M OF GROUNDS,2060,31/08/2017,595714,2360.00 ,Revenue,HALCROW GROUP LTD (A CH2MHILL COMPANY),3415971
Fareham Borough Council,http://statistics.data.gov.uk/id/local-authority/24UE,OTHER REVENUE ACCOUNTS,RV,CONTRACT SERVICES D.S.O.,RV14,DEPT of STRATEGIC PLANNING and ENVIRONMENT,EMPLOYEES RELATED EXPENDITURE,1,Human Resources,26,AGENCY WORKERS,1050,24/08/2017,595721,1237.50 ,Revenue,HAYS SPECIALIST RECRUITMENT LTD,975677
Fareham Borough Council,http://statistics.data.gov.uk/id/local-authority/24UE,OTHER REVENUE ACCOUNTS,RV,CONTRACT SERVICES D.S.O.,RV14,DEPT of STRATEGIC PLANNING and ENVIRONMENT,EMPLOYEES RELATED EXPENDITURE,1,Human Resources,26,AGENCY WORKERS,1050,31/08/2017,595722,1430.00 ,Revenue,HAYS SPECIALIST RECRUITMENT LTD,975677
Fareham Borough Council,http://statistics.data.gov.uk/id/local-authority/24UE,OTHER REVENUE ACCOUNTS,RV,CONTRACT SERVICES D.S.O.,RV14,DEPARTMENT OF OPERATIONS,TRANSPORT RELATED EXPENDITURE,3,Vehicle Management,38,ROUTINE REPAIRS VEHICLES/PLANT,3010,17/08/2017,595734,-34.00 ,Revenue,CARTERS OF SWANWICK LTD,6866052
Fareham Borough Council,http://statistics.data.gov.uk/id/local-authority/24UE,HOUSING REVENUE ACCOUNT,BV06,GENERAL ADMINISTRATION EXPENSE,5021,DEPARTMENT OF OPERATIONS,SUPPLIES & SERVICES,4,Facilities & Management Services,19,TENANTS REMOVAL EXPENSES,4952,17/08/2017,595735,695.00 ,Revenue,redacted personal data,
Fareham Borough Council,http://statistics.data.gov.uk/id/local-authority/24UE,CAPITAL PROGRAMME - HOUSING SERVICES,CP,ENABLING ROLE - HOUSING ASSOC.,CP11,CAPITAL - ENABLING ROLE - HOUSING ASSOC.,SUPPLIES & SERVICES,4,"Works - Construction, Repair & Maintenance",39,CONSULTANTS FEES,4401,17/08/2017,595739,11362.50 ,Capital,MH ARCHITECTS,1994233
Fareham Borough Council,http://statistics.data.gov.uk/id/local-authority/24UE,OTHER REVENUE ACCOUNTS,RV,NON WORK GROUP HOLDING ACCOUNT,RV18,DEPT of FINANCE and RESOURCES,SUPPLIES & SERVICES,4,Information Communication Technology,27,FURNITURE & EQUIPT.-RENTS/LSES,4040,31/08/2017,595740,1492.26 ,Revenue,VODAFONE LIMITED,01471587
Fareham Borough Council,http://statistics.data.gov.uk/id/local-authority/24UE,ENVIRONMENT AND REGULATORY SER,BV03,ENVIRONMENTAL HEALTH,BV03C,DEPARTMENT OF OPERATIONS,PREMISES RELATED EXPENDITURE,2,Utilities,37,SEWERAGE & ENV. CHARGES (SWS),2410,17/08/2017,595762,752.27 ,Revenue,SCOTTISH WATER BUSINESS STREAM LIMITED,SC294924
Fareham Borough Council,http://statistics.data.gov.uk/id/local-authority/24UE,CULTURAL AND RELATED SERVICES,BV09,RECREATION AND SPORT,BV09B,DEPARTMENT OF OPERATIONS,PREMISES RELATED EXPENDITURE,2,Utilities,37,SEWERAGE & ENV. CHARGES (SWS),2410,31/08/2017,595769,649.16 ,Revenue,SCOTTISH WATER BUSINESS STREAM LIMITED,SC294924
Fareham Borough Council,http://statistics.data.gov.uk/id/local-authority/24UE,ENVIRONMENT AND REGULATORY SER,BV03,ENVIRONMENTAL HEALTH,BV03C,DEPARTMENT OF OPERATIONS,PREMISES RELATED EXPENDITURE,2,Utilities,37,SEWERAGE & ENV. CHARGES (SWS),2410,31/08/2017,595770,671.81 ,Revenue,SCOTTISH WATER BUSINESS STREAM LIMITED,SC294924
Fareham Borough Council,http://statistics.data.gov.uk/id/local-authority/24UE,OTHER REVENUE ACCOUNTS,RV,CONTRACT SERVICES D.S.O.,RV14,DEPARTMENT OF OPERATIONS,TRANSPORT RELATED EXPENDITURE,3,Vehicle Management,38,ROUTINE REPAIRS VEHICLES/PLANT,3010,17/08/2017,595789,23.69 ,Revenue,MC TRUCK & BUS LTD,01241061
Fareham Borough Council,http://statistics.data.gov.uk/id/local-authority/24UE,OTHER REVENUE ACCOUNTS,RV,CONTRACT SERVICES D.S.O.,RV14,DEPARTMENT OF OPERATIONS,TRANSPORT RELATED EXPENDITURE,3,Vehicle Management,38,ROUTINE REPAIRS VEHICLES/PLANT,3010,17/08/2017,595789,273.06 ,Revenue,MC TRUCK & BUS LTD,01241061
Fareham Borough Council,http://statistics.data.gov.uk/id/local-authority/24UE,OTHER REVENUE ACCOUNTS,RV,CONTRACT SERVICES D.S.O.,RV14,DEPARTMENT OF OPERATIONS,TRANSPORT RELATED EXPENDITURE,3,Vehicle Management,38,ROUTINE REPAIRS VEHICLES/PLANT,3010,17/08/2017,595789,18.97 ,Revenue,MC TRUCK & BUS LTD,01241061
Fareham Borough Council,http://statistics.data.gov.uk/id/local-authority/24UE,OTHER REVENUE ACCOUNTS,RV,CONTRACT SERVICES D.S.O.,RV14,DEPARTMENT OF OPERATIONS,TRANSPORT RELATED EXPENDITURE,3,Vehicle Management,38,ROUTINE REPAIRS VEHICLES/PLANT,3010,17/08/2017,595789,38.00 ,Revenue,MC TRUCK & BUS LTD,01241061
Fareham Borough Council,http://statistics.data.gov.uk/id/local-authority/24UE,OTHER REVENUE ACCOUNTS,RV,CONTRACT SERVICES D.S.O.,RV14,DEPARTMENT OF OPERATIONS,TRANSPORT RELATED EXPENDITURE,3,Vehicle Management,38,ROUTINE REPAIRS VEHICLES/PLANT,3010,17/08/2017,595789,874.00 ,Revenue,MC TRUCK & BUS LTD,01241061
Fareham Borough Council,http://statistics.data.gov.uk/id/local-authority/24UE,ENVIRONMENT AND REGULATORY SER,BV03,STREET CLEANSING,BV03F,DEPARTMENT OF OPERATIONS,EMPLOYEES RELATED EXPENDITURE,1,Human Resources,26,AGENCY WORKERS,1050,17/08/2017,595800,1342.85 ,Revenue,BUZZ PEOPLE RECRUITMENT LTD,07908887
Fareham Borough Council,http://statistics.data.gov.uk/id/local-authority/24UE,OTHER REVENUE ACCOUNTS,RV,CONTRACT SERVICES D.S.O.,RV14,DEPARTMENT OF OPERATIONS,EMPLOYEES RELATED EXPENDITURE,1,Human Resources,26,AGENCY WORKERS,1050,17/08/2017,595800,5200.20 ,Revenue,BUZZ PEOPLE RECRUITMENT LTD,07908887
Fareham Borough Council,http://statistics.data.gov.uk/id/local-authority/24UE,ENVIRONMENT AND REGULATORY SER,BV03,STREET CLEANSING,BV03F,DEPARTMENT OF OPERATIONS,TRANSPORT RELATED EXPENDITURE,3,Vehicle Management,38,SERVICING,3027,17/08/2017,595801,589.84 ,Revenue,TENNANT UK CLEANING SOLUTIONS LTD,SC042491
Fareham Borough Council,http://statistics.data.gov.uk/id/local-authority/24UE,ENVIRONMENT AND REGULATORY SER,BV03,WASTE COLLECTION,BV03G,DEPARTMENT OF OPERATIONS,EMPLOYEES RELATED EXPENDITURE,1,Human Resources,26,AGENCY WORKERS,1050,17/08/2017,595808,597.60 ,Revenue,THE BEST CONNECTION GROUP LTD,2600534
Fareham Borough Council,http://statistics.data.gov.uk/id/local-authority/24UE,ENVIRONMENT AND REGULATORY SER,BV03,WASTE COLLECTION,BV03G,DEPARTMENT OF OPERATIONS,EMPLOYEES RELATED EXPENDITURE,1,Human Resources,26,AGENCY WORKERS,1050,24/08/2017,595809,597.60 ,Revenue,THE BEST CONNECTION GROUP LTD,2600534
Fareham Borough Council,http://statistics.data.gov.uk/id/local-authority/24UE,CULTURAL AND RELATED SERVICES,BV09,RECREATION AND SPORT,BV09B,DEPARTMENT OF OPERATIONS,SUPPLIES & SERVICES,4,"Works - Construction, Repair & Maintenance",39,MATERIALS (OPERATIONAL),4007,17/08/2017,595810,30.26 ,Revenue,MCVEIGH PARKER & CO LTD,1410916
Fareham Borough Council,http://statistics.data.gov.uk/id/local-authority/24UE,CULTURAL AND RELATED SERVICES,BV09,RECREATION AND SPORT,BV09B,DEPARTMENT OF OPERATIONS,SUPPLIES & SERVICES,4,"Works - Construction, Repair & Maintenance",39,MATERIALS (OPERATIONAL),4007,17/08/2017,595810,240.75 ,Revenue,MCVEIGH PARKER & CO LTD,1410916
Fareham Borough Council,http://statistics.data.gov.uk/id/local-authority/24UE,CULTURAL AND RELATED SERVICES,BV09,RECREATION AND SPORT,BV09B,DEPARTMENT OF OPERATIONS,SUPPLIES & SERVICES,4,"Works - Construction, Repair & Maintenance",39,MATERIALS (OPERATIONAL),4007,17/08/2017,595810,385.56 ,Revenue,MCVEIGH PARKER & CO LTD,1410916
Fareham Borough Council,http://statistics.data.gov.uk/id/local-authority/24UE,CULTURAL AND RELATED SERVICES,BV09,RECREATION AND SPORT,BV09B,DEPARTMENT OF OPERATIONS,SUPPLIES & SERVICES,4,"Works - Construction, Repair & Maintenance",39,MATERIALS (OPERATIONAL),4007,17/08/2017,595810,4.05 ,Revenue,MCVEIGH PARKER & CO LTD,1410916
Fareham Borough Council,http://statistics.data.gov.uk/id/local-authority/24UE,OTHER REVENUE ACCOUNTS,RV,CONTRACT SERVICES D.S.O.,RV14,DEPARTMENT OF OPERATIONS,SUPPLIES & SERVICES,4,Street & Traffic Management,35,MATERIALS (OPERATIONAL),4007,17/08/2017,595813,150.00 ,Revenue,REGAL EXPOLINE LIMITED,10010341
Fareham Borough Council,http://statistics.data.gov.uk/id/local-authority/24UE,OTHER REVENUE ACCOUNTS,RV,CONTRACT SERVICES D.S.O.,RV14,DEPARTMENT OF OPERATIONS,SUPPLIES & SERVICES,4,Street & Traffic Management,35,MATERIALS (OPERATIONAL),4007,17/08/2017,595813,1345.00 ,Revenue,REGAL EXPOLINE LIMITED,10010341
Fareham Borough Council,http://statistics.data.gov.uk/id/local-authority/24UE,ENVIRONMENT AND REGULATORY SER,BV03,STREET CLEANSING,BV03F,DEPARTMENT OF OPERATIONS,TRANSPORT RELATED EXPENDITURE,3,Vehicle Management,38,ROUTINE REPAIRS VEHICLES/PLANT,3010,17/08/2017,595814,1487.66 ,Revenue,KEYS ELECTRICAL LTD,07882866
Fareham Borough Council,http://statistics.data.gov.uk/id/local-authority/24UE,OTHER REVENUE ACCOUNTS,RV,CONTRACT SERVICES D.S.O.,RV14,DEPARTMENT OF OPERATIONS,TRANSPORT RELATED EXPENDITURE,3,Horticultural,24,ROUTINE REPAIRS VEHICLES/PLANT,3010,17/08/2017,595818,2736.94 ,Revenue,KINGSWORTHY GARDEN MACHINERY LTD,5321124
Fareham Borough Council,http://statistics.data.gov.uk/id/local-authority/24UE,OTHER REVENUE ACCOUNTS,RV,CONTRACT SERVICES D.S.O.,RV14,DEPARTMENT OF OPERATIONS,TRANSPORT RELATED EXPENDITURE,3,Horticultural,24,ROUTINE REPAIRS VEHICLES/PLANT,3010,17/08/2017,595819,1007.49 ,Revenue,KINGSWORTHY GARDEN MACHINERY LTD,5321124
Fareham Borough Council,http://statistics.data.gov.uk/id/local-authority/24UE,OTHER REVENUE ACCOUNTS,RV,CONTRACT SERVICES D.S.O.,RV14,DEPARTMENT OF OPERATIONS,TRANSPORT RELATED EXPENDITURE,3,Horticultural,24,ROUTINE REPAIRS VEHICLES/PLANT,3010,17/08/2017,595823,1941.60 ,Revenue,KINGSWORTHY GARDEN MACHINERY LTD,5321124
Fareham Borough Council,http://statistics.data.gov.uk/id/local-authority/24UE,OTHER REVENUE ACCOUNTS,RV,CONTRACT SERVICES D.S.O.,RV14,DEPARTMENT OF OPERATIONS,SUPPLIES & SERVICES,4,Building Construction Materials,10,FURNITURE & EQUIPT.-RENTS/LSES,4040,24/08/2017,596082,664.76 ,Revenue,HSS HIRE SERVICE GROUP PLC,00644490
Fareham Borough Council,http://statistics.data.gov.uk/id/local-authority/24UE,CAPITAL PROGRAMME - HOUSING SERVICES,CP,NEW HOUSE BUILDING,CP10,CAPITAL - NEW HOUSE BUILDING,SUPPLIES & SERVICES,4,Catering,11,FURNITURE & EQUIPT. PURCHASES,4000,24/08/2017,596097,544.00 ,Capital,WRIGHT CHOICE CATERING,08448051
Fareham Borough Council,http://statistics.data.gov.uk/id/local-authority/24UE,CULTURAL AND RELATED SERVICES,BV09,RECREATION AND SPORT,BV09B,DEPARTMENT OF OPERATIONS,PREMISES RELATED EXPENDITURE,2,Horticultural,24,R&M OF TREE PRESERVATION,2063,24/08/2017,596101,210.00 ,Revenue,TITCHFIELD TREE SERVICES LTD,
Fareham Borough Council,http://statistics.data.gov.uk/id/local-authority/24UE,CULTURAL AND RELATED SERVICES,BV09,RECREATION AND SPORT,BV09B,DEPARTMENT OF OPERATIONS,PREMISES RELATED EXPENDITURE,2,Horticultural,24,R&M OF TREE PRESERVATION,2063,24/08/2017,596101,210.00 ,Revenue,TITCHFIELD TREE SERVICES LTD,
Fareham Borough Council,http://statistics.data.gov.uk/id/local-authority/24UE,CULTURAL AND RELATED SERVICES,BV09,RECREATION AND SPORT,BV09B,DEPARTMENT OF OPERATIONS,PREMISES RELATED EXPENDITURE,2,Horticultural,24,R&M OF TREE PRESERVATION,2063,24/08/2017,596101,420.00 ,Revenue,TITCHFIELD TREE SERVICES LTD,
Fareham Borough Council,http://statistics.data.gov.uk/id/local-authority/24UE,PLANNING SERVICES,BV13,PLANNING POLICY,BV13C,DEPT of STRATEGIC PLANNING and ENVIRONMENT,SUPPLIES & SERVICES,4,Consultancy,15,CONSULTANTS FEES,4401,24/08/2017,596102,2130.00 ,Revenue,URBAN EDGE ENVIRONMENTAL CONSULTING LTD,
Fareham Borough Council,http://statistics.data.gov.uk/id/local-authority/24UE,PLANNING SERVICES,BV13,PLANNING POLICY,BV13C,DEPT of STRATEGIC PLANNING and ENVIRONMENT,SUPPLIES & SERVICES,4,Consultancy,15,CONSULTANTS FEES,4401,24/08/2017,596102,3480.00 ,Revenue,URBAN EDGE ENVIRONMENTAL CONSULTING LTD,
Fareham Borough Council,http://statistics.data.gov.uk/id/local-authority/24UE,CAPITAL PROGRAMME - OTHER SERVICES,CP,SCHEMES FUNDED FROM BALANCES,CP20,CAPITAL - SCHEMES FUNDED FROM BALANCES,PREMISES RELATED EXPENDITURE,2,"Works - Construction, Repair & Maintenance",39,R & M OF BUILDINGS,2000,24/08/2017,596103,383083.10 ,Capital,RAYMOND BROWN CONSTRUCTION LTD,2081940
Fareham Borough Council,http://statistics.data.gov.uk/id/local-authority/24UE,CULTURAL AND RELATED SERVICES,BV09,RECREATION AND SPORT,BV09B,DEPARTMENT OF OPERATIONS,PREMISES RELATED EXPENDITURE,2,Environmental Services,18,R & M OF BUILDINGS,2000,24/08/2017,596104,362.55 ,Revenue,CLEARWATER TECHNOLOGY LTD,03659610
Fareham Borough Council,http://statistics.data.gov.uk/id/local-authority/24UE,CULTURAL AND RELATED SERVICES,BV09,CULTURE AND HERITAGE,BV09A,DEPARTMENT OF OPERATIONS,PREMISES RELATED EXPENDITURE,2,Environmental Services,18,R & M OF BUILDINGS,2000,24/08/2017,596104,192.65 ,Revenue,CLEARWATER TECHNOLOGY LTD,03659610
Fareham Borough Council,http://statistics.data.gov.uk/id/local-authority/24UE,CULTURAL AND RELATED SERVICES,BV09,RECREATION AND SPORT,BV09B,DEPARTMENT OF OPERATIONS,PREMISES RELATED EXPENDITURE,2,Environmental Services,18,R & M OF BUILDINGS,2000,24/08/2017,596104,83.16 ,Revenue,CLEARWATER TECHNOLOGY LTD,03659610
Fareham Borough Council,http://statistics.data.gov.uk/id/local-authority/24UE,ENVIRONMENT AND REGULATORY SER,BV03,ENVIRONMENTAL HEALTH,BV03C,DEPARTMENT OF OPERATIONS,PREMISES RELATED EXPENDITURE,2,Environmental Services,18,R & M OF BUILDINGS,2000,24/08/2017,596104,128.00 ,Revenue,CLEARWATER TECHNOLOGY LTD,03659610
Fareham Borough Council,http://statistics.data.gov.uk/id/local-authority/24UE,HOUSING REVENUE ACCOUNT,BV06,RESPONSIVE & VOID MAINTENANCE,5901,DEPARTMENT OF OPERATIONS,PREMISES RELATED EXPENDITURE,2,Environmental Services,18,R & M OF BUILDINGS,2000,24/08/2017,596104,293.75 ,Revenue,CLEARWATER TECHNOLOGY LTD,03659610
Fareham Borough Council,http://statistics.data.gov.uk/id/local-authority/24UE,OTHER REVENUE ACCOUNTS,RV,NON WORK GROUP HOLDING ACCOUNT,RV18,DEPT of FINANCE and RESOURCES,PREMISES RELATED EXPENDITURE,2,Environmental Services,18,R & M OF BUILDINGS,2000,24/08/2017,596104,496.80 ,Revenue,CLEARWATER TECHNOLOGY LTD,03659610
Fareham Borough Council,http://statistics.data.gov.uk/id/local-authority/24UE,OTHER REVENUE ACCOUNTS,RV,NON WORK GROUP HOLDING ACCOUNT,RV18,DEPT of FINANCE and RESOURCES,PREMISES RELATED EXPENDITURE,2,Environmental Services,18,R & M OF BUILDINGS,2000,24/08/2017,596104,35.08 ,Revenue,CLEARWATER TECHNOLOGY LTD,03659610
Fareham Borough Council,http://statistics.data.gov.uk/id/local-authority/24UE,CORPORATE & DEMOCRATIC CORE,BV07A,CORPORATE MANAGEMENT,BV07AB,DEPT of FINANCE and RESOURCES,EMPLOYEES RELATED EXPENDITURE,1,Financial Services,20,APPRENTICESHIP LEVY,1912,24/08/2017,596105,3573.00 ,Revenue,INLAND REVENUE,
Fareham Borough Council,http://statistics.data.gov.uk/id/local-authority/24UE,CULTURAL AND RELATED SERVICES,BV09,CULTURE AND HERITAGE,BV09A,DEPARTMENT OF OPERATIONS,PREMISES RELATED EXPENDITURE,2,Utilities,37,ELECTRICITY,2120,24/08/2017,596109,3272.49 ,Revenue,EDF ENERGY,02366852
Fareham Borough Council,http://statistics.data.gov.uk/id/local-authority/24UE,OTHER REVENUE ACCOUNTS,RV,NON WORK GROUP HOLDING ACCOUNT,RV18,DEPT of FINANCE and RESOURCES,PREMISES RELATED EXPENDITURE,2,Utilities,37,ELECTRICITY,2120,24/08/2017,596109,9218.89 ,Revenue,EDF ENERGY,02366852
Fareham Borough Council,http://statistics.data.gov.uk/id/local-authority/24UE,OTHER REVENUE ACCOUNTS,RV,NON WORK GROUP HOLDING ACCOUNT,RV18,DEPT of FINANCE and RESOURCES,SUPPLIES & SERVICES,4,Human Resources,26,CONSULTANTS FEES,4401,24/08/2017,596110,2400.00 ,Revenue,MOORE STEPHENS INSIGHT LIMITED,07909149
Fareham Borough Council,http://statistics.data.gov.uk/id/local-authority/24UE,OTHER REVENUE ACCOUNTS,RV,CONTRACT SERVICES D.S.O.,RV14,DEPT of STRATEGIC PLANNING and ENVIRONMENT,SUPPLIES & SERVICES,4,Local/Central Government,98,SUB-CONTRACTORS CHARGES,4432,24/08/2017,596115,1207.40 ,Revenue,HAVANT BOROUGH COUNCIL,
Fareham Borough Council,http://statistics.data.gov.uk/id/local-authority/24UE,OTHER REVENUE ACCOUNTS,RV,CONTRACT SERVICES D.S.O.,RV14,DEPT of STRATEGIC PLANNING and ENVIRONMENT,THIRD PARTY PAYMENTS,5,Local/Central Government,98,GBC - B C PARTNERSHIP,5150,24/08/2017,596117,3043.33 ,Revenue,GOSPORT BOROUGH COUNCIL,
Fareham Borough Council,http://statistics.data.gov.uk/id/local-authority/24UE,OTHER REVENUE ACCOUNTS,RV,CONTRACT SERVICES D.S.O.,RV14,DEPT of STRATEGIC PLANNING and ENVIRONMENT,SUPPLIES & SERVICES,4,Local/Central Government,98,MOBILE TELEPHONES,4514,24/08/2017,596117,2.50 ,Revenue,GOSPORT BOROUGH COUNCIL,
Fareham Borough Council,http://statistics.data.gov.uk/id/local-authority/24UE,OTHER REVENUE ACCOUNTS,RV,CONTRACT SERVICES D.S.O.,RV14,DEPT of STRATEGIC PLANNING and ENVIRONMENT,TRANSPORT RELATED EXPENDITURE,3,Local/Central Government,98,GBC - CAR ALLOWANCES,3432,24/08/2017,596117,846.23 ,Revenue,GOSPORT BOROUGH COUNCIL,
Fareham Borough Council,http://statistics.data.gov.uk/id/local-authority/24UE,OTHER REVENUE ACCOUNTS,RV,CONTRACT SERVICES D.S.O.,RV14,DEPT of STRATEGIC PLANNING and ENVIRONMENT,EMPLOYEES RELATED EXPENDITURE,1,Local/Central Government,98,GBC - EMPLOYEE COSTS,1048,24/08/2017,596117,24457.50 ,Revenue,GOSPORT BOROUGH COUNCIL,
Fareham Borough Council,http://statistics.data.gov.uk/id/local-authority/24UE,ENVIRONMENT AND REGULATORY SER,BV03,CEMETERIES CREM & MORTUARY,BV03A,DEPARTMENT OF OPERATIONS,PREMISES RELATED EXPENDITURE,2,Horticultural,24,R&M OF TREE PRESERVATION,2063,24/08/2017,596123,185.50 ,Revenue,CEDAR TREE SURGEONS,
Fareham Borough Council,http://statistics.data.gov.uk/id/local-authority/24UE,CULTURAL AND RELATED SERVICES,BV09,RECREATION AND SPORT,BV09B,DEPARTMENT OF OPERATIONS,PREMISES RELATED EXPENDITURE,2,Horticultural,24,R&M OF TREE PRESERVATION,2063,24/08/2017,596123,793.00 ,Revenue,CEDAR TREE SURGEONS,
Fareham Borough Council,http://statistics.data.gov.uk/id/local-authority/24UE,CULTURAL AND RELATED SERVICES,BV09,RECREATION AND SPORT,BV09B,DEPARTMENT OF OPERATIONS,PREMISES RELATED EXPENDITURE,2,Horticultural,24,R&M OF TREE PRESERVATION,2063,24/08/2017,596123,412.00 ,Revenue,CEDAR TREE SURGEONS,
Fareham Borough Council,http://statistics.data.gov.uk/id/local-authority/24UE,HOUSING REVENUE ACCOUNT,BV06,MAINT OF LAWNS VERGES ETC,5030,DEPARTMENT OF OPERATIONS,PREMISES RELATED EXPENDITURE,2,Horticultural,24,R&M OF TREE PRESERVATION,2063,24/08/2017,596123,624.00 ,Revenue,CEDAR TREE SURGEONS,
Fareham Borough Council,http://statistics.data.gov.uk/id/local-authority/24UE,CULTURAL AND RELATED SERVICES,BV09,RECREATION AND SPORT,BV09B,DEPARTMENT OF OPERATIONS,PREMISES RELATED EXPENDITURE,2,Horticultural,24,R&M OF TREE PRESERVATION,2063,24/08/2017,596125,575.00 ,Revenue,TITCHFIELD TREE SERVICES LTD,
Fareham Borough Council,http://statistics.data.gov.uk/id/local-authority/24UE,OTHER REVENUE ACCOUNTS,RV,CONTRACT SERVICES D.S.O.,RV14,DEPARTMENT OF OPERATIONS,EMPLOYEES RELATED EXPENDITURE,1,Human Resources,26,AGENCY WORKERS,1050,24/08/2017,596126,823.59 ,Revenue,BUILDING RECRUITMENT COMPANY LTD,3750125
Fareham Borough Council,http://statistics.data.gov.uk/id/local-authority/24UE,HOUSING REVENUE ACCOUNT,BV06,RESPONSIVE & VOID MAINTENANCE,5901,DEPARTMENT OF OPERATIONS,PREMISES RELATED EXPENDITURE,2,Facilities & Management Services,19,GENERAL REPAIRS,2018,24/08/2017,596136,1018.60 ,Revenue,S A C LTD,01566628
Fareham Borough Council,http://statistics.data.gov.uk/id/local-authority/24UE,CENTRAL SERVICES,BV07,CENTRAL SERVICES TO THE PUBLIC,BV07B,DEPT of FINANCE and RESOURCES,SUPPLIES & SERVICES,4,Facilities & Management Services,19,EXTERNAL PRINTING,4310,24/08/2017,596138,13410.52 ,Revenue,FINANCIAL DATA MANAGEMENT LTD,2827644
Fareham Borough Council,http://statistics.data.gov.uk/id/local-authority/24UE,CAPITAL PROGRAMME - HOUSING SERVICES,CP,NEW HOUSE BUILDING,CP10,CAPITAL - NEW HOUSE BUILDING,SUPPLIES & SERVICES,4,Unclassified,,FURNITURE & EQUIPT. PURCHASES,4000,24/08/2017,596141,633.00 ,Capital,RUSTIC STONE,
Fareham Borough Council,http://statistics.data.gov.uk/id/local-authority/24UE,CORPORATE & DEMOCRATIC CORE,BV07A,CORPORATE MANAGEMENT,BV07AB,DEPT of FINANCE and RESOURCES,SUPPLIES & SERVICES,4,Consultancy,15,CONSULTANTS FEES,4401,24/08/2017,596142,4400.00 ,Revenue,VANGUARD CONSULTING LTD,2207133
Fareham Borough Council,http://statistics.data.gov.uk/id/local-authority/24UE,HOUSING REVENUE ACCOUNT,BV06,RESPONSIVE & VOID MAINTENANCE,5901,DEPARTMENT OF OPERATIONS,PREMISES RELATED EXPENDITURE,2,Facilities & Management Services,19,GENERAL REPAIRS,2018,24/08/2017,596150,632.90 ,Revenue,RAINER SECURITY PRODUCTS LTD,02240635
Fareham Borough Council,http://statistics.data.gov.uk/id/local-authority/24UE,HOUSING REVENUE ACCOUNT,BV06,GENERAL ADMINISTRATION EXPENSE,5021,DEPARTMENT OF OPERATIONS,SUPPLIES & SERVICES,4,Unclassified,,LEGAL FEES,4400,24/08/2017,596154,567.00 ,Revenue,HMCTS,
Fareham Borough Council,http://statistics.data.gov.uk/id/local-authority/24UE,CAPITAL PROGRAMME - OTHER SERVICES,CP,SCHEMES FUNDED FROM BALANCES,CP20,CAPITAL - SCHEMES FUNDED FROM BALANCES,PREMISES RELATED EXPENDITURE,2,"Works - Construction, Repair & Maintenance",39,R & M OF BUILDINGS,2000,24/08/2017,596165,17678.00 ,Capital,REDS BUILDERS LIMITED,4387646
Fareham Borough Council,http://statistics.data.gov.uk/id/local-authority/24UE,HOUSING REVENUE ACCOUNT,BV06,GENERAL ADMINISTRATION EXPENSE,5021,DEPARTMENT OF OPERATIONS,SUPPLIES & SERVICES,4,Unclassified,,TENANTS REMOVAL EXPENSES,4952,24/08/2017,596170,1938.75 ,Revenue,redacted personal data,
Fareham Borough Council,http://statistics.data.gov.uk/id/local-authority/24UE,GENERAL FUND HOUSING,BV05,HOUSING STRATEGY,BV05A,DEPARTMENT OF OPERATIONS,SUPPLIES & SERVICES,4,Horticultural,24,FURNITURE & EQUIPT. PURCHASES,4000,24/08/2017,596171,1350.00 ,Revenue,GOSS (SOUTH) LTD T/S LANDKIND,7041848
Fareham Borough Council,http://statistics.data.gov.uk/id/local-authority/24UE,FINANCING & INVESTMENT I&E,BVB02,INVESTMENT PROPERTIES,BVB170,DEPT of FINANCE and RESOURCES,SUPPLIES & SERVICES,4,Consultancy,15,CONSULTANTS FEES,4401,24/08/2017,596173,900.00 ,Revenue,VALERIE CONWAY CONSULTING,
Fareham Borough Council,http://statistics.data.gov.uk/id/local-authority/24UE,CORPORATE & DEMOCRATIC CORE,BV07A,CORPORATE MANAGEMENT,BV07AB,DEPT of FINANCE and RESOURCES,SUPPLIES & SERVICES,4,Facilities & Management Services,19,EXTERNAL PRINTING,4310,24/08/2017,596174,553.80 ,Revenue,COMMUNISIS TRANSACTIONAL PRINT,1006371
Fareham Borough Council,http://statistics.data.gov.uk/id/local-authority/24UE,CULTURAL AND RELATED SERVICES,BV09,RECREATION AND SPORT,BV09B,DEPARTMENT OF OPERATIONS,SUPPLIES & SERVICES,4,Local/Central Government,98,SOLENT SAFETY ORGANISATION,4713,24/08/2017,596175,2810.00 ,Revenue,HAMPSHIRE COUNTY COUNCIL,
Fareham Borough Council,http://statistics.data.gov.uk/id/local-authority/24UE,OTHER REVENUE ACCOUNTS,RV,CONTRACT SERVICES D.S.O.,RV14,DEPT of STRATEGIC PLANNING and ENVIRONMENT,SUPPLIES & SERVICES,4,Local/Central Government,98,SUB-CONTRACTORS CHARGES,4432,24/08/2017,596197,1370.00 ,Revenue,TEST VALLEY BOROUGH COUNCIL,
Fareham Borough Council,http://statistics.data.gov.uk/id/local-authority/24UE,OTHER REVENUE ACCOUNTS,RV,CONTRACT SERVICES D.S.O.,RV14,DEPT of STRATEGIC PLANNING and ENVIRONMENT,SUPPLIES & SERVICES,4,Local/Central Government,98,SUB-CONTRACTORS CHARGES,4432,24/08/2017,596198,2604.40 ,Revenue,HART DISTRICT COUNCIL,
Fareham Borough Council,http://statistics.data.gov.uk/id/local-authority/24UE,PLANNING SERVICES,BV13,PLANNING POLICY,BV13C,DEPT of STRATEGIC PLANNING and ENVIRONMENT,SUPPLIES & SERVICES,4,Consultancy,15,CONSULTANTS FEES,4401,24/08/2017,596206,1398.25 ,Revenue,LDA DESIGN CONSULTING LTD,OC307725
Fareham Borough Council,http://statistics.data.gov.uk/id/local-authority/24UE,OTHER REVENUE ACCOUNTS,RV,CONTRACT SERVICES D.S.O.,RV14,DEPARTMENT OF OPERATIONS,EMPLOYEES RELATED EXPENDITURE,1,Human Resources,26,AGENCY WORKERS,1050,24/08/2017,596209,523.80 ,Revenue,OFFICE ANGELS LTD,1985032
Fareham Borough Council,http://statistics.data.gov.uk/id/local-authority/24UE,CAPITAL PROGRAMME - OTHER SERVICES,CP,APPROVED PROGRAMME,CP24,CAPITAL - APPROVED PROGRAMME,PREMISES RELATED EXPENDITURE,2,Horticultural,24,R&M OF GROUNDS,2060,24/08/2017,596223,175.00 ,Capital,HAMBROOKS HOLDINGS,
Fareham Borough Council,http://statistics.data.gov.uk/id/local-authority/24UE,CAPITAL PROGRAMME - OTHER SERVICES,CP,APPROVED PROGRAMME,CP24,CAPITAL - APPROVED PROGRAMME,PREMISES RELATED EXPENDITURE,2,Horticultural,24,R&M OF GROUNDS,2060,24/08/2017,596223,12.50 ,Capital,HAMBROOKS HOLDINGS,
Fareham Borough Council,http://statistics.data.gov.uk/id/local-authority/24UE,CAPITAL PROGRAMME - OTHER SERVICES,CP,APPROVED PROGRAMME,CP24,CAPITAL - APPROVED PROGRAMME,PREMISES RELATED EXPENDITURE,2,Horticultural,24,R&M OF GROUNDS,2060,24/08/2017,596223,350.00 ,Capital,HAMBROOKS HOLDINGS,
Fareham Borough Council,http://statistics.data.gov.uk/id/local-authority/24UE,HIGHWAYS ROADS AND TRANSPORT,BV12,PARKING SERVICES,BV12D,DEPARTMENT OF OPERATIONS,SUPPLIES & SERVICES,4,Street & Traffic Management,35,RECOV.COSTS OF STANDARD CHARGE,4440,24/08/2017,596235,27.20 ,Revenue,PATROL,
Fareham Borough Council,http://statistics.data.gov.uk/id/local-authority/24UE,HIGHWAYS ROADS AND TRANSPORT,BV12,PARKING SERVICES,BV12D,DEPARTMENT OF OPERATIONS,SUPPLIES & SERVICES,4,Street & Traffic Management,35,RECOV.COSTS OF STANDARD CHARGE,4440,24/08/2017,596235,704.80 ,Revenue,PATROL,
Fareham Borough Council,http://statistics.data.gov.uk/id/local-authority/24UE,CAPITAL PROGRAMME - OTHER SERVICES,CP,APPROVED PROGRAMME,CP24,CAPITAL - APPROVED PROGRAMME,PREMISES RELATED EXPENDITURE,2,Horticultural,24,R&M OF GROUNDS,2060,24/08/2017,596240,3600.00 ,Capital,HAMBROOKS HOLDINGS,
Fareham Borough Council,http://statistics.data.gov.uk/id/local-authority/24UE,CAPITAL PROGRAMME - HOUSING SERVICES,CP,RENOVATION OF L.A. DWELLINGS,CP10,CAPITAL - ENVIRONMENTAL IMPROVEMENTS,PREMISES RELATED EXPENDITURE,2,"Works - Construction, Repair & Maintenance",39,R & M OF BUILDINGS,2000,24/08/2017,596241,11105.20 ,Capital,REDS BUILDERS LIMITED,4387646
Fareham Borough Council,http://statistics.data.gov.uk/id/local-authority/24UE,ENVIRONMENT AND REGULATORY SER,BV03,WASTE COLLECTION,BV03G,DEPARTMENT OF OPERATIONS,TRANSPORT RELATED EXPENDITURE,3,Vehicle Management,38,VEHICLE LICENCES,3023,24/08/2017,596244,165.00 ,Revenue,DENNIS EAGLE LIMITED,03794455
Fareham Borough Council,http://statistics.data.gov.uk/id/local-authority/24UE,ENVIRONMENT AND REGULATORY SER,BV03,WASTE COLLECTION,BV03G,DEPARTMENT OF OPERATIONS,TRANSPORT RELATED EXPENDITURE,3,Vehicle Management,38,VEHICLE LICENCES,3023,24/08/2017,596244,696.00 ,Revenue,DENNIS EAGLE LIMITED,03794455
Fareham Borough Council,http://statistics.data.gov.uk/id/local-authority/24UE,ENVIRONMENT AND REGULATORY SER,BV03,WASTE COLLECTION,BV03G,DEPARTMENT OF OPERATIONS,TRANSPORT RELATED EXPENDITURE,3,Vehicle Management,38,VEHICLE LICENCES,3023,24/08/2017,596244,673.50 ,Revenue,DENNIS EAGLE LIMITED,03794455
Fareham Borough Council,http://statistics.data.gov.uk/id/local-authority/24UE,ENVIRONMENT AND REGULATORY SER,BV03,WASTE COLLECTION,BV03G,DEPARTMENT OF OPERATIONS,TRANSPORT RELATED EXPENDITURE,3,Vehicle Management,38,VEHICLE LICENCES,3023,24/08/2017,596244,696.00 ,Revenue,DENNIS EAGLE LIMITED,03794455
Fareham Borough Council,http://statistics.data.gov.uk/id/local-authority/24UE,CULTURAL AND RELATED SERVICES,BV09,RECREATION AND SPORT,BV09B,DEPARTMENT OF OPERATIONS,PREMISES RELATED EXPENDITURE,2,Building Construction Materials,10,R & M OF FENCING,2061,31/08/2017,596248,880.00 ,Revenue,G S BUILDING SERVICES LTD,03859453
Fareham Borough Council,http://statistics.data.gov.uk/id/local-authority/24UE,PLANNING SERVICES,BV13,COMMUNITY DEVELOPMENT,BV13H,DEPARTMENT OF OPERATIONS,SUPPLIES & SERVICES,4,Highway Equipment & Materials�,23,COMMUNITY EVENTS,4986,24/08/2017,596255,580.00 ,Revenue,MET MEDICAL LTD,
Fareham Borough Council,http://statistics.data.gov.uk/id/local-authority/24UE,PLANNING SERVICES,BV13,COMMUNITY DEVELOPMENT,BV13H,DEPARTMENT OF OPERATIONS,SUPPLIES & SERVICES,4,Highway Equipment & Materials�,23,COMMUNITY EVENTS,4986,24/08/2017,596255,700.00 ,Revenue,MET MEDICAL LTD,
Fareham Borough Council,http://statistics.data.gov.uk/id/local-authority/24UE,PLANNING SERVICES,BV13,COMMUNITY DEVELOPMENT,BV13H,DEPARTMENT OF OPERATIONS,SUPPLIES & SERVICES,4,Highway Equipment & Materials�,23,COMMUNITY EVENTS,4986,24/08/2017,596255,-1280.00 ,Revenue,MET MEDICAL LTD,
Fareham Borough Council,http://statistics.data.gov.uk/id/local-authority/24UE,PLANNING SERVICES,BV13,COMMUNITY DEVELOPMENT,BV13H,DEPARTMENT OF OPERATIONS,SUPPLIES & SERVICES,4,Highway Equipment & Materials�,23,COMMUNITY EVENTS,4986,24/08/2017,596255,1280.00 ,Revenue,MET MEDICAL LTD,
Fareham Borough Council,http://statistics.data.gov.uk/id/local-authority/24UE,PLANNING SERVICES,BV13,COMMUNITY DEVELOPMENT,BV13H,DEPARTMENT OF OPERATIONS,SUPPLIES & SERVICES,4,Facilities & Management Services,19,COMMUNITY EVENTS,4986,24/08/2017,596256,650.00 ,Revenue,VENTURE SECURITY MANAGEMENT LTD,06000601
Fareham Borough Council,http://statistics.data.gov.uk/id/local-authority/24UE,CAPITAL PROGRAMME - OTHER SERVICES,CP,SCHEMES FUNDED FROM BALANCES,CP20,CAPITAL - SCHEMES FUNDED FROM BALANCES,SUPPLIES & SERVICES,4,Consultancy,15,CONSULTANTS FEES,4401,24/08/2017,596262,2100.00 ,Capital,PICK EVERARD,
Fareham Borough Council,http://statistics.data.gov.uk/id/local-authority/24UE,CULTURAL AND RELATED SERVICES,BV09,RECREATION AND SPORT,BV09B,DEPARTMENT OF OPERATIONS,PREMISES RELATED EXPENDITURE,2,Building Construction Materials,10,R & M OF BUILDINGS,2000,24/08/2017,596263,3077.87 ,Revenue,BALMORAL FLOORING LTD,5196959
Fareham Borough Council,http://statistics.data.gov.uk/id/local-authority/24UE,CULTURAL AND RELATED SERVICES,BV09,RECREATION AND SPORT,BV09B,DEPARTMENT OF OPERATIONS,PREMISES RELATED EXPENDITURE,2,Building Construction Materials,10,R & M OF BUILDINGS,2000,24/08/2017,596263,2051.91 ,Revenue,BALMORAL FLOORING LTD,5196959
Fareham Borough Council,http://statistics.data.gov.uk/id/local-authority/24UE,CULTURAL AND RELATED SERVICES,BV09,RECREATION AND SPORT,BV09B,DEPARTMENT OF OPERATIONS,PREMISES RELATED EXPENDITURE,2,Building Construction Materials,10,R & M OF BUILDINGS,2000,24/08/2017,596263,-5129.78 ,Revenue,BALMORAL FLOORING LTD,5196959
Fareham Borough Council,http://statistics.data.gov.uk/id/local-authority/24UE,CULTURAL AND RELATED SERVICES,BV09,RECREATION AND SPORT,BV09B,DEPARTMENT OF OPERATIONS,PREMISES RELATED EXPENDITURE,2,Building Construction Materials,10,R & M OF BUILDINGS,2000,24/08/2017,596263,5129.78 ,Revenue,BALMORAL FLOORING LTD,5196959
Fareham Borough Council,http://statistics.data.gov.uk/id/local-authority/24UE,HOUSING REVENUE ACCOUNT,BV06,GENERAL ADMINISTRATION EXPENSE,5021,DEPARTMENT OF OPERATIONS,PREMISES RELATED EXPENDITURE,2,"Works - Construction, Repair & Maintenance",39,R & M OF BUILDINGS,2000,24/08/2017,596267,1455.62 ,Revenue,BEAVEN GROUNDWORKS,
Fareham Borough Council,http://statistics.data.gov.uk/id/local-authority/24UE,HOUSING REVENUE ACCOUNT,BV06,GENERAL ADMINISTRATION EXPENSE,5021,DEPARTMENT OF OPERATIONS,PREMISES RELATED EXPENDITURE,2,"Works - Construction, Repair & Maintenance",39,R & M OF BUILDINGS,2000,24/08/2017,596267,161.12 ,Revenue,BEAVEN GROUNDWORKS,
Fareham Borough Council,http://statistics.data.gov.uk/id/local-authority/24UE,HOUSING REVENUE ACCOUNT,BV06,GENERAL ADMINISTRATION EXPENSE,5021,DEPARTMENT OF OPERATIONS,PREMISES RELATED EXPENDITURE,2,"Works - Construction, Repair & Maintenance",39,R & M OF BUILDINGS,2000,24/08/2017,596267,1294.50 ,Revenue,BEAVEN GROUNDWORKS,
Fareham Borough Council,http://statistics.data.gov.uk/id/local-authority/24UE,HOUSING REVENUE ACCOUNT,BV06,GENERAL ADMINISTRATION EXPENSE,5021,DEPARTMENT OF OPERATIONS,PREMISES RELATED EXPENDITURE,2,"Works - Construction, Repair & Maintenance",39,R & M OF BUILDINGS,2000,24/08/2017,596267,-1455.62 ,Revenue,BEAVEN GROUNDWORKS,
Fareham Borough Council,http://statistics.data.gov.uk/id/local-authority/24UE,ENVIRONMENT AND REGULATORY SER,BV03,CEMETERIES CREM & MORTUARY,BV03A,DEPARTMENT OF OPERATIONS,PREMISES RELATED EXPENDITURE,2,"Works - Construction, Repair & Maintenance",39,R & M OF BUILDINGS,2000,24/08/2017,596268,437.16 ,Revenue,BEAVEN GROUNDWORKS,
Fareham Borough Council,http://statistics.data.gov.uk/id/local-authority/24UE,FINANCING & INVESTMENT I&E,BVB02,INVESTMENT PROPERTIES,BVB170,DEPT of FINANCE and RESOURCES,PREMISES RELATED EXPENDITURE,2,"Works - Construction, Repair & Maintenance",39,R & M OF BUILDINGS,2000,24/08/2017,596268,217.80 ,Revenue,BEAVEN GROUNDWORKS,
Fareham Borough Council,http://statistics.data.gov.uk/id/local-authority/24UE,CULTURAL AND RELATED SERVICES,BV09,RECREATION AND SPORT,BV09B,DEPARTMENT OF OPERATIONS,PREMISES RELATED EXPENDITURE,2,"Works - Construction, Repair & Maintenance",39,R & M OF BUILDINGS,2000,24/08/2017,596268,96.80 ,Revenue,BEAVEN GROUNDWORKS,
Fareham Borough Council,http://statistics.data.gov.uk/id/local-authority/24UE,CULTURAL AND RELATED SERVICES,BV09,RECREATION AND SPORT,BV09B,DEPARTMENT OF OPERATIONS,PREMISES RELATED EXPENDITURE,2,"Works - Construction, Repair & Maintenance",39,R & M OF BUILDINGS,2000,24/08/2017,596268,288.86 ,Revenue,BEAVEN GROUNDWORKS,
Fareham Borough Council,http://statistics.data.gov.uk/id/local-authority/24UE,HIGHWAYS ROADS AND TRANSPORT,BV12,PARKING SERVICES,BV12D,DEPARTMENT OF OPERATIONS,PREMISES RELATED EXPENDITURE,2,"Works - Construction, Repair & Maintenance",39,R & M OF BUILDINGS,2000,24/08/2017,596268,1831.77 ,Revenue,BEAVEN GROUNDWORKS,
Fareham Borough Council,http://statistics.data.gov.uk/id/local-authority/24UE,CAPITAL PROGRAMME - HOUSING SERVICES,CP,RENOVATION OF L.A. DWELLINGS,CP10,CAPITAL - IMPROVEMENTS WORK/MODERNIS'N,PREMISES RELATED EXPENDITURE,2,"Works - Construction, Repair & Maintenance",39,R & M OF BUILDINGS,2000,24/08/2017,596268,1323.36 ,Capital,BEAVEN GROUNDWORKS,
Fareham Borough Council,http://statistics.data.gov.uk/id/local-authority/24UE,HOUSING REVENUE ACCOUNT,BV06,RESPONSIVE & VOID MAINTENANCE,5901,DEPARTMENT OF OPERATIONS,PREMISES RELATED EXPENDITURE,2,"Works - Construction, Repair & Maintenance",39,GENERAL REPAIRS,2018,24/08/2017,596268,17698.55 ,Revenue,BEAVEN GROUNDWORKS,
Fareham Borough Council,http://statistics.data.gov.uk/id/local-authority/24UE,HOUSING REVENUE ACCOUNT,BV06,RESPONSIVE & VOID MAINTENANCE,5901,DEPARTMENT OF OPERATIONS,PREMISES RELATED EXPENDITURE,2,"Works - Construction, Repair & Maintenance",39,GENERAL REPAIRS,2018,24/08/2017,596268,23081.43 ,Revenue,BEAVEN GROUNDWORKS,
Fareham Borough Council,http://statistics.data.gov.uk/id/local-authority/24UE,HOUSING REVENUE ACCOUNT,BV06,RESPONSIVE & VOID MAINTENANCE,5901,DEPARTMENT OF OPERATIONS,PREMISES RELATED EXPENDITURE,2,"Works - Construction, Repair & Maintenance",39,GENERAL REPAIRS,2018,24/08/2017,596268,-40779.98 ,Revenue,BEAVEN GROUNDWORKS,
Fareham Borough Council,http://statistics.data.gov.uk/id/local-authority/24UE,HOUSING REVENUE ACCOUNT,BV06,RESPONSIVE & VOID MAINTENANCE,5901,DEPARTMENT OF OPERATIONS,PREMISES RELATED EXPENDITURE,2,"Works - Construction, Repair & Maintenance",39,GENERAL REPAIRS,2018,24/08/2017,596268,40779.98 ,Revenue,BEAVEN GROUNDWORKS,
Fareham Borough Council,http://statistics.data.gov.uk/id/local-authority/24UE,OTHER REVENUE ACCOUNTS,RV,NON WORK GROUP HOLDING ACCOUNT,RV18,DEPT of FINANCE and RESOURCES,PREMISES RELATED EXPENDITURE,2,"Works - Construction, Repair & Maintenance",39,GENERAL REPAIRS,2018,24/08/2017,596268,387.20 ,Revenue,BEAVEN GROUNDWORKS,
Fareham Borough Council,http://statistics.data.gov.uk/id/local-authority/24UE,ENVIRONMENT AND REGULATORY SER,BV03,STREET CLEANSING,BV03F,DEPARTMENT OF OPERATIONS,TRANSPORT RELATED EXPENDITURE,3,Vehicle Management,38,TYRES,3022,24/08/2017,596309,412.17 ,Revenue,ATS EUROMASTER LIMITED,04303731
Fareham Borough Council,http://statistics.data.gov.uk/id/local-authority/24UE,ENVIRONMENT AND REGULATORY SER,BV03,WASTE COLLECTION,BV03G,DEPARTMENT OF OPERATIONS,TRANSPORT RELATED EXPENDITURE,3,Vehicle Management,38,TYRES,3022,24/08/2017,596309,31.00 ,Revenue,ATS EUROMASTER LIMITED,04303731
Fareham Borough Council,http://statistics.data.gov.uk/id/local-authority/24UE,ENVIRONMENT AND REGULATORY SER,BV03,WASTE COLLECTION,BV03G,DEPARTMENT OF OPERATIONS,TRANSPORT RELATED EXPENDITURE,3,Vehicle Management,38,TYRES,3022,24/08/2017,596309,467.33 ,Revenue,ATS EUROMASTER LIMITED,04303731
Fareham Borough Council,http://statistics.data.gov.uk/id/local-authority/24UE,OTHER REVENUE ACCOUNTS,RV,CONTRACT SERVICES D.S.O.,RV14,DEPARTMENT OF OPERATIONS,TRANSPORT RELATED EXPENDITURE,3,Vehicle Management,38,TYRES,3022,24/08/2017,596309,73.27 ,Revenue,ATS EUROMASTER LIMITED,04303731
Fareham Borough Council,http://statistics.data.gov.uk/id/local-authority/24UE,OTHER REVENUE ACCOUNTS,RV,CONTRACT SERVICES D.S.O.,RV14,DEPARTMENT OF OPERATIONS,TRANSPORT RELATED EXPENDITURE,3,Vehicle Management,38,TYRES,3022,24/08/2017,596309,771.16 ,Revenue,ATS EUROMASTER LIMITED,04303731
Fareham Borough Council,http://statistics.data.gov.uk/id/local-authority/24UE,ENVIRONMENT AND REGULATORY SER,BV03,STREET CLEANSING,BV03F,DEPARTMENT OF OPERATIONS,TRANSPORT RELATED EXPENDITURE,3,Vehicle Management,38,ROUTINE REPAIRS VEHICLES/PLANT,3010,24/08/2017,596314,2535.00 ,Revenue,SOUTH COAST TAIL LIFT REPAIRS LTD,04533267
Fareham Borough Council,http://statistics.data.gov.uk/id/local-authority/24UE,ENVIRONMENT AND REGULATORY SER,BV03,WASTE COLLECTION,BV03G,DEPARTMENT OF OPERATIONS,EMPLOYEES RELATED EXPENDITURE,1,Human Resources,26,AGENCY WORKERS,1050,31/08/2017,596389,597.60 ,Revenue,THE BEST CONNECTION GROUP LTD,2600534
Fareham Borough Council,http://statistics.data.gov.uk/id/local-authority/24UE,ENVIRONMENT AND REGULATORY SER,BV03,WASTE COLLECTION,BV03G,DEPARTMENT OF OPERATIONS,EMPLOYEES RELATED EXPENDITURE,1,Human Resources,26,AGENCY WORKERS,1050,31/08/2017,596390,597.20 ,Revenue,BERRY RECRUITMENT LIMITED,07036111
Fareham Borough Council,http://statistics.data.gov.uk/id/local-authority/24UE,ENVIRONMENT AND REGULATORY SER,BV03,WASTE COLLECTION,BV03G,DEPARTMENT OF OPERATIONS,EMPLOYEES RELATED EXPENDITURE,1,Human Resources,26,AGENCY WORKERS,1050,31/08/2017,596391,597.20 ,Revenue,BERRY RECRUITMENT LIMITED,07036111
Fareham Borough Council,http://statistics.data.gov.uk/id/local-authority/24UE,ENVIRONMENT AND REGULATORY SER,BV03,WASTE COLLECTION,BV03G,DEPARTMENT OF OPERATIONS,EMPLOYEES RELATED EXPENDITURE,1,Human Resources,26,AGENCY WORKERS,1050,31/08/2017,596392,564.82 ,Revenue,BERRY RECRUITMENT LIMITED,07036111
Fareham Borough Council,http://statistics.data.gov.uk/id/local-authority/24UE,ENVIRONMENT AND REGULATORY SER,BV03,WASTE COLLECTION,BV03G,DEPARTMENT OF OPERATIONS,EMPLOYEES RELATED EXPENDITURE,1,Human Resources,26,AGENCY WORKERS,1050,31/08/2017,596394,597.20 ,Revenue,BERRY RECRUITMENT LIMITED,07036111
Fareham Borough Council,http://statistics.data.gov.uk/id/local-authority/24UE,ENVIRONMENT AND REGULATORY SER,BV03,WASTE COLLECTION,BV03G,DEPARTMENT OF OPERATIONS,EMPLOYEES RELATED EXPENDITURE,1,Human Resources,26,AGENCY WORKERS,1050,31/08/2017,596397,597.60 ,Revenue,THE BEST CONNECTION GROUP LTD,2600534
Fareham Borough Council,http://statistics.data.gov.uk/id/local-authority/24UE,CULTURAL AND RELATED SERVICES,BV09,RECREATION AND SPORT,BV09B,DEPARTMENT OF OPERATIONS,PREMISES RELATED EXPENDITURE,2,Horticultural,24,R&M OF TREE PRESERVATION,2063,24/08/2017,596398,60.00 ,Revenue,TITCHFIELD TREE SERVICES LTD,
Fareham Borough Council,http://statistics.data.gov.uk/id/local-authority/24UE,CULTURAL AND RELATED SERVICES,BV09,RECREATION AND SPORT,BV09B,DEPARTMENT OF OPERATIONS,PREMISES RELATED EXPENDITURE,2,Horticultural,24,R&M OF TREE PRESERVATION,2063,24/08/2017,596398,120.00 ,Revenue,TITCHFIELD TREE SERVICES LTD,
Fareham Borough Council,http://statistics.data.gov.uk/id/local-authority/24UE,CULTURAL AND RELATED SERVICES,BV09,RECREATION AND SPORT,BV09B,DEPARTMENT OF OPERATIONS,PREMISES RELATED EXPENDITURE,2,Horticultural,24,R&M OF TREE PRESERVATION,2063,24/08/2017,596398,500.00 ,Revenue,TITCHFIELD TREE SERVICES LTD,
Fareham Borough Council,http://statistics.data.gov.uk/id/local-authority/24UE,CULTURAL AND RELATED SERVICES,BV09,RECREATION AND SPORT,BV09B,DEPARTMENT OF OPERATIONS,PREMISES RELATED EXPENDITURE,2,Horticultural,24,R&M OF TREE PRESERVATION,2063,24/08/2017,596398,75.00 ,Revenue,TITCHFIELD TREE SERVICES LTD,
Fareham Borough Council,http://statistics.data.gov.uk/id/local-authority/24UE,CULTURAL AND RELATED SERVICES,BV09,RECREATION AND SPORT,BV09B,DEPARTMENT OF OPERATIONS,PREMISES RELATED EXPENDITURE,2,Horticultural,24,R&M OF TREE PRESERVATION,2063,24/08/2017,596398,80.00 ,Revenue,TITCHFIELD TREE SERVICES LTD,
Fareham Borough Council,http://statistics.data.gov.uk/id/local-authority/24UE,CULTURAL AND RELATED SERVICES,BV09,RECREATION AND SPORT,BV09B,DEPARTMENT OF OPERATIONS,PREMISES RELATED EXPENDITURE,2,Horticultural,24,R&M OF TREE PRESERVATION,2063,24/08/2017,596398,60.00 ,Revenue,TITCHFIELD TREE SERVICES LTD,
Fareham Borough Council,http://statistics.data.gov.uk/id/local-authority/24UE,CULTURAL AND RELATED SERVICES,BV09,RECREATION AND SPORT,BV09B,DEPARTMENT OF OPERATIONS,PREMISES RELATED EXPENDITURE,2,Horticultural,24,R&M OF TREE PRESERVATION,2063,24/08/2017,596398,110.00 ,Revenue,TITCHFIELD TREE SERVICES LTD,
Fareham Borough Council,http://statistics.data.gov.uk/id/local-authority/24UE,CULTURAL AND RELATED SERVICES,BV09,RECREATION AND SPORT,BV09B,DEPARTMENT OF OPERATIONS,PREMISES RELATED EXPENDITURE,2,Horticultural,24,R&M OF TREE PRESERVATION,2063,24/08/2017,596398,175.00 ,Revenue,TITCHFIELD TREE SERVICES LTD,
Fareham Borough Council,http://statistics.data.gov.uk/id/local-authority/24UE,CULTURAL AND RELATED SERVICES,BV09,RECREATION AND SPORT,BV09B,DEPARTMENT OF OPERATIONS,PREMISES RELATED EXPENDITURE,2,Horticultural,24,R&M OF TREE PRESERVATION,2063,24/08/2017,596398,125.00 ,Revenue,TITCHFIELD TREE SERVICES LTD,
Fareham Borough Council,http://statistics.data.gov.uk/id/local-authority/24UE,CORPORATE & DEMOCRATIC CORE,BV07A,CORPORATE MANAGEMENT,BV07AB,DEPT of FINANCE and RESOURCES,SUPPLIES & SERVICES,4,Facilities & Management Services,19,EXTERNAL PRINTING,4310,24/08/2017,596402,544.33 ,Revenue,HOLBROOKS PRINTERS LTD,02826031
Fareham Borough Council,http://statistics.data.gov.uk/id/local-authority/24UE,CORPORATE & DEMOCRATIC CORE,BV07A,CORPORATE MANAGEMENT,BV07AB,DEPT of FINANCE and RESOURCES,SUPPLIES & SERVICES,4,Facilities & Management Services,19,DELIVERY CHARGES,4962,24/08/2017,596403,601.88 ,Revenue,HOLBROOKS PRINTERS LTD,02826031
Fareham Borough Council,http://statistics.data.gov.uk/id/local-authority/24UE,CAPITAL PROGRAMME - HOUSING SERVICES,CP,HOUSE RENOVATION GRANTS,CP11,CAPITAL - HOUSE RENOVATION GRANTS,SUPPLIES & SERVICES,4,Unclassified,,GRANTS AND SUBSCRIPTIONS,4700,24/08/2017,596423,2392.12 ,Capital,EON INSTALLATION SERVICES,
Fareham Borough Council,http://statistics.data.gov.uk/id/local-authority/24UE,OTHER REVENUE ACCOUNTS,RV,CONTRACT SERVICES D.S.O.,RV14,DEPT of STRATEGIC PLANNING and ENVIRONMENT,SUPPLIES & SERVICES,4,Consultancy,15,CONSULTANTS FEES,4401,31/08/2017,596625,11164.50 ,Revenue,BUCKLEY CONSULTING,
Fareham Borough Council,http://statistics.data.gov.uk/id/local-authority/24UE,BALANCE SHEET,BS,BAL. SHEET - COLLECTION FUND,BS1,BAL. SHEET - COLLECTION FUND,PERSONAL ACCOUNTS,BS210,Local/Central Government,98,NNDR POOL - PAYMENTS,P140,31/08/2017,596632,80933.00 ,Balance Sheet,DCLG (Dept. for Communities & Local Govt.),
Fareham Borough Council,http://statistics.data.gov.uk/id/local-authority/24UE,BALANCE SHEET,BS,BAL. SHEET - COLLECTION FUND,BS1,BAL. SHEET - COLLECTION FUND,PERSONAL ACCOUNTS,BS210,Local/Central Government,98,NNDR POOL - RECEIPTS,P139,31/08/2017,596632,-154626.00 ,Balance Sheet,DCLG (Dept. for Communities & Local Govt.),
Fareham Borough Council,http://statistics.data.gov.uk/id/local-authority/24UE,BALANCE SHEET,BS,BAL. SHEET - COLLECTION FUND,BS1,BAL. SHEET - COLLECTION FUND,PERSONAL ACCOUNTS,BS210,Local/Central Government,98,NNDR POOL - PAYMENTS,P140,31/08/2017,596632,156435.00 ,Balance Sheet,DCLG (Dept. for Communities & Local Govt.),
Fareham Borough Council,http://statistics.data.gov.uk/id/local-authority/24UE,BALANCE SHEET,BS,BAL. SHEET - COLLECTION FUND,BS1,BAL. SHEET - COLLECTION FUND,PERSONAL ACCOUNTS,BS210,Local/Central Government,98,NNDR POOL - PAYMENTS,P140,31/08/2017,596632,1461831.00 ,Balance Sheet,DCLG (Dept. for Communities & Local Govt.),
Fareham Borough Council,http://statistics.data.gov.uk/id/local-authority/24UE,BALANCE SHEET,BS,BAL. SHEET - COLLECTION FUND,BS1,BAL. SHEET - COLLECTION FUND,PERSONAL ACCOUNTS,BS210,Local/Central Government,98,REVENUE SUPPORT GRANT,P138,31/08/2017,596632,-23062.00 ,Balance Sheet,DCLG (Dept. for Communities & Local Govt.),
Fareham Borough Council,http://statistics.data.gov.uk/id/local-authority/24UE,HOUSING REVENUE ACCOUNT,BV06,RESPONSIVE & VOID MAINTENANCE,5901,DEPARTMENT OF OPERATIONS,SUPPLIES & SERVICES,4,Building Construction Materials,10,MATERIALS (OPERATIONAL),4007,31/08/2017,596650,550.26 ,Revenue,BORDERLAND FENCING CENTRE LTD,3123722
Fareham Borough Council,http://statistics.data.gov.uk/id/local-authority/24UE,CORPORATE & DEMOCRATIC CORE,BV07A,CORPORATE MANAGEMENT,BV07AB,DEPT of FINANCE and RESOURCES,SUPPLIES & SERVICES,4,Consultancy,15,CONSULTANTS FEES,4401,31/08/2017,596659,9200.00 ,Revenue,VANGUARD CONSULTING LTD,2207133
Fareham Borough Council,http://statistics.data.gov.uk/id/local-authority/24UE,CORPORATE & DEMOCRATIC CORE,BV07A,DEMOCRATIC REP.& MANAGEMENT,BV07AA,DEPT of FINANCE and RESOURCES,SUPPLIES & SERVICES,4,Information Communication Technology,27,INTERNET RENTAL ALLOWANCE,4627,31/08/2017,596680,174.37 ,Revenue,BT PLC,1800000
Fareham Borough Council,http://statistics.data.gov.uk/id/local-authority/24UE,FINANCING & INVESTMENT I&E,BVB02,INVESTMENT PROPERTIES,BVB170,DEPT of FINANCE and RESOURCES,SUPPLIES & SERVICES,4,Information Communication Technology,27,TELEPHONES,4510,31/08/2017,596680,23.70 ,Revenue,BT PLC,1800000
Fareham Borough Council,http://statistics.data.gov.uk/id/local-authority/24UE,ENVIRONMENT AND REGULATORY SER,BV03,ENVIRONMENTAL HEALTH,BV03C,DEPARTMENT OF OPERATIONS,SUPPLIES & SERVICES,4,Information Communication Technology,27,FURNITURE & EQUIPT. MAINT.,4030,31/08/2017,596680,23.70 ,Revenue,BT PLC,1800000
Fareham Borough Council,http://statistics.data.gov.uk/id/local-authority/24UE,CENTRAL SERVICES,BV07,CENTRAL SERVICES TO THE PUBLIC,BV07B,DEPARTMENT OF OPERATIONS,SUPPLIES & SERVICES,4,Information Communication Technology,27,TELEPHONES,4510,31/08/2017,596680,91.64 ,Revenue,BT PLC,1800000
Fareham Borough Council,http://statistics.data.gov.uk/id/local-authority/24UE,PLANNING SERVICES,BV13,ECONOMIC DEVELOPMENT,BV13E,DEPARTMENT OF OPERATIONS,SUPPLIES & SERVICES,4,Information Communication Technology,27,TELEPHONES,4510,31/08/2017,596680,23.70 ,Revenue,BT PLC,1800000
Fareham Borough Council,http://statistics.data.gov.uk/id/local-authority/24UE,CULTURAL AND RELATED SERVICES,BV09,CULTURE AND HERITAGE,BV09A,DEPARTMENT OF OPERATIONS,SUPPLIES & SERVICES,4,Information Communication Technology,27,TELEPHONES,4510,31/08/2017,596680,63.21 ,Revenue,BT PLC,1800000
Fareham Borough Council,http://statistics.data.gov.uk/id/local-authority/24UE,CULTURAL AND RELATED SERVICES,BV09,RECREATION AND SPORT,BV09B,DEPARTMENT OF OPERATIONS,SUPPLIES & SERVICES,4,Information Communication Technology,27,TELEPHONES,4510,31/08/2017,596680,35.68 ,Revenue,BT PLC,1800000
Fareham Borough Council,http://statistics.data.gov.uk/id/local-authority/24UE,HIGHWAYS ROADS AND TRANSPORT,BV12,PARKING SERVICES,BV12D,DEPARTMENT OF OPERATIONS,SUPPLIES & SERVICES,4,Information Communication Technology,27,TELEPHONES,4510,31/08/2017,596680,300.30 ,Revenue,BT PLC,1800000
Fareham Borough Council,http://statistics.data.gov.uk/id/local-authority/24UE,HOUSING REVENUE ACCOUNT,BV06,SHELTERED HOUSING SERVICE,5031,DEPARTMENT OF OPERATIONS,SUPPLIES & SERVICES,4,Information Communication Technology,27,TELEPHONES (WARDENS & COMM'L),4511,31/08/2017,596680,792.96 ,Revenue,BT PLC,1800000
Fareham Borough Council,http://statistics.data.gov.uk/id/local-authority/24UE,HOUSING REVENUE ACCOUNT,BV06,SHELTERED HOUSING SERVICE,5031,DEPARTMENT OF OPERATIONS,PREMISES RELATED EXPENDITURE,2,Information Communication Technology,27,R & M ALARM SPEECH SYSTEMS,2027,31/08/2017,596680,484.82 ,Revenue,BT PLC,1800000
Fareham Borough Council,http://statistics.data.gov.uk/id/local-authority/24UE,CAPITAL PROGRAMME - HOUSING SERVICES,CP,RENOVATION OF L.A. DWELLINGS,CP10,CAPITAL - IMPROVEMENTS WORK/MODERNIS'N,SUPPLIES & SERVICES,4,Information Communication Technology,27,TELEPHONES (WARDENS & COMM'L),4511,31/08/2017,596680,44.50 ,Capital,BT PLC,1800000
